 Batch Number,Vendor Name,Invoice Number, Line,Line Amount,Account Description,Issue Date ,Total Amount Paid
270314C,MOOLANDS LTD,00000527,1,"4,998.00",STRATEGIC (NON CYCLICAL),02/04/14,"4,998.00"
270314C,MOOLANDS LTD,00000539,1,"7,711.00",DAY TO DAY MINOR IMPS,02/04/14,"7,711.00"
200314C,GEORGE JONES & SON LTD========,036829,1,"2,445.91",STRATEGIC (NON CYCLICAL),02/04/14,"2,445.91"
200314C,GEORGE JONES & SON LTD========,036830,1,"15,738.11",STRATEGIC (NON CYCLICAL),02/04/14,"15,738.11"
200314C,GEORGE JONES & SON LTD========,036833,1,"8,952.74",STRATEGIC (NON CYCLICAL),02/04/14,"8,952.74"
200314C,GEORGE JONES & SON LTD========,036834,1,"26,900.28",STRATEGIC (NON CYCLICAL),02/04/14,"27,806.28"
200314C,GEORGE JONES & SON LTD========,036834,2,906.00,STRATEGIC (NON CYCLICAL),02/04/14,
200314C,GEORGE JONES & SON LTD========,036835,1,"7,158.21",STRATEGIC (NON CYCLICAL),02/04/14,"7,158.21"
260314G,GEORGE JONES & SON LTD========,036836,1,"6,862.24",STRATEGIC (NON CYCLICAL),02/04/14,"6,862.24"
200314C,GEORGE JONES & SON LTD========,036837,1,"15,190.56",STRATEGIC (NON CYCLICAL),02/04/14,"15,190.56"
200314C,GEORGE JONES & SON LTD========,036838,1,"11,465.75",STRATEGIC (NON CYCLICAL),02/04/14,"11,465.75"
310314F,FIRE PREVENTION PRODUCTS LTD==,045838,1,317.40,OPERATIONAL EQUIP-PURCHASE,02/04/14,317.40
140620,THAMES WATER UTILITIES LTD====,0592996051X,1,816.51,WATER & SEWERAGE RATES,02/04/14,816.51
270314C,HAYS ACCOUNTANCY & FINANCE====,1004143340,1,899.00,FRS STAFF AGENCY,02/04/14,899.00
270314C,AFFINITY WATER,101034747,1,341.00,CURRENT HYDRANT COSTS,02/04/14,341.00
800024460,*JAMES HUNTER (OUTFITTERS) LTD,107256,1,285.07,CLOTHING,02/04/14,285.07
800024466,*JAMES HUNTER (OUTFITTERS) LTD,107262,1,141.08,CLOTHING,02/04/14,275.46
800024466,*JAMES HUNTER (OUTFITTERS) LTD,107262,2,134.38,CLOTHING,02/04/14,
140622,MISS REBECCA THOMAS===========,107644,1,675.00,COUNSELS FEES,02/04/14,675.00
270314E,ACL ELECTRICAL LIMITED,11183,1,"4,344.80",DEVELOPMENT  EXPENSES-CONTRACT,02/04/14,"34,116.57"
270314E,ACL ELECTRICAL LIMITED,11183,2,"3,470.07",DEVELOPMENT  EXPENSES-CONTRACT,02/04/14,
270314E,ACL ELECTRICAL LIMITED,11183,3,"4,403.72",DEVELOPMENT  EXPENSES-CONTRACT,02/04/14,
270314E,ACL ELECTRICAL LIMITED,11183,4,"6,757.12",DEVELOPMENT  EXPENSES-CONTRACT,02/04/14,
270314E,ACL ELECTRICAL LIMITED,11183,5,"4,067.25",DEVELOPMENT  EXPENSES-CONTRACT,02/04/14,
270314E,ACL ELECTRICAL LIMITED,11183,6,"5,957.98",DEVELOPMENT  EXPENSES-CONTRACT,02/04/14,
270314E,ACL ELECTRICAL LIMITED,11183,7,"5,115.63",DEVELOPMENT  EXPENSES-CONTRACT,02/04/14,
140618,BOURNE CONSTRUCTION COMPANY,13/493,1,836.00,STRATEGIC (NON CYCLICAL),02/04/14,"1,081.00"
140618,BOURNE CONSTRUCTION COMPANY,13/493,2,245.00,STRATEGIC (NON CYCLICAL),02/04/14,
140618,BOURNE CONSTRUCTION COMPANY,13/494,1,735.00,STRATEGIC (NON CYCLICAL),02/04/14,970.00
140618,BOURNE CONSTRUCTION COMPANY,13/494,2,235.00,STRATEGIC (NON CYCLICAL),02/04/14,
140618,BOURNE CONSTRUCTION COMPANY,13/495,1,625.00,STRATEGIC (NON CYCLICAL),02/04/14,845.00
140618,BOURNE CONSTRUCTION COMPANY,13/495,2,220.00,STRATEGIC (NON CYCLICAL),02/04/14,
140618,BOURNE CONSTRUCTION COMPANY,13/496,1,640.00,STRATEGIC (NON CYCLICAL),02/04/14,920.00
140618,BOURNE CONSTRUCTION COMPANY,13/496,2,280.00,STRATEGIC (NON CYCLICAL),02/04/14,
140618,BOURNE CONSTRUCTION COMPANY,13/497,1,660.00,STRATEGIC (NON CYCLICAL),02/04/14,980.00
140618,BOURNE CONSTRUCTION COMPANY,13/497,2,320.00,STRATEGIC (NON CYCLICAL),02/04/14,
140618,BOURNE CONSTRUCTION COMPANY,13/498,1,820.00,STRATEGIC (NON CYCLICAL),02/04/14,"1,050.00"
140618,BOURNE CONSTRUCTION COMPANY,13/498,2,230.00,STRATEGIC (NON CYCLICAL),02/04/14,
140618,BOURNE CONSTRUCTION COMPANY,13/499,1,"3,000.00",STRATEGIC (NON CYCLICAL),02/04/14,"9,850.00"
140618,BOURNE CONSTRUCTION COMPANY,13/499,2,"6,850.00",STRATEGIC (NON CYCLICAL),02/04/14,
270314C,KIER BUILDING SERV ENGINEERS==,13090656,1,"164,793.55",TACTICAL DAY TO DAY,02/04/14,"194,793.55"
270314C,KIER BUILDING SERV ENGINEERS==,13090656,2,"30,000.00",STRATEGIC (CYCLICAL),02/04/14,
270314E,KIER BUILDING SERV ENGINEERS==,13090708,1,"35,094.92",TACTICAL DAY TO DAY,02/04/14,"73,464.75"
270314E,KIER BUILDING SERV ENGINEERS==,13090708,2,523.32,TACTICAL DAY TO DAY,02/04/14,
270314E,KIER BUILDING SERV ENGINEERS==,13090708,3,"1,745.65",TACTICAL DAY TO DAY,02/04/14,
270314E,KIER BUILDING SERV ENGINEERS==,13090708,4,"1,882.77",TACTICAL DAY TO DAY,02/04/14,
270314E,KIER BUILDING SERV ENGINEERS==,13090708,5,"25,761.20",STRATEGIC (CYCLICAL),02/04/14,
270314E,KIER BUILDING SERV ENGINEERS==,13090708,6,"1,187.39",STRATEGIC (CYCLICAL),02/04/14,
270314E,KIER BUILDING SERV ENGINEERS==,13090708,7,"1,488.35",STRATEGIC (CYCLICAL),02/04/14,
270314E,KIER BUILDING SERV ENGINEERS==,13090708,8,"5,781.15",STRATEGIC (CYCLICAL),02/04/14,
310314F,DYSLEXIA ACTION,161428,1,540.00,PROFESSIONAL DEVELOPMENT,02/04/14,540.00
310314F,DYSLEXIA ACTION,163148,1,400.00,PROFESSIONAL DEVELOPMENT,02/04/14,400.00
310314F,DYSLEXIA ACTION,163302,1,525.00,PROFESSIONAL DEVELOPMENT,02/04/14,525.00
200314E,FUTURE SAFETY LTD=============,1889,1,730.00,PROTECTIVE EQUIPMENT,02/04/14,740.00
200314E,FUTURE SAFETY LTD=============,1889,2,10.00,PROTECTIVE EQUIPMENT,02/04/14,
200314C,ENERGY AUDITING AGENCY LTD====,20141361,1,"1,141.00",PROFESSIONAL SERVICES,02/04/14,"1,141.00"
310314F,B NOKES CONTRACTS LTD,2128,1,"2,272.00",STRATEGIC (NON CYCLICAL),02/04/14,"2,272.00"
310314F,B NOKES CONTRACTS LTD,2136,1,"2,294.00",STRATEGIC (NON CYCLICAL),02/04/14,"2,294.00"
270314C,TRADE WINDS===================,21428,1,"1,727.00",GENERAL CONSUMABLES,02/04/14,"1,727.00"
310314F,TRADE WINDS===================,21429,1,"1,698.00",GENERAL CONSUMABLES,02/04/14,"1,698.00"
310314F,B NOKES CONTRACTS LTD,2146,1,"1,584.50",STRATEGIC (NON CYCLICAL),02/04/14,"1,584.50"
310314F,TRADE WINDS===================,21606,1,523.00,GENERAL CONSUMABLES,02/04/14,523.00
260314G,CRISPIN HUGHES================,2221,1,367.00,GENERAL,02/04/14,367.00
140622,MISS BO-EUN JUNG==============,227831A,1,630.00,PROFESSIONAL FEES ENFORCEMENT,02/04/14,630.00
270314E,FIRE SERVICES YOUTH TRAIN.ASS.,2390,1,"3,678.50",GENERAL,02/04/14,"3,678.50"
170314C,FIRE SERVICES YOUTH TRAIN.ASS.,2405,1,561.00,SUBSCRIPTIONS,02/04/14,561.00
170314C,FIRE SERVICES YOUTH TRAIN.ASS.,2406,1,486.20,SUBSCRIPTIONS,02/04/14,486.20
170314C,FIRE SERVICES YOUTH TRAIN.ASS.,2407,1,598.40,SUBSCRIPTIONS,02/04/14,598.40
170314C,FIRE SERVICES YOUTH TRAIN.ASS.,2408,1,561.00,SUBSCRIPTIONS,02/04/14,561.00
270314E,BRISTOL UNIFORMS LTD==========,253276,1,748.42,CLOTHING,02/04/14,748.42
270314E,BRISTOL UNIFORMS LTD==========,253278,1,"197,575.56",CLOTHING,02/04/14,"197,575.56"
310314F,BRISTOL UNIFORMS LTD==========,253288,1,"4,243.61",CLOTHING,02/04/14,"4,243.61"
270314E,FALDER MATTHEWS T/A FM PRINT==,25364-1,1,315.00,PRINTING,02/04/14,928.00
270314E,FALDER MATTHEWS T/A FM PRINT==,25364-1,2,193.00,PRINTING,02/04/14,
270314E,FALDER MATTHEWS T/A FM PRINT==,25364-1,3,420.00,PRINTING,02/04/14,
310314F,STORM TECHNOLOGIES============,265893,1,485.29,OFFICE EQUIPMENT,02/04/14,985.12
310314F,STORM TECHNOLOGIES============,265893,2,371.50,OFFICE EQUIPMENT,02/04/14,
310314F,STORM TECHNOLOGIES============,265893,3,55.00,OFFICE EQUIPMENT,02/04/14,
310314F,STORM TECHNOLOGIES============,265893,4,73.33,OFFICE EQUIPMENT,02/04/14,
800033207,ADECCO UK LIMITED=============,26710551,1,"1,270.34",FRS STAFF AGENCY,02/04/14,"1,270.34"
800033208,ADECCO UK LIMITED=============,26724829,1,"1,270.34",FRS STAFF AGENCY,02/04/14,"1,270.34"
800031331,ADECCO UK LIMITED=============,26724841,1,"1,478.33",FRS STAFF AGENCY,02/04/14,"1,478.33"
800033280,ADECCO UK LIMITED=============,26731724,1,768.25,FRS STAFF AGENCY,02/04/14,768.25
800033281,ADECCO UK LIMITED=============,26731725,1,439.60,FRS STAFF AGENCY,02/04/14,439.60
800033282,ADECCO UK LIMITED=============,26731726,1,389.97,FRS STAFF AGENCY,02/04/14,389.97
800033283,ADECCO UK LIMITED=============,26731727,1,612.15,FRS STAFF AGENCY,02/04/14,612.15
800033284,ADECCO UK LIMITED=============,26731728,1,879.90,FRS STAFF AGENCY,02/04/14,879.90
800033285,ADECCO UK LIMITED=============,26731729,1,612.15,FRS STAFF AGENCY,02/04/14,612.15
800033286,ADECCO UK LIMITED=============,26731730,1,"2,500.00",FRS STAFF AGENCY,02/04/14,"2,500.00"
800033287,ADECCO UK LIMITED=============,26731731,1,367.29,FRS STAFF AGENCY,02/04/14,367.29
800033288,ADECCO UK LIMITED=============,26731732,1,"1,961.80",FRS STAFF AGENCY,02/04/14,"1,961.80"
800033332,ADECCO UK LIMITED=============,26731733,1,356.79,FRS STAFF AGENCY,02/04/14,356.79
800033290,ADECCO UK LIMITED=============,26731734,1,439.60,FRS STAFF AGENCY,02/04/14,439.60
800033291,ADECCO UK LIMITED=============,26731735,1,966.84,FRS STAFF AGENCY,02/04/14,966.84
800033292,ADECCO UK LIMITED=============,26731736,1,594.66,FRS STAFF AGENCY,02/04/14,594.66
800033293,ADECCO UK LIMITED=============,26731737,1,612.15,FRS STAFF AGENCY,02/04/14,612.15
800033294,ADECCO UK LIMITED=============,26731738,1,489.72,FRS STAFF AGENCY,02/04/14,489.72
800033295,ADECCO UK LIMITED=============,26731739,1,559.68,FRS STAFF AGENCY,02/04/14,559.68
800033296,ADECCO UK LIMITED=============,26731740,1,439.60,FRS STAFF AGENCY,02/04/14,439.60
800033333,ADECCO UK LIMITED=============,26731741,1,489.72,FRS STAFF AGENCY,02/04/14,489.72
800033298,ADECCO UK LIMITED=============,26731742,1,"1,071.25",FRS STAFF AGENCY,02/04/14,"1,071.25"
800033300,ADECCO UK LIMITED=============,26731744,1,"1,445.40",FRS STAFF AGENCY,02/04/14,"1,445.40"
800033301,ADECCO UK LIMITED=============,26731745,1,367.29,FRS STAFF AGENCY,02/04/14,367.29
800033341,ADECCO UK LIMITED=============,26735138,1,460.25,FRS STAFF AGENCY,02/04/14,460.25
800033317,ADECCO UK LIMITED=============,26735139,1,"1,241.25",FRS STAFF AGENCY,02/04/14,"1,241.25"
800033318,ADECCO UK LIMITED=============,26735140,1,993.00,FRS STAFF AGENCY,02/04/14,993.00
800033319,ADECCO UK LIMITED=============,26735141,1,"1,241.25",FRS STAFF AGENCY,02/04/14,"1,241.25"
800033320,ADECCO UK LIMITED=============,26735142,1,"1,241.25",FRS STAFF AGENCY,02/04/14,"1,241.25"
800033321,ADECCO UK LIMITED=============,26735143,1,744.75,FRS STAFF AGENCY,02/04/14,744.75
800033350,ADECCO UK LIMITED=============,26735147,1,"1,212.00",FRS STAFF AGENCY,02/04/14,"1,212.00"
800033342,ADECCO UK LIMITED=============,26735148,1,276.15,FRS STAFF AGENCY,02/04/14,276.15
800033343,ADECCO UK LIMITED=============,26735149,1,460.25,FRS STAFF AGENCY,02/04/14,460.25
800033348,ADECCO UK LIMITED=============,26735151,1,953.44,FRS STAFF AGENCY,02/04/14,953.44
800033328,ADECCO UK LIMITED=============,26735152,1,"2,867.35",PROF FEES-SOFTWARE CONSULTANTS,02/04/14,"2,867.35"
800033329,ADECCO UK LIMITED=============,26735153,1,"2,867.35",PROF FEES-SOFTWARE CONSULTANTS,02/04/14,"2,867.35"
800033330,ADECCO UK LIMITED=============,26735154,1,"2,867.35",PROF FEES-SOFTWARE CONSULTANTS,02/04/14,"2,867.35"
800033347,ADECCO UK LIMITED=============,26735155,1,"1,194.15",FRS STAFF AGENCY,02/04/14,"1,194.15"
800033337,ADECCO UK LIMITED=============,26735156,1,812.24,FRS STAFF AGENCY,02/04/14,812.24
800033338,ADECCO UK LIMITED=============,26735157,1,"1,292.20",FRS STAFF AGENCY,02/04/14,"1,292.20"
800033339,ADECCO UK LIMITED=============,26735158,1,"1,292.20",FRS STAFF AGENCY,02/04/14,"1,292.20"
800033349,ADECCO UK LIMITED=============,26735159,1,368.20,FRS STAFF AGENCY,02/04/14,368.20
310314F,MACE LIMITED,26915/0314659,1,"2,695.61",PROF FEES-MISCELLANEOUS,02/04/14,"2,695.61"
310314F,MACE LIMITED,26915/0314663,1,"1,633.80",PROF FEES-MISCELLANEOUS,02/04/14,"1,633.80"
270314C,TEAM PURPLE LIMITED===========,2767,1,49.82,CLOTHING,02/04/14,288.42
270314C,TEAM PURPLE LIMITED===========,2767,2,139.00,CLOTHING,02/04/14,
270314C,TEAM PURPLE LIMITED===========,2767,3,99.60,CLOTHING,02/04/14,
800031218,*BANNER BUSINESS SUPPLIES LTD=,27892696,1,41.20,STATIONERY CONSUMABLES,02/04/14,562.50
800031218,*BANNER BUSINESS SUPPLIES LTD=,27892696,2,41.50,STATIONERY CONSUMABLES,02/04/14,
800031218,*BANNER BUSINESS SUPPLIES LTD=,27892696,3,16.50,STATIONERY CONSUMABLES,02/04/14,
800031218,*BANNER BUSINESS SUPPLIES LTD=,27892696,4,11.00,STATIONERY CONSUMABLES,02/04/14,
800031218,*BANNER BUSINESS SUPPLIES LTD=,27892696,5,66.30,STATIONERY CONSUMABLES,02/04/14,
800031218,*BANNER BUSINESS SUPPLIES LTD=,27892696,6,18.20,STATIONERY CONSUMABLES,02/04/14,
800031218,*BANNER BUSINESS SUPPLIES LTD=,27892696,7,18.20,STATIONERY CONSUMABLES,02/04/14,
800031218,*BANNER BUSINESS SUPPLIES LTD=,27892696,8,28.60,STATIONERY CONSUMABLES,02/04/14,
800031218,*BANNER BUSINESS SUPPLIES LTD=,27892696,9,52.00,STATIONERY CONSUMABLES,02/04/14,
800031218,*BANNER BUSINESS SUPPLIES LTD=,27892696,10,95.40,STATIONERY CONSUMABLES,02/04/14,
800031218,*BANNER BUSINESS SUPPLIES LTD=,27892696,11,113.10,STATIONERY CONSUMABLES,02/04/14,
800031218,*BANNER BUSINESS SUPPLIES LTD=,27892696,12,60.50,STATIONERY CONSUMABLES,02/04/14,
270314C,CHANGING YOUNG MINDS,280314,1,450.00,PROFESSIONAL DEVELOPMENT,02/04/14,450.00
140620,THAMES WATER UTILITIES LTD====,2963180521+,1,373.75,WATER & SEWERAGE RATES,02/04/14,373.75
270314C,FREIGHT TRANSPORT ASSOCIATION=,300051154,1,907.00,BOOKS & JOURNALS,02/04/14,907.00
140620,THAMES WATER UTILITIES LTD====,33673-65430C,1,402.72,WATER & SEWERAGE RATES,02/04/14,402.72
200314C,CK DIRECT,3428,1,"8,650.00",STRATEGIC (NON CYCLICAL),02/04/14,"8,650.00"
310314F,BRAMBLE.CC LTD================,3649,1,0.03,PURCHASES-SOFTWARE,02/04/14,"3,547.63"
310314F,BRAMBLE.CC LTD================,3649,2,"3,477.64",PURCHASES-SOFTWARE,02/04/14,
310314F,BRAMBLE.CC LTD================,3649,3,69.96,PURCHASES-SOFTWARE,02/04/14,
260314G,THE HEIGHTEC GROUP LTD========,38979,1,152.15,OPERATIONAL EQUIP-PURCHASE,02/04/14,"2,826.03"
260314G,THE HEIGHTEC GROUP LTD========,38979,2,337.47,OPERATIONAL EQUIP-PURCHASE,02/04/14,
260314G,THE HEIGHTEC GROUP LTD========,38979,3,933.98,OPERATIONAL EQUIP-PURCHASE,02/04/14,
260314G,THE HEIGHTEC GROUP LTD========,38979,4,433.13,OPERATIONAL EQUIP-PURCHASE,02/04/14,
260314G,THE HEIGHTEC GROUP LTD========,38979,5,391.02,OPERATIONAL EQUIP-PURCHASE,02/04/14,
260314G,THE HEIGHTEC GROUP LTD========,38979,6,193.20,OPERATIONAL EQUIP-PURCHASE,02/04/14,
260314G,THE HEIGHTEC GROUP LTD========,38979,7,196.67,OPERATIONAL EQUIP-PURCHASE,02/04/14,
260314G,THE HEIGHTEC GROUP LTD========,38979,8,10.87,OPERATIONAL EQUIP-PURCHASE,02/04/14,
260314G,THE HEIGHTEC GROUP LTD========,38979,9,24.11,OPERATIONAL EQUIP-PURCHASE,02/04/14,
260314G,THE HEIGHTEC GROUP LTD========,38979,10,66.71,OPERATIONAL EQUIP-PURCHASE,02/04/14,
260314G,THE HEIGHTEC GROUP LTD========,38979,11,30.94,OPERATIONAL EQUIP-PURCHASE,02/04/14,
260314G,THE HEIGHTEC GROUP LTD========,38979,12,27.93,OPERATIONAL EQUIP-PURCHASE,02/04/14,
260314G,THE HEIGHTEC GROUP LTD========,38979,13,13.80,OPERATIONAL EQUIP-PURCHASE,02/04/14,
260314G,THE HEIGHTEC GROUP LTD========,38979,14,14.05,OPERATIONAL EQUIP-PURCHASE,02/04/14,
270314C,FAHEY BUILDERS LTD============,5189,1,"2,625.00",STRATEGIC (NON CYCLICAL),02/04/14,"2,625.00"
270314E,URS SCOTT WILSON LIMITED,5809551,1,429.71,PROF FEES-MISCELLANEOUS,02/04/14,"3,867.39"
270314E,URS SCOTT WILSON LIMITED,5809551,2,429.71,PROF FEES-MISCELLANEOUS,02/04/14,
270314E,URS SCOTT WILSON LIMITED,5809551,3,429.71,PROF FEES-MISCELLANEOUS,02/04/14,
270314E,URS SCOTT WILSON LIMITED,5809551,4,429.71,PROF FEES-MISCELLANEOUS,02/04/14,
270314E,URS SCOTT WILSON LIMITED,5809551,5,429.71,PROF FEES-MISCELLANEOUS,02/04/14,
270314E,URS SCOTT WILSON LIMITED,5809551,6,429.71,PROF FEES-MISCELLANEOUS,02/04/14,
270314E,URS SCOTT WILSON LIMITED,5809551,7,429.71,PROF FEES-MISCELLANEOUS,02/04/14,
270314E,URS SCOTT WILSON LIMITED,5809551,8,429.71,PROF FEES-MISCELLANEOUS,02/04/14,
270314E,URS SCOTT WILSON LIMITED,5809551,9,429.71,PROF FEES-MISCELLANEOUS,02/04/14,
310314F,URS SCOTT WILSON LIMITED,5834661,1,"1,353.86",PROF FEES-MISCELLANEOUS,02/04/14,"1,353.86"
270314E,URS SCOTT WILSON LIMITED,5834667,1,444.10,PROF FEES-MISCELLANEOUS,02/04/14,"3,997.01"
270314E,URS SCOTT WILSON LIMITED,5834667,2,444.10,PROF FEES-MISCELLANEOUS,02/04/14,
270314E,URS SCOTT WILSON LIMITED,5834667,3,444.10,PROF FEES-MISCELLANEOUS,02/04/14,
270314E,URS SCOTT WILSON LIMITED,5834667,4,444.10,PROF FEES-MISCELLANEOUS,02/04/14,
270314E,URS SCOTT WILSON LIMITED,5834667,5,444.10,PROF FEES-MISCELLANEOUS,02/04/14,
270314E,URS SCOTT WILSON LIMITED,5834667,6,444.10,PROF FEES-MISCELLANEOUS,02/04/14,
270314E,URS SCOTT WILSON LIMITED,5834667,7,444.10,PROF FEES-MISCELLANEOUS,02/04/14,
270314E,URS SCOTT WILSON LIMITED,5834667,8,444.10,PROF FEES-MISCELLANEOUS,02/04/14,
270314E,URS SCOTT WILSON LIMITED,5834667,9,444.21,PROF FEES-MISCELLANEOUS,02/04/14,
140620,THAMES WATER UTILITIES LTD====,6242955180B,1,250.82,WATER & SEWERAGE RATES,02/04/14,250.82
270314E,MERLIN ELECTRICAL SERVICES LTD,6758,1,"6,286.47",STRATEGIC (CYCLICAL),02/04/14,"6,286.47"
310314F,CANON (UK) LTD===============,770442235,1,390.85,OFFICE EQUIPMENT,02/04/14,390.85
310314F,CANON (UK) LTD===============,770442242,1,390.85,OFFICE EQUIPMENT,02/04/14,390.85
310314F,CANON (UK) LTD===============,770442243,1,390.85,OFFICE EQUIPMENT,02/04/14,390.85
310314F,CANON (UK) LTD===============,770454837,1,390.85,OFFICE EQUIPMENT,02/04/14,390.85
310314F,NEXUS PROPERTY SERVICES,80082,1,"2,741.58",GENERAL,02/04/14,"2,741.58"
310314F,THOMSON REUTERS PROFESSIONAL,9000769460,1,888.00,BOOKS & JOURNALS,02/04/14,888.00
250314E,DRAEGER SAFETY UK LIMITED=====,90440712,1,285.20,PROTECTIVE EQUIPT - PARTS,02/04/14,285.20
210314C,ASTEC SURVEYS LIMITED=========,ASL-14-104,1,175.00,ASBESTOS,02/04/14,350.00
210314C,ASTEC SURVEYS LIMITED=========,ASL-14-104,2,175.00,ASBESTOS,02/04/14,
270314C,THAMES WATER UTILITIES LTD====,CBA1401833,1,"1,185.00",CURRENT HYDRANT COSTS,02/04/14,"1,185.00"
270314C,THAMES WATER UTILITIES LTD====,CBA1402049,1,"1,185.00",CURRENT HYDRANT COSTS,02/04/14,"1,185.00"
270314E,KIER BUILDING SERV ENGINEERS==,F00039358,1,667.00,STRATEGIC (CYCLICAL),02/04/14,"1,484.47"
270314E,KIER BUILDING SERV ENGINEERS==,F00039358,2,817.47,STRATEGIC (CYCLICAL),02/04/14,
310314F,KIER BUILDING SERV ENGINEERS==,F00046818,1,"1,815.00",STRATEGIC (NON CYCLICAL),02/04/14,"1,815.00"
310314F,KIER BUILDING SERV ENGINEERS==,F00047649,1,97.85,STRATEGIC (NON CYCLICAL),02/04/14,"5,433.10"
310314F,KIER BUILDING SERV ENGINEERS==,F00047649,2,308.00,TACTICAL DAY TO DAY,02/04/14,
310314F,KIER BUILDING SERV ENGINEERS==,F00047649,3,461.06,TACTICAL DAY TO DAY,02/04/14,
310314F,KIER BUILDING SERV ENGINEERS==,F00047649,4,219.41,TACTICAL DAY TO DAY,02/04/14,
310314F,KIER BUILDING SERV ENGINEERS==,F00047649,5,131.96,TACTICAL DAY TO DAY,02/04/14,
310314F,KIER BUILDING SERV ENGINEERS==,F00047649,6,230.92,TACTICAL DAY TO DAY,02/04/14,
310314F,KIER BUILDING SERV ENGINEERS==,F00047649,7,65.98,TACTICAL DAY TO DAY,02/04/14,
310314F,KIER BUILDING SERV ENGINEERS==,F00047649,8,90.71,TACTICAL DAY TO DAY,02/04/14,
310314F,KIER BUILDING SERV ENGINEERS==,F00047649,9,18.60,TACTICAL DAY TO DAY,02/04/14,
310314F,KIER BUILDING SERV ENGINEERS==,F00047649,10,72.89,TACTICAL DAY TO DAY,02/04/14,
310314F,KIER BUILDING SERV ENGINEERS==,F00047649,11,"1,925.89",STRATEGIC (NON CYCLICAL),02/04/14,
310314F,KIER BUILDING SERV ENGINEERS==,F00047649,12,61.45,TACTICAL DAY TO DAY,02/04/14,
310314F,KIER BUILDING SERV ENGINEERS==,F00047649,13,50.03,TACTICAL DAY TO DAY,02/04/14,
310314F,KIER BUILDING SERV ENGINEERS==,F00047649,14,32.38,TACTICAL DAY TO DAY,02/04/14,
310314F,KIER BUILDING SERV ENGINEERS==,F00047649,15,123.75,TACTICAL DAY TO DAY,02/04/14,
310314F,KIER BUILDING SERV ENGINEERS==,F00047649,16,203.74,TACTICAL DAY TO DAY,02/04/14,
310314F,KIER BUILDING SERV ENGINEERS==,F00047649,17,234.76,TACTICAL DAY TO DAY,02/04/14,
310314F,KIER BUILDING SERV ENGINEERS==,F00047649,18,118.98,TACTICAL DAY TO DAY,02/04/14,
310314F,KIER BUILDING SERV ENGINEERS==,F00047649,19,128.90,TACTICAL DAY TO DAY,02/04/14,
310314F,KIER BUILDING SERV ENGINEERS==,F00047649,20,170.53,TACTICAL DAY TO DAY,02/04/14,
310314F,KIER BUILDING SERV ENGINEERS==,F00047649,21,140.83,TACTICAL DAY TO DAY,02/04/14,
310314F,KIER BUILDING SERV ENGINEERS==,F00047649,22,247.50,TACTICAL DAY TO DAY,02/04/14,
310314F,KIER BUILDING SERV ENGINEERS==,F00047649,23,188.38,TACTICAL DAY TO DAY,02/04/14,
310314F,KIER BUILDING SERV ENGINEERS==,F00047649,24,60.03,TACTICAL DAY TO DAY,02/04/14,
310314F,KIER BUILDING SERV ENGINEERS==,F00047649,25,48.57,TACTICAL DAY TO DAY,02/04/14,
200314E,HALL FUELS,I06716190,1,"4,330.40",FUEL,02/04/14,"4,330.40"
310314F,HALL FUELS,I06719861,1,488.23,FUEL,02/04/14,488.23
250314E,OPP LTD=======================,INV0487805,1,"1,501.50",ASSESSMENTS,02/04/14,"1,501.50"
310314F,DODS PARLIAMENTARY COMM LTD==,PK074242,1,295.00,PROFESSIONAL DEVELOPMENT,02/04/14,295.00
240314G,MAYPLACE PROPERTY SERVICES LIM,SI1028,1,"4,997.06",STRATEGIC (NON CYCLICAL),02/04/14,"7,337.81"
240314G,MAYPLACE PROPERTY SERVICES LIM,SI1028,2,"2,340.75",STRATEGIC (NON CYCLICAL),02/04/14,
250314C,BABCOCK CRITICAL SERVICES LTD,SIMP012703,1,"9,800.00",VEHICLES,02/04/14,"9,800.00"
250314C,GROUND CONTROL UMITED,SIN033730,1,79.85,GROUNDS MAINTENANCE,02/04/14,782.42
250314C,GROUND CONTROL UMITED,SIN033730,2,13.00,GROUNDS MAINTENANCE,02/04/14,
250314C,GROUND CONTROL UMITED,SIN033730,3,49.46,GROUNDS MAINTENANCE,02/04/14,
250314C,GROUND CONTROL UMITED,SIN033730,4,34.55,GROUNDS MAINTENANCE,02/04/14,
250314C,GROUND CONTROL UMITED,SIN033730,5,14.29,GROUNDS MAINTENANCE,02/04/14,
250314C,GROUND CONTROL UMITED,SIN033730,6,14.29,GROUNDS MAINTENANCE,02/04/14,
250314C,GROUND CONTROL UMITED,SIN033730,7,41.30,GROUNDS MAINTENANCE,02/04/14,
250314C,GROUND CONTROL UMITED,SIN033730,8,41.30,GROUNDS MAINTENANCE,02/04/14,
250314C,GROUND CONTROL UMITED,SIN033730,9,13.00,GROUNDS MAINTENANCE,02/04/14,
250314C,GROUND CONTROL UMITED,SIN033730,10,13.00,GROUNDS MAINTENANCE,02/04/14,
250314C,GROUND CONTROL UMITED,SIN033730,11,45.21,GROUNDS MAINTENANCE,02/04/14,
250314C,GROUND CONTROL UMITED,SIN033730,12,41.30,GROUNDS MAINTENANCE,02/04/14,
250314C,GROUND CONTROL UMITED,SIN033730,13,13.00,GROUNDS MAINTENANCE,02/04/14,
250314C,GROUND CONTROL UMITED,SIN033730,14,13.00,GROUNDS MAINTENANCE,02/04/14,
250314C,GROUND CONTROL UMITED,SIN033730,15,13.00,GROUNDS MAINTENANCE,02/04/14,
250314C,GROUND CONTROL UMITED,SIN033730,16,13.00,GROUNDS MAINTENANCE,02/04/14,
250314C,GROUND CONTROL UMITED,SIN033730,17,13.00,GROUNDS MAINTENANCE,02/04/14,
250314C,GROUND CONTROL UMITED,SIN033730,18,13.00,GROUNDS MAINTENANCE,02/04/14,
250314C,GROUND CONTROL UMITED,SIN033730,19,64.69,GROUNDS MAINTENANCE,02/04/14,
250314C,GROUND CONTROL UMITED,SIN033730,20,13.00,GROUNDS MAINTENANCE,02/04/14,
250314C,GROUND CONTROL UMITED,SIN033730,21,13.00,GROUNDS MAINTENANCE,02/04/14,
250314C,GROUND CONTROL UMITED,SIN033730,22,34.55,GROUNDS MAINTENANCE,02/04/14,
250314C,GROUND CONTROL UMITED,SIN033730,23,13.00,GROUNDS MAINTENANCE,02/04/14,
250314C,GROUND CONTROL UMITED,SIN033730,24,34.55,GROUNDS MAINTENANCE,02/04/14,
250314C,GROUND CONTROL UMITED,SIN033730,25,38.46,GROUNDS MAINTENANCE,02/04/14,
250314C,GROUND CONTROL UMITED,SIN033730,26,38.46,GROUNDS MAINTENANCE,02/04/14,
250314C,GROUND CONTROL UMITED,SIN033730,27,13.00,GROUNDS MAINTENANCE,02/04/14,
250314C,GROUND CONTROL UMITED,SIN033730,28,13.00,GROUNDS MAINTENANCE,02/04/14,
250314C,GROUND CONTROL UMITED,SIN033730,29,13.00,GROUNDS MAINTENANCE,02/04/14,
250314C,GROUND CONTROL UMITED,SIN033730,30,6.50,GROUNDS MAINTENANCE,02/04/14,
250314C,GROUND CONTROL UMITED,SIN033730,31,8.66,GROUNDS MAINTENANCE,02/04/14,
270314C,COLLINS (CONTRACTORS) LTD=====,SPAN269,1,780.00,STRATEGIC (NON CYCLICAL),02/04/14,780.00
260314C,MORRISEY ELECTRICAL & BUILDING,TWO,1,"25,195.76",DEVELOPMENT  EXPENSES-CONTRACT,02/04/14,"25,195.76"
020414C,MOOLANDS LTD,00000423,1,"2,487.00",STRATEGIC (NON CYCLICAL),07/04/14,"2,487.00"
020414C,MOOLANDS LTD,00000431,1,624.00,STRATEGIC (NON CYCLICAL),07/04/14,624.00
020414C,MOOLANDS LTD,00000432,1,"1,245.00",STRATEGIC (NON CYCLICAL),07/04/14,"1,245.00"
020414C,MOOLANDS LTD,00000449,1,"11,427.00",STRATEGIC (NON CYCLICAL),07/04/14,"11,427.00"
020414C,MOOLANDS LTD,00000546,1,"3,789.00",STRATEGIC (NON CYCLICAL),07/04/14,"3,789.00"
020414C,HEALTH MANAGEMENT LIMITED=====,0000109271,1,"20,300.00",CONSULTANTS,07/04/14,"20,300.00"
020414C,ADAM PHONES LTD===============,01039552,1,448.00,CELLULAR TELEPHONES,07/04/14,448.00
140623,THAMES WATER UTILITIES LTD====,0770723316L,1,404.50,WATER & SEWERAGE RATES,07/04/14,404.50
020414C,BT GLOBAL SERVICES============,0790113455,1,500.02,TELECOMMUNICATIONS,07/04/14,500.02
800033352,AZTEC COMPUTING LTD===========,10440,1,"4,312.50",CONSULTANTS,07/04/14,"4,312.50"
800033353,AZTEC COMPUTING LTD===========,10441,1,"1,750.00",TELECOMMUNICATIONS,07/04/14,"1,750.00"
800033354,AZTEC COMPUTING LTD===========,10442,1,"1,400.00",TELECOMMUNICATIONS,07/04/14,"1,400.00"
800033355,AZTEC COMPUTING LTD===========,10443,1,"1,400.00",OPERATIONAL EQUIP-PURCHASE,07/04/14,"1,400.00"
800033356,AZTEC COMPUTING LTD===========,10444,1,"4,200.00",TELECOMMUNICATIONS,07/04/14,"4,200.00"
800033357,AZTEC COMPUTING LTD===========,10445,1,"2,100.00",MAINTENANCE & SUPPORT,07/04/14,"2,100.00"
800033358,AZTEC COMPUTING LTD===========,10446,1,"1,400.00",MAINTENANCE & SUPPORT,07/04/14,"1,400.00"
800033377,AZTEC COMPUTING LTD===========,10447,1,"3,375.00",CONSULTANTS,07/04/14,"3,375.00"
800033360,AZTEC COMPUTING LTD===========,10448,1,"2,800.00",TELECOMMUNICATIONS,07/04/14,"2,800.00"
260314C,*SPRUE SAFETY PRODUCTS LTD====,1058787,1,988.80,FIRE DETECTORS,07/04/14,988.80
310314F,*SPRUE SAFETY PRODUCTS LTD====,1058790,1,988.80,FIRE DETECTORS,07/04/14,988.80
260314C,*SPRUE SAFETY PRODUCTS LTD====,1058791,1,370.80,FIRE DETECTORS,07/04/14,370.80
260314C,*SPRUE SAFETY PRODUCTS LTD====,1058792,1,988.80,FIRE DETECTORS,07/04/14,988.80
260314C,*SPRUE SAFETY PRODUCTS LTD====,1058793,1,370.80,FIRE DETECTORS,07/04/14,370.80
260314C,*SPRUE SAFETY PRODUCTS LTD====,1058794,1,988.80,FIRE DETECTORS,07/04/14,988.80
260314C,*SPRUE SAFETY PRODUCTS LTD====,1058795,1,"1,730.40",FIRE DETECTORS,07/04/14,"1,730.40"
260314C,*SPRUE SAFETY PRODUCTS LTD====,1058811,1,"1,730.40",FIRE DETECTORS,07/04/14,"1,730.40"
310314F,*SPRUE SAFETY PRODUCTS LTD====,1058812,1,988.80,FIRE DETECTORS,07/04/14,988.80
260314C,*SPRUE SAFETY PRODUCTS LTD====,1058813,1,123.60,FIRE DETECTORS,07/04/14,988.80
260314C,*SPRUE SAFETY PRODUCTS LTD====,1058813,2,865.20,FIRE DETECTORS,07/04/14,
260314C,*SPRUE SAFETY PRODUCTS LTD====,1058814,1,123.60,FIRE DETECTORS,07/04/14,"1,730.40"
260314C,*SPRUE SAFETY PRODUCTS LTD====,1058814,2,"1,606.80",FIRE DETECTORS,07/04/14,
310314F,*SPRUE SAFETY PRODUCTS LTD====,1058815,1,988.80,FIRE DETECTORS,07/04/14,988.80
800033225,*JAMES HUNTER (OUTFITTERS) LTD,107576,1,325.42,CLOTHING,07/04/14,325.42
020414C,SPECTRUM======================,1087,1,520.00,SPECIALIST EQUIPMENT,07/04/14,520.00
020414C,BT GLOBAL SERVICES============,1129433,1,541.66,TELECOMMUNICATIONS,07/04/14,541.66
020414C,INFOR (UNITED KINGDOM) LIMITED,11401518-GB04G,1,"1,070.00",MAINTENANCE & SUPPORT,07/04/14,"1,640.67"
020414C,INFOR (UNITED KINGDOM) LIMITED,11401518-GB04G,2,570.67,MAINTENANCE & SUPPORT,07/04/14,
800033451,*NPS (SHOES) LTD,12837,1,29.45,CLOTHING,07/04/14,"2,284.40"
800033451,*NPS (SHOES) LTD,12837,2,29.45,CLOTHING,07/04/14,
800033451,*NPS (SHOES) LTD,12837,3,29.45,CLOTHING,07/04/14,
800033451,*NPS (SHOES) LTD,12837,4,29.45,CLOTHING,07/04/14,
800033451,*NPS (SHOES) LTD,12837,5,30.05,CLOTHING,07/04/14,
800033451,*NPS (SHOES) LTD,12837,6,30.05,CLOTHING,07/04/14,
800033451,*NPS (SHOES) LTD,12837,7,30.05,CLOTHING,07/04/14,
800033451,*NPS (SHOES) LTD,12837,8,30.05,CLOTHING,07/04/14,
800033451,*NPS (SHOES) LTD,12837,9,30.05,CLOTHING,07/04/14,
800033451,*NPS (SHOES) LTD,12837,10,30.05,CLOTHING,07/04/14,
800033451,*NPS (SHOES) LTD,12837,11,30.05,CLOTHING,07/04/14,
800033451,*NPS (SHOES) LTD,12837,12,30.05,CLOTHING,07/04/14,
800033451,*NPS (SHOES) LTD,12837,13,30.05,CLOTHING,07/04/14,
800033451,*NPS (SHOES) LTD,12837,14,30.05,CLOTHING,07/04/14,
800033451,*NPS (SHOES) LTD,12837,15,30.05,CLOTHING,07/04/14,
800033451,*NPS (SHOES) LTD,12837,16,30.05,CLOTHING,07/04/14,
800033451,*NPS (SHOES) LTD,12837,17,30.05,CLOTHING,07/04/14,
800033451,*NPS (SHOES) LTD,12837,18,30.05,CLOTHING,07/04/14,
800033451,*NPS (SHOES) LTD,12837,19,30.05,CLOTHING,07/04/14,
800033451,*NPS (SHOES) LTD,12837,20,30.05,CLOTHING,07/04/14,
800033451,*NPS (SHOES) LTD,12837,21,29.45,CLOTHING,07/04/14,
800033451,*NPS (SHOES) LTD,12837,22,29.45,CLOTHING,07/04/14,
800033451,*NPS (SHOES) LTD,12837,23,29.45,CLOTHING,07/04/14,
800033451,*NPS (SHOES) LTD,12837,24,30.05,CLOTHING,07/04/14,
800033451,*NPS (SHOES) LTD,12837,25,30.05,CLOTHING,07/04/14,
800033451,*NPS (SHOES) LTD,12837,26,30.05,CLOTHING,07/04/14,
800033451,*NPS (SHOES) LTD,12837,27,30.05,CLOTHING,07/04/14,
800033451,*NPS (SHOES) LTD,12837,28,30.05,CLOTHING,07/04/14,
800033451,*NPS (SHOES) LTD,12837,29,29.45,CLOTHING,07/04/14,
800033451,*NPS (SHOES) LTD,12837,30,29.45,CLOTHING,07/04/14,
800033451,*NPS (SHOES) LTD,12837,31,29.45,CLOTHING,07/04/14,
800033451,*NPS (SHOES) LTD,12837,32,29.45,CLOTHING,07/04/14,
800033451,*NPS (SHOES) LTD,12837,33,29.45,CLOTHING,07/04/14,
800033451,*NPS (SHOES) LTD,12837,34,29.45,CLOTHING,07/04/14,
800033451,*NPS (SHOES) LTD,12837,35,29.45,CLOTHING,07/04/14,
800033451,*NPS (SHOES) LTD,12837,36,29.45,CLOTHING,07/04/14,
800033451,*NPS (SHOES) LTD,12837,37,29.45,CLOTHING,07/04/14,
800033451,*NPS (SHOES) LTD,12837,38,29.45,CLOTHING,07/04/14,
800033451,*NPS (SHOES) LTD,12837,39,29.45,CLOTHING,07/04/14,
800033451,*NPS (SHOES) LTD,12837,40,29.45,CLOTHING,07/04/14,
800033451,*NPS (SHOES) LTD,12837,41,29.45,CLOTHING,07/04/14,
800033451,*NPS (SHOES) LTD,12837,42,29.45,CLOTHING,07/04/14,
800033451,*NPS (SHOES) LTD,12837,43,29.45,CLOTHING,07/04/14,
800033451,*NPS (SHOES) LTD,12837,44,29.45,CLOTHING,07/04/14,
800033451,*NPS (SHOES) LTD,12837,45,29.45,CLOTHING,07/04/14,
800033451,*NPS (SHOES) LTD,12837,46,41.10,CLOTHING,07/04/14,
800033451,*NPS (SHOES) LTD,12837,47,41.10,CLOTHING,07/04/14,
800033451,*NPS (SHOES) LTD,12837,48,41.10,CLOTHING,07/04/14,
800033451,*NPS (SHOES) LTD,12837,49,41.10,CLOTHING,07/04/14,
800033451,*NPS (SHOES) LTD,12837,50,30.05,CLOTHING,07/04/14,
800033451,*NPS (SHOES) LTD,12837,51,30.05,CLOTHING,07/04/14,
800033451,*NPS (SHOES) LTD,12837,52,30.05,CLOTHING,07/04/14,
800033451,*NPS (SHOES) LTD,12837,53,30.05,CLOTHING,07/04/14,
800033451,*NPS (SHOES) LTD,12837,54,30.05,CLOTHING,07/04/14,
800033451,*NPS (SHOES) LTD,12837,55,30.05,CLOTHING,07/04/14,
800033451,*NPS (SHOES) LTD,12837,56,30.05,CLOTHING,07/04/14,
800033451,*NPS (SHOES) LTD,12837,57,29.45,CLOTHING,07/04/14,
800033451,*NPS (SHOES) LTD,12837,58,30.05,CLOTHING,07/04/14,
800033451,*NPS (SHOES) LTD,12837,59,29.45,CLOTHING,07/04/14,
800033451,*NPS (SHOES) LTD,12837,60,29.45,CLOTHING,07/04/14,
800033451,*NPS (SHOES) LTD,12837,61,29.45,CLOTHING,07/04/14,
800033451,*NPS (SHOES) LTD,12837,62,29.45,CLOTHING,07/04/14,
800033451,*NPS (SHOES) LTD,12837,63,29.45,CLOTHING,07/04/14,
800033451,*NPS (SHOES) LTD,12837,64,29.45,CLOTHING,07/04/14,
800033451,*NPS (SHOES) LTD,12837,65,29.45,CLOTHING,07/04/14,
800033451,*NPS (SHOES) LTD,12837,66,29.45,CLOTHING,07/04/14,
800033451,*NPS (SHOES) LTD,12837,67,29.45,CLOTHING,07/04/14,
800033451,*NPS (SHOES) LTD,12837,68,29.45,CLOTHING,07/04/14,
800033451,*NPS (SHOES) LTD,12837,69,29.45,CLOTHING,07/04/14,
800033451,*NPS (SHOES) LTD,12837,70,29.45,CLOTHING,07/04/14,
800033451,*NPS (SHOES) LTD,12837,71,29.45,CLOTHING,07/04/14,
800033451,*NPS (SHOES) LTD,12837,72,29.45,CLOTHING,07/04/14,
800033451,*NPS (SHOES) LTD,12837,73,29.45,CLOTHING,07/04/14,
800033451,*NPS (SHOES) LTD,12837,74,29.45,CLOTHING,07/04/14,
800033451,*NPS (SHOES) LTD,12837,75,41.10,CLOTHING,07/04/14,
020414C,AGE CONCERN HAVERING==========,13080,1,595.00,COMMUNITY RELATIONS,07/04/14,595.00
020414C,AGE CONCERN HAVERING==========,13093,1,455.00,COMMUNITY RELATIONS,07/04/14,455.00
140623,AFFINITY WATER,13273822C,1,382.16,WATER & SEWERAGE RATES,07/04/14,382.16
020414C,BUREAU VERITAS HS&E LTD=======,14003959,1,"95,626.48",SCIENTIFIC SERVICES,07/04/14,"95,626.48"
020414C,RESPIREX======================,145782,1,"7,500.00",PROTECTIVE EQUIPMENT,07/04/14,"7,500.00"
020414C,RESPIREX======================,145802,1,140.31,REPAIR & MAINTENANCE,07/04/14,644.35
020414C,RESPIREX======================,145802,2,237.02,PROTECTIVE EQUIPMENT,07/04/14,
020414C,RESPIREX======================,145802,3,267.02,REPAIR & MAINTENANCE,07/04/14,
020414C,COMMUNITIES & LOCAL GOVERNMENT,1800019744,1,"123,093.55",MAINTENANCE & SUPPORT,07/04/14,"131,117.65"
020414C,COMMUNITIES & LOCAL GOVERNMENT,1800019744,2,"8,024.10",MAINTENANCE & SUPPORT,07/04/14,
020414C,THORNS GROUP,189842/2.2,1,749.16,PUBLIC RELATIONS,07/04/14,749.16
020414C,ARKAS LIMITED=================,25115,1,206.09,STRATEGIC (CYCLICAL),07/04/14,914.09
020414C,ARKAS LIMITED=================,25115,2,263.50,STRATEGIC (CYCLICAL),07/04/14,
020414C,ARKAS LIMITED=================,25115,3,181.00,STRATEGIC (CYCLICAL),07/04/14,
020414C,ARKAS LIMITED=================,25115,4,263.50,STRATEGIC (CYCLICAL),07/04/14,
020414C,ARKAS LIMITED=================,25116,1,421.48,STRATEGIC (CYCLICAL),07/04/14,"2,233.41"
020414C,ARKAS LIMITED=================,25116,2,583.78,STRATEGIC (CYCLICAL),07/04/14,
020414C,ARKAS LIMITED=================,25116,3,379.00,STRATEGIC (CYCLICAL),07/04/14,
020414C,ARKAS LIMITED=================,25116,4,849.15,STRATEGIC (CYCLICAL),07/04/14,
020414C,ARKAS LIMITED=================,25117,1,812.49,STRATEGIC (CYCLICAL),07/04/14,"1,371.99"
020414C,ARKAS LIMITED=================,25117,2,181.00,STRATEGIC (CYCLICAL),07/04/14,
020414C,ARKAS LIMITED=================,25117,3,197.50,STRATEGIC (CYCLICAL),07/04/14,
020414C,ARKAS LIMITED=================,25117,4,181.00,STRATEGIC (CYCLICAL),07/04/14,
020414C,ARKAS LIMITED=================,25118,1,214.00,STRATEGIC (CYCLICAL),07/04/14,777.76
020414C,ARKAS LIMITED=================,25118,2,185.26,STRATEGIC (CYCLICAL),07/04/14,
020414C,ARKAS LIMITED=================,25118,3,214.00,STRATEGIC (CYCLICAL),07/04/14,
020414C,ARKAS LIMITED=================,25118,4,164.50,STRATEGIC (CYCLICAL),07/04/14,
020414C,ARKAS LIMITED=================,25119,1,282.05,TACTICAL DAY TO DAY,07/04/14,877.94
020414C,ARKAS LIMITED=================,25119,2,181.00,STRATEGIC (CYCLICAL),07/04/14,
020414C,ARKAS LIMITED=================,25119,3,233.89,STRATEGIC (CYCLICAL),07/04/14,
020414C,ARKAS LIMITED=================,25119,4,181.00,STRATEGIC (CYCLICAL),07/04/14,
020414C,ARKAS LIMITED=================,25120,1,234.76,STRATEGIC (CYCLICAL),07/04/14,681.88
020414C,ARKAS LIMITED=================,25120,2,181.00,TACTICAL DAY TO DAY,07/04/14,
020414C,ARKAS LIMITED=================,25120,3,266.12,STRATEGIC (CYCLICAL),07/04/14,
140623,THAMES WATER UTILITIES LTD====,25599-01112C,1,380.52,WATER & SEWERAGE RATES,07/04/14,380.52
020414C,STORM TECHNOLOGIES============,266019,1,"1,575.00",STRATEGIC (NON CYCLICAL),07/04/14,"1,575.00"
800033299,ADECCO UK LIMITED=============,26731743,1,"1,199.80",FRS STAFF AGENCY,07/04/14,"1,199.80"
800033322,ADECCO UK LIMITED=============,26735144,1,"1,241.25",FRS STAFF AGENCY,07/04/14,"1,241.25"
800033323,ADECCO UK LIMITED=============,26735145,1,"1,241.25",FRS STAFF AGENCY,07/04/14,"1,241.25"
800033324,ADECCO UK LIMITED=============,26735146,1,"1,241.25",FRS STAFF AGENCY,07/04/14,"1,241.25"
020414C,EVOLUTION ENVIRONMENTAL LTD,3024*,1,185.00,ASBESTOS,07/04/14,565.00
020414C,EVOLUTION ENVIRONMENTAL LTD,3024*,2,185.00,ASBESTOS,07/04/14,
020414C,EVOLUTION ENVIRONMENTAL LTD,3024*,3,195.00,ASBESTOS,07/04/14,
020414C,BRISTOL UNIFORMS LTD==========,3108385,1,262.92,CLOTHING,07/04/14,262.92
020414E,BRISTOL UNIFORMS LTD==========,3108386,1,338.88,CLOTHING,07/04/14,338.88
020414C,BRISTOL UNIFORMS LTD==========,3108389,1,338.88,CLOTHING,07/04/14,338.88
020414C,CK DIRECT,3212,1,"2,857.00",CATERING FIXTURES,07/04/14,"2,857.00"
020414C,CK DIRECT,3434,1,"8,565.00",STRATEGIC (NON CYCLICAL),07/04/14,"8,565.00"
020414C,KNIGHTON CLEANING SERVICES LTD,37806,1,140.00,SPECIAL CLEANS,07/04/14,"7,840.00"
020414C,KNIGHTON CLEANING SERVICES LTD,37806,2,140.00,SPECIAL CLEANS,07/04/14,
020414C,KNIGHTON CLEANING SERVICES LTD,37806,3,140.00,SPECIAL CLEANS,07/04/14,
020414C,KNIGHTON CLEANING SERVICES LTD,37806,4,140.00,SPECIAL CLEANS,07/04/14,
020414C,KNIGHTON CLEANING SERVICES LTD,37806,5,140.00,SPECIAL CLEANS,07/04/14,
020414C,KNIGHTON CLEANING SERVICES LTD,37806,6,140.00,SPECIAL CLEANS,07/04/14,
020414C,KNIGHTON CLEANING SERVICES LTD,37806,7,140.00,SPECIAL CLEANS,07/04/14,
020414C,KNIGHTON CLEANING SERVICES LTD,37806,8,140.00,SPECIAL CLEANS,07/04/14,
020414C,KNIGHTON CLEANING SERVICES LTD,37806,9,140.00,SPECIAL CLEANS,07/04/14,
020414C,KNIGHTON CLEANING SERVICES LTD,37806,10,140.00,SPECIAL CLEANS,07/04/14,
020414C,KNIGHTON CLEANING SERVICES LTD,37806,11,140.00,SPECIAL CLEANS,07/04/14,
020414C,KNIGHTON CLEANING SERVICES LTD,37806,12,140.00,SPECIAL CLEANS,07/04/14,
020414C,KNIGHTON CLEANING SERVICES LTD,37806,13,140.00,SPECIAL CLEANS,07/04/14,
020414C,KNIGHTON CLEANING SERVICES LTD,37806,14,140.00,SPECIAL CLEANS,07/04/14,
020414C,KNIGHTON CLEANING SERVICES LTD,37806,15,140.00,SPECIAL CLEANS,07/04/14,
020414C,KNIGHTON CLEANING SERVICES LTD,37806,16,140.00,SPECIAL CLEANS,07/04/14,
020414C,KNIGHTON CLEANING SERVICES LTD,37806,17,140.00,SPECIAL CLEANS,07/04/14,
020414C,KNIGHTON CLEANING SERVICES LTD,37806,18,140.00,SPECIAL CLEANS,07/04/14,
020414C,KNIGHTON CLEANING SERVICES LTD,37806,19,140.00,SPECIAL CLEANS,07/04/14,
020414C,KNIGHTON CLEANING SERVICES LTD,37806,20,140.00,SPECIAL CLEANS,07/04/14,
020414C,KNIGHTON CLEANING SERVICES LTD,37806,21,140.00,SPECIAL CLEANS,07/04/14,
020414C,KNIGHTON CLEANING SERVICES LTD,37806,22,140.00,SPECIAL CLEANS,07/04/14,
020414C,KNIGHTON CLEANING SERVICES LTD,37806,23,140.00,SPECIAL CLEANS,07/04/14,
020414C,KNIGHTON CLEANING SERVICES LTD,37806,24,140.00,SPECIAL CLEANS,07/04/14,
020414C,KNIGHTON CLEANING SERVICES LTD,37806,25,140.00,SPECIAL CLEANS,07/04/14,
020414C,KNIGHTON CLEANING SERVICES LTD,37806,26,140.00,SPECIAL CLEANS,07/04/14,
020414C,KNIGHTON CLEANING SERVICES LTD,37806,27,140.00,SPECIAL CLEANS,07/04/14,
020414C,KNIGHTON CLEANING SERVICES LTD,37806,28,140.00,SPECIAL CLEANS,07/04/14,
020414C,KNIGHTON CLEANING SERVICES LTD,37806,29,140.00,SPECIAL CLEANS,07/04/14,
020414C,KNIGHTON CLEANING SERVICES LTD,37806,30,140.00,SPECIAL CLEANS,07/04/14,
020414C,KNIGHTON CLEANING SERVICES LTD,37806,31,140.00,SPECIAL CLEANS,07/04/14,
020414C,KNIGHTON CLEANING SERVICES LTD,37806,32,140.00,SPECIAL CLEANS,07/04/14,
020414C,KNIGHTON CLEANING SERVICES LTD,37806,33,140.00,SPECIAL CLEANS,07/04/14,
020414C,KNIGHTON CLEANING SERVICES LTD,37806,34,140.00,SPECIAL CLEANS,07/04/14,
020414C,KNIGHTON CLEANING SERVICES LTD,37806,35,140.00,SPECIAL CLEANS,07/04/14,
020414C,KNIGHTON CLEANING SERVICES LTD,37806,36,140.00,SPECIAL CLEANS,07/04/14,
020414C,KNIGHTON CLEANING SERVICES LTD,37806,37,140.00,SPECIAL CLEANS,07/04/14,
020414C,KNIGHTON CLEANING SERVICES LTD,37806,38,140.00,SPECIAL CLEANS,07/04/14,
020414C,KNIGHTON CLEANING SERVICES LTD,37806,39,140.00,SPECIAL CLEANS,07/04/14,
020414C,KNIGHTON CLEANING SERVICES LTD,37806,40,140.00,SPECIAL CLEANS,07/04/14,
020414C,KNIGHTON CLEANING SERVICES LTD,37806,41,140.00,SPECIAL CLEANS,07/04/14,
020414C,KNIGHTON CLEANING SERVICES LTD,37806,42,140.00,SPECIAL CLEANS,07/04/14,
020414C,KNIGHTON CLEANING SERVICES LTD,37806,43,140.00,SPECIAL CLEANS,07/04/14,
020414C,KNIGHTON CLEANING SERVICES LTD,37806,44,140.00,SPECIAL CLEANS,07/04/14,
020414C,KNIGHTON CLEANING SERVICES LTD,37806,45,140.00,SPECIAL CLEANS,07/04/14,
020414C,KNIGHTON CLEANING SERVICES LTD,37806,46,140.00,SPECIAL CLEANS,07/04/14,
020414C,KNIGHTON CLEANING SERVICES LTD,37806,47,140.00,SPECIAL CLEANS,07/04/14,
020414C,KNIGHTON CLEANING SERVICES LTD,37806,48,140.00,SPECIAL CLEANS,07/04/14,
020414C,KNIGHTON CLEANING SERVICES LTD,37806,49,140.00,SPECIAL CLEANS,07/04/14,
020414C,KNIGHTON CLEANING SERVICES LTD,37806,50,140.00,SPECIAL CLEANS,07/04/14,
020414C,KNIGHTON CLEANING SERVICES LTD,37806,51,140.00,SPECIAL CLEANS,07/04/14,
020414C,KNIGHTON CLEANING SERVICES LTD,37806,52,140.00,SPECIAL CLEANS,07/04/14,
020414C,KNIGHTON CLEANING SERVICES LTD,37806,53,140.00,SPECIAL CLEANS,07/04/14,
020414C,KNIGHTON CLEANING SERVICES LTD,37806,54,140.00,SPECIAL CLEANS,07/04/14,
020414C,KNIGHTON CLEANING SERVICES LTD,37806,55,140.00,SPECIAL CLEANS,07/04/14,
020414C,KNIGHTON CLEANING SERVICES LTD,37806,56,140.00,SPECIAL CLEANS,07/04/14,
020414C,BRAMBLE.CC LTD================,3786,1,"14,711.98",PURCHASES-SOFTWARE,07/04/14,"14,711.98"
020414C,KNIGHTON CLEANING SERVICES LTD,38707,1,150.00,SPECIAL CLEANS,07/04/14,"8,400.00"
020414C,KNIGHTON CLEANING SERVICES LTD,38707,2,150.00,SPECIAL CLEANS,07/04/14,
020414C,KNIGHTON CLEANING SERVICES LTD,38707,3,150.00,SPECIAL CLEANS,07/04/14,
020414C,KNIGHTON CLEANING SERVICES LTD,38707,4,150.00,SPECIAL CLEANS,07/04/14,
020414C,KNIGHTON CLEANING SERVICES LTD,38707,5,150.00,SPECIAL CLEANS,07/04/14,
020414C,KNIGHTON CLEANING SERVICES LTD,38707,6,150.00,SPECIAL CLEANS,07/04/14,
020414C,KNIGHTON CLEANING SERVICES LTD,38707,7,150.00,SPECIAL CLEANS,07/04/14,
020414C,KNIGHTON CLEANING SERVICES LTD,38707,8,150.00,SPECIAL CLEANS,07/04/14,
020414C,KNIGHTON CLEANING SERVICES LTD,38707,9,150.00,SPECIAL CLEANS,07/04/14,
020414C,KNIGHTON CLEANING SERVICES LTD,38707,10,150.00,SPECIAL CLEANS,07/04/14,
020414C,KNIGHTON CLEANING SERVICES LTD,38707,11,150.00,SPECIAL CLEANS,07/04/14,
020414C,KNIGHTON CLEANING SERVICES LTD,38707,12,150.00,SPECIAL CLEANS,07/04/14,
020414C,KNIGHTON CLEANING SERVICES LTD,38707,13,150.00,SPECIAL CLEANS,07/04/14,
020414C,KNIGHTON CLEANING SERVICES LTD,38707,14,150.00,SPECIAL CLEANS,07/04/14,
020414C,KNIGHTON CLEANING SERVICES LTD,38707,15,150.00,SPECIAL CLEANS,07/04/14,
020414C,KNIGHTON CLEANING SERVICES LTD,38707,16,150.00,SPECIAL CLEANS,07/04/14,
020414C,KNIGHTON CLEANING SERVICES LTD,38707,17,150.00,SPECIAL CLEANS,07/04/14,
020414C,KNIGHTON CLEANING SERVICES LTD,38707,18,150.00,SPECIAL CLEANS,07/04/14,
020414C,KNIGHTON CLEANING SERVICES LTD,38707,19,150.00,SPECIAL CLEANS,07/04/14,
020414C,KNIGHTON CLEANING SERVICES LTD,38707,20,150.00,SPECIAL CLEANS,07/04/14,
020414C,KNIGHTON CLEANING SERVICES LTD,38707,21,150.00,SPECIAL CLEANS,07/04/14,
020414C,KNIGHTON CLEANING SERVICES LTD,38707,22,150.00,SPECIAL CLEANS,07/04/14,
020414C,KNIGHTON CLEANING SERVICES LTD,38707,23,150.00,SPECIAL CLEANS,07/04/14,
020414C,KNIGHTON CLEANING SERVICES LTD,38707,24,150.00,SPECIAL CLEANS,07/04/14,
020414C,KNIGHTON CLEANING SERVICES LTD,38707,25,150.00,SPECIAL CLEANS,07/04/14,
020414C,KNIGHTON CLEANING SERVICES LTD,38707,26,150.00,SPECIAL CLEANS,07/04/14,
020414C,KNIGHTON CLEANING SERVICES LTD,38707,27,150.00,SPECIAL CLEANS,07/04/14,
020414C,KNIGHTON CLEANING SERVICES LTD,38707,28,150.00,SPECIAL CLEANS,07/04/14,
020414C,KNIGHTON CLEANING SERVICES LTD,38707,29,150.00,SPECIAL CLEANS,07/04/14,
020414C,KNIGHTON CLEANING SERVICES LTD,38707,30,150.00,SPECIAL CLEANS,07/04/14,
020414C,KNIGHTON CLEANING SERVICES LTD,38707,31,150.00,SPECIAL CLEANS,07/04/14,
020414C,KNIGHTON CLEANING SERVICES LTD,38707,32,150.00,SPECIAL CLEANS,07/04/14,
020414C,KNIGHTON CLEANING SERVICES LTD,38707,33,150.00,SPECIAL CLEANS,07/04/14,
020414C,KNIGHTON CLEANING SERVICES LTD,38707,34,150.00,SPECIAL CLEANS,07/04/14,
020414C,KNIGHTON CLEANING SERVICES LTD,38707,35,150.00,SPECIAL CLEANS,07/04/14,
020414C,KNIGHTON CLEANING SERVICES LTD,38707,36,150.00,SPECIAL CLEANS,07/04/14,
020414C,KNIGHTON CLEANING SERVICES LTD,38707,37,150.00,SPECIAL CLEANS,07/04/14,
020414C,KNIGHTON CLEANING SERVICES LTD,38707,38,150.00,SPECIAL CLEANS,07/04/14,
020414C,KNIGHTON CLEANING SERVICES LTD,38707,39,150.00,SPECIAL CLEANS,07/04/14,
020414C,KNIGHTON CLEANING SERVICES LTD,38707,40,150.00,SPECIAL CLEANS,07/04/14,
020414C,KNIGHTON CLEANING SERVICES LTD,38707,41,150.00,SPECIAL CLEANS,07/04/14,
020414C,KNIGHTON CLEANING SERVICES LTD,38707,42,150.00,SPECIAL CLEANS,07/04/14,
020414C,KNIGHTON CLEANING SERVICES LTD,38707,43,150.00,SPECIAL CLEANS,07/04/14,
020414C,KNIGHTON CLEANING SERVICES LTD,38707,44,150.00,SPECIAL CLEANS,07/04/14,
020414C,KNIGHTON CLEANING SERVICES LTD,38707,45,150.00,SPECIAL CLEANS,07/04/14,
020414C,KNIGHTON CLEANING SERVICES LTD,38707,46,150.00,SPECIAL CLEANS,07/04/14,
020414C,KNIGHTON CLEANING SERVICES LTD,38707,47,150.00,SPECIAL CLEANS,07/04/14,
020414C,KNIGHTON CLEANING SERVICES LTD,38707,48,150.00,SPECIAL CLEANS,07/04/14,
020414C,KNIGHTON CLEANING SERVICES LTD,38707,49,150.00,SPECIAL CLEANS,07/04/14,
020414C,KNIGHTON CLEANING SERVICES LTD,38707,50,150.00,SPECIAL CLEANS,07/04/14,
020414C,KNIGHTON CLEANING SERVICES LTD,38707,51,150.00,SPECIAL CLEANS,07/04/14,
020414C,KNIGHTON CLEANING SERVICES LTD,38707,52,150.00,SPECIAL CLEANS,07/04/14,
020414C,KNIGHTON CLEANING SERVICES LTD,38707,53,150.00,SPECIAL CLEANS,07/04/14,
020414C,KNIGHTON CLEANING SERVICES LTD,38707,54,150.00,SPECIAL CLEANS,07/04/14,
020414C,KNIGHTON CLEANING SERVICES LTD,38707,55,150.00,SPECIAL CLEANS,07/04/14,
020414C,KNIGHTON CLEANING SERVICES LTD,38707,56,150.00,SPECIAL CLEANS,07/04/14,
020414C,KNIGHTON CLEANING SERVICES LTD,38708,1,140.00,SPECIAL CLEANS,07/04/14,"4,620.00"
020414C,KNIGHTON CLEANING SERVICES LTD,38708,2,140.00,SPECIAL CLEANS,07/04/14,
020414C,KNIGHTON CLEANING SERVICES LTD,38708,3,140.00,SPECIAL CLEANS,07/04/14,
020414C,KNIGHTON CLEANING SERVICES LTD,38708,4,140.00,SPECIAL CLEANS,07/04/14,
020414C,KNIGHTON CLEANING SERVICES LTD,38708,5,140.00,SPECIAL CLEANS,07/04/14,
020414C,KNIGHTON CLEANING SERVICES LTD,38708,6,140.00,SPECIAL CLEANS,07/04/14,
020414C,KNIGHTON CLEANING SERVICES LTD,38708,7,140.00,SPECIAL CLEANS,07/04/14,
020414C,KNIGHTON CLEANING SERVICES LTD,38708,8,140.00,SPECIAL CLEANS,07/04/14,
020414C,KNIGHTON CLEANING SERVICES LTD,38708,9,140.00,SPECIAL CLEANS,07/04/14,
020414C,KNIGHTON CLEANING SERVICES LTD,38708,10,140.00,SPECIAL CLEANS,07/04/14,
020414C,KNIGHTON CLEANING SERVICES LTD,38708,11,140.00,SPECIAL CLEANS,07/04/14,
020414C,KNIGHTON CLEANING SERVICES LTD,38708,12,140.00,SPECIAL CLEANS,07/04/14,
020414C,KNIGHTON CLEANING SERVICES LTD,38708,13,140.00,SPECIAL CLEANS,07/04/14,
020414C,KNIGHTON CLEANING SERVICES LTD,38708,14,140.00,SPECIAL CLEANS,07/04/14,
020414C,KNIGHTON CLEANING SERVICES LTD,38708,15,140.00,SPECIAL CLEANS,07/04/14,
020414C,KNIGHTON CLEANING SERVICES LTD,38708,16,140.00,SPECIAL CLEANS,07/04/14,
020414C,KNIGHTON CLEANING SERVICES LTD,38708,17,140.00,SPECIAL CLEANS,07/04/14,
020414C,KNIGHTON CLEANING SERVICES LTD,38708,18,140.00,SPECIAL CLEANS,07/04/14,
020414C,KNIGHTON CLEANING SERVICES LTD,38708,19,140.00,SPECIAL CLEANS,07/04/14,
020414C,KNIGHTON CLEANING SERVICES LTD,38708,20,140.00,SPECIAL CLEANS,07/04/14,
020414C,KNIGHTON CLEANING SERVICES LTD,38708,21,140.00,SPECIAL CLEANS,07/04/14,
020414C,KNIGHTON CLEANING SERVICES LTD,38708,22,140.00,SPECIAL CLEANS,07/04/14,
020414C,KNIGHTON CLEANING SERVICES LTD,38708,23,140.00,SPECIAL CLEANS,07/04/14,
020414C,KNIGHTON CLEANING SERVICES LTD,38708,24,140.00,SPECIAL CLEANS,07/04/14,
020414C,KNIGHTON CLEANING SERVICES LTD,38708,25,140.00,SPECIAL CLEANS,07/04/14,
020414C,KNIGHTON CLEANING SERVICES LTD,38708,26,140.00,SPECIAL CLEANS,07/04/14,
020414C,KNIGHTON CLEANING SERVICES LTD,38708,27,140.00,SPECIAL CLEANS,07/04/14,
020414C,KNIGHTON CLEANING SERVICES LTD,38708,28,140.00,SPECIAL CLEANS,07/04/14,
020414C,KNIGHTON CLEANING SERVICES LTD,38708,29,140.00,SPECIAL CLEANS,07/04/14,
020414C,KNIGHTON CLEANING SERVICES LTD,38708,30,140.00,SPECIAL CLEANS,07/04/14,
020414C,KNIGHTON CLEANING SERVICES LTD,38708,31,140.00,SPECIAL CLEANS,07/04/14,
020414C,KNIGHTON CLEANING SERVICES LTD,38708,32,140.00,SPECIAL CLEANS,07/04/14,
020414C,KNIGHTON CLEANING SERVICES LTD,38708,33,140.00,SPECIAL CLEANS,07/04/14,
020414C,KNIGHTON CLEANING SERVICES LTD,38709,1,150.00,SPECIAL CLEANS,07/04/14,"4,950.00"
020414C,KNIGHTON CLEANING SERVICES LTD,38709,2,150.00,SPECIAL CLEANS,07/04/14,
020414C,KNIGHTON CLEANING SERVICES LTD,38709,3,150.00,SPECIAL CLEANS,07/04/14,
020414C,KNIGHTON CLEANING SERVICES LTD,38709,4,150.00,SPECIAL CLEANS,07/04/14,
020414C,KNIGHTON CLEANING SERVICES LTD,38709,5,150.00,SPECIAL CLEANS,07/04/14,
020414C,KNIGHTON CLEANING SERVICES LTD,38709,6,150.00,SPECIAL CLEANS,07/04/14,
020414C,KNIGHTON CLEANING SERVICES LTD,38709,7,150.00,SPECIAL CLEANS,07/04/14,
020414C,KNIGHTON CLEANING SERVICES LTD,38709,8,150.00,SPECIAL CLEANS,07/04/14,
020414C,KNIGHTON CLEANING SERVICES LTD,38709,9,150.00,SPECIAL CLEANS,07/04/14,
020414C,KNIGHTON CLEANING SERVICES LTD,38709,10,150.00,SPECIAL CLEANS,07/04/14,
020414C,KNIGHTON CLEANING SERVICES LTD,38709,11,150.00,SPECIAL CLEANS,07/04/14,
020414C,KNIGHTON CLEANING SERVICES LTD,38709,12,150.00,SPECIAL CLEANS,07/04/14,
020414C,KNIGHTON CLEANING SERVICES LTD,38709,13,150.00,SPECIAL CLEANS,07/04/14,
020414C,KNIGHTON CLEANING SERVICES LTD,38709,14,150.00,SPECIAL CLEANS,07/04/14,
020414C,KNIGHTON CLEANING SERVICES LTD,38709,15,150.00,SPECIAL CLEANS,07/04/14,
020414C,KNIGHTON CLEANING SERVICES LTD,38709,16,150.00,SPECIAL CLEANS,07/04/14,
020414C,KNIGHTON CLEANING SERVICES LTD,38709,17,150.00,SPECIAL CLEANS,07/04/14,
020414C,KNIGHTON CLEANING SERVICES LTD,38709,18,150.00,SPECIAL CLEANS,07/04/14,
020414C,KNIGHTON CLEANING SERVICES LTD,38709,19,150.00,SPECIAL CLEANS,07/04/14,
020414C,KNIGHTON CLEANING SERVICES LTD,38709,20,150.00,SPECIAL CLEANS,07/04/14,
020414C,KNIGHTON CLEANING SERVICES LTD,38709,21,150.00,SPECIAL CLEANS,07/04/14,
020414C,KNIGHTON CLEANING SERVICES LTD,38709,22,150.00,SPECIAL CLEANS,07/04/14,
020414C,KNIGHTON CLEANING SERVICES LTD,38709,23,150.00,SPECIAL CLEANS,07/04/14,
020414C,KNIGHTON CLEANING SERVICES LTD,38709,24,150.00,SPECIAL CLEANS,07/04/14,
020414C,KNIGHTON CLEANING SERVICES LTD,38709,25,150.00,SPECIAL CLEANS,07/04/14,
020414C,KNIGHTON CLEANING SERVICES LTD,38709,26,150.00,SPECIAL CLEANS,07/04/14,
020414C,KNIGHTON CLEANING SERVICES LTD,38709,27,150.00,SPECIAL CLEANS,07/04/14,
020414C,KNIGHTON CLEANING SERVICES LTD,38709,28,150.00,SPECIAL CLEANS,07/04/14,
020414C,KNIGHTON CLEANING SERVICES LTD,38709,29,150.00,SPECIAL CLEANS,07/04/14,
020414C,KNIGHTON CLEANING SERVICES LTD,38709,30,150.00,SPECIAL CLEANS,07/04/14,
020414C,KNIGHTON CLEANING SERVICES LTD,38709,31,150.00,SPECIAL CLEANS,07/04/14,
020414C,KNIGHTON CLEANING SERVICES LTD,38709,32,150.00,SPECIAL CLEANS,07/04/14,
020414C,KNIGHTON CLEANING SERVICES LTD,38709,33,150.00,SPECIAL CLEANS,07/04/14,
020414C,COMPUTACENTRE================,3880065063,1,956.79,ACQUISITIONS,07/04/14,956.79
020414C,ANTIQUE BRONZE LTD============,3928,1,"1,804.00",TACTICAL DAY TO DAY,07/04/14,"1,804.00"
140623,THAMES WATER UTILITIES LTD====,42153-20857A,1,287.68,WATER & SEWERAGE RATES,07/04/14,287.68
020414C,SPORTSAFE UK LTD==============,455651,1,45.50,GYM EQUIPMENT,07/04/14,541.14
020414C,SPORTSAFE UK LTD==============,455651,2,207.76,GYM EQUIPMENT,07/04/14,
020414C,SPORTSAFE UK LTD==============,455651,3,103.88,GYM EQUIPMENT,07/04/14,
020414C,SPORTSAFE UK LTD==============,455651,4,184.00,GYM EQUIPMENT,07/04/14,
140623,THAMES WATER UTILITIES LTD====,4580310009B,1,495.93,WATER & SEWERAGE RATES,07/04/14,495.93
020414C,THE MARSTAN PRESS LTD========,46137,1,"1,208.00",PRINTING,07/04/14,"1,208.00"
140624,THAMES WATER UTILITIES LTD====,47190-45186C,1,"1,652.61",WATER & SEWERAGE RATES,07/04/14,"1,652.61"
260314G,LYON EQUIPMENT LIMITED========,483485,1,382.70,OPERATIONAL EQUIP-PURCHASE,07/04/14,410.04
260314G,LYON EQUIPMENT LIMITED========,483485,2,27.34,OPERATIONAL EQUIP-PURCHASE,07/04/14,
140623,THAMES WATER UTILITIES LTD====,5107790166Y,1,470.00,WATER & SEWERAGE RATES,07/04/14,470.00
020414C,URS SCOTT WILSON LIMITED,5776398,1,"2,552.99",PROF FEES-MISCELLANEOUS,07/04/14,"2,552.99"
260314G,ULTRA SUREFIRE LIMITED,6058,1,"2,495.00",COMMUNITY RELATIONS,07/04/14,"2,495.00"
140623,THAMES WATER UTILITIES LTD====,6395955189B,1,313.23,WATER & SEWERAGE RATES,07/04/14,313.23
020414C,MERLIN ELECTRICAL SERVICES LTD,6800,1,980.00,STRATEGIC (NON CYCLICAL),07/04/14,"2,940.00"
020414C,MERLIN ELECTRICAL SERVICES LTD,6800,2,980.00,STRATEGIC (NON CYCLICAL),07/04/14,
020414C,MERLIN ELECTRICAL SERVICES LTD,6800,3,980.00,STRATEGIC (NON CYCLICAL),07/04/14,
020414C,MAYORS OFF FOR POLICING&CRIME,6800094955,1,"9,000.00",CONTRACT HIRE,07/04/14,"9,000.00"
020414C,MAYORS OFF FOR POLICING&CRIME,6800094957,1,280.41,CONTRACT HIRE,07/04/14,280.41
020414C,MAYORS OFF FOR POLICING&CRIME,6800094958,1,279.00,CONTRACT HIRE,07/04/14,279.00
020414C,MAYORS OFF FOR POLICING&CRIME,6800094959,1,"2,887.76",CONTRACT HIRE,07/04/14,"2,887.76"
020414C,MAYORS OFF FOR POLICING&CRIME,6800094960,1,"1,193.98",CONTRACT HIRE,07/04/14,"1,193.98"
020414C,MAYORS OFF FOR POLICING&CRIME,6800094961,1,841.46,CONTRACT HIRE,07/04/14,841.46
020414C,MAYORS OFF FOR POLICING&CRIME,6800094962,1,376.25,CONTRACT HIRE,07/04/14,376.25
240314G,MAYORS OFF FOR POLICING&CRIME,6800095035,1,395.20,REFRESHMENTS,07/04/14,395.20
020414C,SHARPE PRITCHARD==============,78107,1,"3,264.00",GENERAL,07/04/14,"3,264.00"
020414C,SHARPE PRITCHARD==============,78109,1,285.00,CONSULTANTS,07/04/14,285.00
140624,THAMES WATER UTILITIES LTD====,8641142518B,1,"1,641.89",WATER & SEWERAGE RATES,07/04/14,"1,641.89"
020414C,DRAEGER SAFETY UK LIMITED=====,90440848,1,708.00,PROTECTIVE EQUIPT - PARTS,07/04/14,708.00
020414C,DRAEGER SAFETY UK LIMITED=====,90440993,1,351.00,REPAIR & MAINTENANCE,07/04/14,351.00
020414C,DRAEGER SAFETY UK LIMITED=====,90441087,1,543.75,PROTECTIVE EQUIPT - PARTS,07/04/14,543.75
020414C,DRAEGER SAFETY UK LIMITED=====,90441159,1,17.20,REPAIR & MAINTENANCE,07/04/14,489.40
020414C,DRAEGER SAFETY UK LIMITED=====,90441159,2,8.00,REPAIR & MAINTENANCE,07/04/14,
020414C,DRAEGER SAFETY UK LIMITED=====,90441159,3,6.40,REPAIR & MAINTENANCE,07/04/14,
020414C,DRAEGER SAFETY UK LIMITED=====,90441159,4,5.40,REPAIR & MAINTENANCE,07/04/14,
020414C,DRAEGER SAFETY UK LIMITED=====,90441159,5,62.20,REPAIR & MAINTENANCE,07/04/14,
020414C,DRAEGER SAFETY UK LIMITED=====,90441159,6,73.20,REPAIR & MAINTENANCE,07/04/14,
020414C,DRAEGER SAFETY UK LIMITED=====,90441159,7,310.00,REPAIR & MAINTENANCE,07/04/14,
020414C,DRAEGER SAFETY UK LIMITED=====,90441159,8,7.00,REPAIR & MAINTENANCE,07/04/14,
020414C,BSI MANAGEMENT SYSTEMS,94015796/1000,1,808.00,SUBSCRIPTIONS,07/04/14,808.00
140623,THAMES WATER UTILITIES LTD====,95992-95181C,1,438.49,WATER & SEWERAGE RATES,07/04/14,438.49
020414C,THAMES WATER UTILITIES LTD====,CBA1314963,1,"1,082.00",HYDRANTS,07/04/14,"1,082.00"
020414C,THAMES WATER UTILITIES LTD====,CBA1402451,1,"1,185.00",CURRENT HYDRANT COSTS,07/04/14,"1,185.00"
020414C,NCC SERVICES LTD==============,E861248,1,"1,175.00",CAMS CONTRACT,07/04/14,"1,175.00"
020414C,NCC SERVICES LTD==============,E861249,1,"1,175.00",CAMS CONTRACT,07/04/14,"1,175.00"
140624,LONDON PENSIONS FUND AUTHORITY,ER957,1,"8,535.62",LOCAL GOVT PENSION SCHEME PAYM,07/04/14,"8,535.62"
140624,LONDON PENSIONS FUND AUTHORITY,ER967,1,"37,372.13",LOCAL GOVT PENSION SCHEME PAYM,07/04/14,"37,372.13"
140624,LONDON PENSIONS FUND AUTHORITY,ER968,1,"31,142.57",LOCAL GOVT PENSION SCHEME PAYM,07/04/14,"31,142.57"
140624,LONDON PENSIONS FUND AUTHORITY,ER969,1,"43,329.84",LOCAL GOVT PENSION SCHEME PAYM,07/04/14,"43,329.84"
140624,LONDON PENSIONS FUND AUTHORITY,ER970,1,"29,601.82",LOCAL GOVT PENSION SCHEME PAYM,07/04/14,"29,601.82"
140624,LONDON PENSIONS FUND AUTHORITY,ER971,1,"43,270.70",LOCAL GOVT PENSION SCHEME PAYM,07/04/14,"43,270.70"
140624,LONDON PENSIONS FUND AUTHORITY,ER972,1,"14,849.60",LOCAL GOVT PENSION SCHEME PAYM,07/04/14,"14,849.60"
140624,LONDON PENSIONS FUND AUTHORITY,ER973,1,"53,810.01",LOCAL GOVT PENSION SCHEME PAYM,07/04/14,"53,810.01"
020414C,KIER BUILDING SERV ENGINEERS==,F00048238,1,"1,292.64",STRATEGIC (NON CYCLICAL),07/04/14,"1,292.64"
020414C,KIER BUILDING SERV ENGINEERS==,F00048240,1,678.89,STRATEGIC (NON CYCLICAL),07/04/14,678.89
140623,GOOD ENERGY===================,GE106451EC,1,768.54,ELECTRICITY,07/04/14,768.54
020414C,WM ENGINEERING SERVICES LTD===,I-4655,1,650.10,TACTICAL DAY TO DAY,07/04/14,650.10
270314E,HALL FUELS,I06727975,1,"3,763.90",FUEL,07/04/14,"3,763.90"
020414C,BABCOCK CIVIL INFRASTRUCTURE,II5000326,1,"29,349.63",STRATEGIC (CYCLICAL),07/04/14,"29,349.63"
020414C,CANNON'S MSA LTD,NV1071692,1,650.00,STRATEGIC (NON CYCLICAL),07/04/14,650.00
020414C,SPECIALIST COMPUTER CENTRES===,OP/L822896,1,"5,550.00",ACQUISITIONS,07/04/14,"5,550.00"
800033346,ALLSTAR BUSINESS SOLUTIONS LTD,P2002563540,1,"1,269.18",FUEL,07/04/14,"19,857.08"
800033346,ALLSTAR BUSINESS SOLUTIONS LTD,P2002563540,2,739.89,FUEL,07/04/14,
800033346,ALLSTAR BUSINESS SOLUTIONS LTD,P2002563540,3,555.07,FUEL,07/04/14,
800033346,ALLSTAR BUSINESS SOLUTIONS LTD,P2002563540,4,520.40,FUEL,07/04/14,
800033346,ALLSTAR BUSINESS SOLUTIONS LTD,P2002563540,5,471.81,FUEL,07/04/14,
800033346,ALLSTAR BUSINESS SOLUTIONS LTD,P2002563540,6,398.74,FUEL,07/04/14,
800033346,ALLSTAR BUSINESS SOLUTIONS LTD,P2002563540,7,367.17,FUEL,07/04/14,
800033346,ALLSTAR BUSINESS SOLUTIONS LTD,P2002563540,8,366.01,FUEL,07/04/14,
800033346,ALLSTAR BUSINESS SOLUTIONS LTD,P2002563540,9,343.05,FUEL,07/04/14,
800033346,ALLSTAR BUSINESS SOLUTIONS LTD,P2002563540,10,340.11,FUEL,07/04/14,
800033346,ALLSTAR BUSINESS SOLUTIONS LTD,P2002563540,11,337.09,FUEL,07/04/14,
800033346,ALLSTAR BUSINESS SOLUTIONS LTD,P2002563540,12,333.49,FUEL,07/04/14,
800033346,ALLSTAR BUSINESS SOLUTIONS LTD,P2002563540,13,330.89,FUEL,07/04/14,
800033346,ALLSTAR BUSINESS SOLUTIONS LTD,P2002563540,14,322.79,FUEL,07/04/14,
800033346,ALLSTAR BUSINESS SOLUTIONS LTD,P2002563540,15,306.19,FUEL,07/04/14,
800033346,ALLSTAR BUSINESS SOLUTIONS LTD,P2002563540,16,302.47,FUEL,07/04/14,
800033346,ALLSTAR BUSINESS SOLUTIONS LTD,P2002563540,17,296.57,FUEL,07/04/14,
800033346,ALLSTAR BUSINESS SOLUTIONS LTD,P2002563540,18,291.54,FUEL,07/04/14,
800033346,ALLSTAR BUSINESS SOLUTIONS LTD,P2002563540,19,281.86,FUEL,07/04/14,
800033346,ALLSTAR BUSINESS SOLUTIONS LTD,P2002563540,20,281.75,FUEL,07/04/14,
800033346,ALLSTAR BUSINESS SOLUTIONS LTD,P2002563540,21,278.52,FUEL,07/04/14,
800033346,ALLSTAR BUSINESS SOLUTIONS LTD,P2002563540,22,276.87,FUEL,07/04/14,
800033346,ALLSTAR BUSINESS SOLUTIONS LTD,P2002563540,23,273.08,FUEL,07/04/14,
800033346,ALLSTAR BUSINESS SOLUTIONS LTD,P2002563540,24,267.63,FUEL,07/04/14,
800033346,ALLSTAR BUSINESS SOLUTIONS LTD,P2002563540,25,258.96,FUEL,07/04/14,
800033346,ALLSTAR BUSINESS SOLUTIONS LTD,P2002563540,26,243.11,FUEL,07/04/14,
800033346,ALLSTAR BUSINESS SOLUTIONS LTD,P2002563540,27,238.29,FUEL,07/04/14,
800033346,ALLSTAR BUSINESS SOLUTIONS LTD,P2002563540,28,235.93,FUEL,07/04/14,
800033346,ALLSTAR BUSINESS SOLUTIONS LTD,P2002563540,29,233.52,FUEL,07/04/14,
800033346,ALLSTAR BUSINESS SOLUTIONS LTD,P2002563540,30,227.54,FUEL,07/04/14,
800033346,ALLSTAR BUSINESS SOLUTIONS LTD,P2002563540,31,226.66,FUEL,07/04/14,
800033346,ALLSTAR BUSINESS SOLUTIONS LTD,P2002563540,32,221.93,FUEL,07/04/14,
800033346,ALLSTAR BUSINESS SOLUTIONS LTD,P2002563540,33,218.04,FUEL,07/04/14,
800033346,ALLSTAR BUSINESS SOLUTIONS LTD,P2002563540,34,215.52,FUEL,07/04/14,
800033346,ALLSTAR BUSINESS SOLUTIONS LTD,P2002563540,35,200.67,FUEL,07/04/14,
800033346,ALLSTAR BUSINESS SOLUTIONS LTD,P2002563540,36,200.48,FUEL,07/04/14,
800033346,ALLSTAR BUSINESS SOLUTIONS LTD,P2002563540,37,200.04,FUEL,07/04/14,
800033346,ALLSTAR BUSINESS SOLUTIONS LTD,P2002563540,38,199.54,FUEL,07/04/14,
800033346,ALLSTAR BUSINESS SOLUTIONS LTD,P2002563540,39,191.00,FUEL,07/04/14,
800033346,ALLSTAR BUSINESS SOLUTIONS LTD,P2002563540,40,184.06,FUEL,07/04/14,
800033346,ALLSTAR BUSINESS SOLUTIONS LTD,P2002563540,41,183.44,FUEL,07/04/14,
800033346,ALLSTAR BUSINESS SOLUTIONS LTD,P2002563540,42,180.10,FUEL,07/04/14,
800033346,ALLSTAR BUSINESS SOLUTIONS LTD,P2002563540,43,179.61,FUEL,07/04/14,
800033346,ALLSTAR BUSINESS SOLUTIONS LTD,P2002563540,44,178.01,FUEL,07/04/14,
800033346,ALLSTAR BUSINESS SOLUTIONS LTD,P2002563540,45,177.16,FUEL,07/04/14,
800033346,ALLSTAR BUSINESS SOLUTIONS LTD,P2002563540,46,174.23,FUEL,07/04/14,
800033346,ALLSTAR BUSINESS SOLUTIONS LTD,P2002563540,47,173.46,FUEL,07/04/14,
800033346,ALLSTAR BUSINESS SOLUTIONS LTD,P2002563540,48,171.83,FUEL,07/04/14,
800033346,ALLSTAR BUSINESS SOLUTIONS LTD,P2002563540,49,169.23,FUEL,07/04/14,
800033346,ALLSTAR BUSINESS SOLUTIONS LTD,P2002563540,50,167.78,FUEL,07/04/14,
800033346,ALLSTAR BUSINESS SOLUTIONS LTD,P2002563540,51,164.51,FUEL,07/04/14,
800033346,ALLSTAR BUSINESS SOLUTIONS LTD,P2002563540,52,161.74,FUEL,07/04/14,
800033346,ALLSTAR BUSINESS SOLUTIONS LTD,P2002563540,53,158.07,FUEL,07/04/14,
800033346,ALLSTAR BUSINESS SOLUTIONS LTD,P2002563540,54,153.97,FUEL,07/04/14,
800033346,ALLSTAR BUSINESS SOLUTIONS LTD,P2002563540,55,153.22,FUEL,07/04/14,
800033346,ALLSTAR BUSINESS SOLUTIONS LTD,P2002563540,56,149.17,FUEL,07/04/14,
800033346,ALLSTAR BUSINESS SOLUTIONS LTD,P2002563540,57,148.82,FUEL,07/04/14,
800033346,ALLSTAR BUSINESS SOLUTIONS LTD,P2002563540,58,143.36,FUEL,07/04/14,
800033346,ALLSTAR BUSINESS SOLUTIONS LTD,P2002563540,59,141.58,FUEL,07/04/14,
800033346,ALLSTAR BUSINESS SOLUTIONS LTD,P2002563540,60,136.76,FUEL,07/04/14,
800033346,ALLSTAR BUSINESS SOLUTIONS LTD,P2002563540,61,135.33,FUEL,07/04/14,
800033346,ALLSTAR BUSINESS SOLUTIONS LTD,P2002563540,62,127.63,FUEL,07/04/14,
800033346,ALLSTAR BUSINESS SOLUTIONS LTD,P2002563540,63,124.34,FUEL,07/04/14,
800033346,ALLSTAR BUSINESS SOLUTIONS LTD,P2002563540,64,124.05,FUEL,07/04/14,
800033346,ALLSTAR BUSINESS SOLUTIONS LTD,P2002563540,65,123.91,FUEL,07/04/14,
800033346,ALLSTAR BUSINESS SOLUTIONS LTD,P2002563540,66,121.07,FUEL,07/04/14,
800033346,ALLSTAR BUSINESS SOLUTIONS LTD,P2002563540,67,119.79,FUEL,07/04/14,
800033346,ALLSTAR BUSINESS SOLUTIONS LTD,P2002563540,68,119.23,FUEL,07/04/14,
800033346,ALLSTAR BUSINESS SOLUTIONS LTD,P2002563540,69,118.30,FUEL,07/04/14,
800033346,ALLSTAR BUSINESS SOLUTIONS LTD,P2002563540,70,118.19,FUEL,07/04/14,
800033346,ALLSTAR BUSINESS SOLUTIONS LTD,P2002563540,71,111.61,FUEL,07/04/14,
800033346,ALLSTAR BUSINESS SOLUTIONS LTD,P2002563540,72,110.18,FUEL,07/04/14,
800033346,ALLSTAR BUSINESS SOLUTIONS LTD,P2002563540,73,109.49,FUEL,07/04/14,
800033346,ALLSTAR BUSINESS SOLUTIONS LTD,P2002563540,74,104.70,FUEL,07/04/14,
800033346,ALLSTAR BUSINESS SOLUTIONS LTD,P2002563540,75,102.29,FUEL,07/04/14,
800033346,ALLSTAR BUSINESS SOLUTIONS LTD,P2002563540,76,101.88,FUEL,07/04/14,
800033346,ALLSTAR BUSINESS SOLUTIONS LTD,P2002563540,77,101.88,FUEL,07/04/14,
800033346,ALLSTAR BUSINESS SOLUTIONS LTD,P2002563540,78,101.72,FUEL,07/04/14,
800033346,ALLSTAR BUSINESS SOLUTIONS LTD,P2002563540,79,101.42,FUEL,07/04/14,
800033346,ALLSTAR BUSINESS SOLUTIONS LTD,P2002563540,80,100.73,FUEL,07/04/14,
800033346,ALLSTAR BUSINESS SOLUTIONS LTD,P2002563540,81,98.58,FUEL,07/04/14,
800033346,ALLSTAR BUSINESS SOLUTIONS LTD,P2002563540,82,97.46,FUEL,07/04/14,
800033346,ALLSTAR BUSINESS SOLUTIONS LTD,P2002563540,83,96.99,FUEL,07/04/14,
800033346,ALLSTAR BUSINESS SOLUTIONS LTD,P2002563540,84,90.79,FUEL,07/04/14,
800033346,ALLSTAR BUSINESS SOLUTIONS LTD,P2002563540,85,87.53,FUEL,07/04/14,
800033346,ALLSTAR BUSINESS SOLUTIONS LTD,P2002563540,86,79.33,FUEL,07/04/14,
800033346,ALLSTAR BUSINESS SOLUTIONS LTD,P2002563540,87,72.57,FUEL,07/04/14,
800033346,ALLSTAR BUSINESS SOLUTIONS LTD,P2002563540,88,65.53,FUEL,07/04/14,
800033346,ALLSTAR BUSINESS SOLUTIONS LTD,P2002563540,89,61.91,FUEL,07/04/14,
800033346,ALLSTAR BUSINESS SOLUTIONS LTD,P2002563540,90,59.02,FUEL,07/04/14,
800033346,ALLSTAR BUSINESS SOLUTIONS LTD,P2002563540,91,58.01,FUEL,07/04/14,
800033346,ALLSTAR BUSINESS SOLUTIONS LTD,P2002563540,92,54.29,FUEL,07/04/14,
800033346,ALLSTAR BUSINESS SOLUTIONS LTD,P2002563540,93,52.78,FUEL,07/04/14,
800033346,ALLSTAR BUSINESS SOLUTIONS LTD,P2002563540,94,52.38,FUEL,07/04/14,
800033346,ALLSTAR BUSINESS SOLUTIONS LTD,P2002563540,95,51.72,FUEL,07/04/14,
800033346,ALLSTAR BUSINESS SOLUTIONS LTD,P2002563540,96,50.19,FUEL,07/04/14,
800033346,ALLSTAR BUSINESS SOLUTIONS LTD,P2002563540,97,42.78,FUEL,07/04/14,
800033346,ALLSTAR BUSINESS SOLUTIONS LTD,P2002563540,98,34.59,FUEL,07/04/14,
800033346,ALLSTAR BUSINESS SOLUTIONS LTD,P2002563540,99,30.21,FUEL,07/04/14,
800033346,ALLSTAR BUSINESS SOLUTIONS LTD,P2002563540,100,29.17,FUEL,07/04/14,
020414C,MFD INTERNATIONAL LTD=========,SIN009116,1,"1,900.00",STRATEGIC (NON CYCLICAL),07/04/14,"1,900.00"
020414C,MFD INTERNATIONAL LTD=========,SIN009499,1,"1,250.00",STRATEGIC (NON CYCLICAL),07/04/14,"1,250.00"
020414C,TRIBAL EDUCATION LTD==========,SIN102085-TEL,1,"37,906.00",MAINTENANCE & SUPPORT,07/04/14,"40,901.00"
020414C,TRIBAL EDUCATION LTD==========,SIN102085-TEL,2,"2,995.00",MAINTENANCE & SUPPORT,07/04/14,
020414C,BERENDSEN UK LTD,SN1645968,1,"9,801.69",LAUNDRY,07/04/14,"9,801.69"
800031397,*XMA LTD,V135653,1,109.10,STATIONERY CONSUMABLES,07/04/14,865.36
800031397,*XMA LTD,V135653,2,109.10,STATIONERY CONSUMABLES,07/04/14,
800031397,*XMA LTD,V135653,3,110.56,STATIONERY CONSUMABLES,07/04/14,
800031397,*XMA LTD,V135653,4,110.56,STATIONERY CONSUMABLES,07/04/14,
800031397,*XMA LTD,V135653,5,110.56,STATIONERY CONSUMABLES,07/04/14,
800031397,*XMA LTD,V135653,6,110.56,STATIONERY CONSUMABLES,07/04/14,
800031397,*XMA LTD,V135653,7,102.46,STATIONERY CONSUMABLES,07/04/14,
800031397,*XMA LTD,V135653,8,102.46,STATIONERY CONSUMABLES,07/04/14,
250314C,SPEAKERS TRUST,WEB/003894,1,515.00,GENERAL,07/04/14,515.00
070414C,GOVNET COMMUNICATIONS=========,0000065700,1,"2,070.00",PROFESSIONAL DEVELOPMENT,10/04/14,"2,070.00"
030414C,ENTEL UK LTD==================,0000137441,1,157.50,RADIO,10/04/14,539.76
030414C,ENTEL UK LTD==================,0000137441,2,39.06,RADIO,10/04/14,
030414C,ENTEL UK LTD==================,0000137441,3,262.50,RADIO,10/04/14,
030414C,ENTEL UK LTD==================,0000137441,4,71.70,RADIO,10/04/14,
030414C,ENTEL UK LTD==================,0000137441,5,9.00,RADIO,10/04/14,
260314C,GEORGE JONES & SON LTD========,036852,1,"1,455.67",STRATEGIC (NON CYCLICAL),10/04/14,"1,455.67"
040414C,FIRE PREVENTION PRODUCTS LTD==,045861,1,793.46,OPERATIONAL EQUIP-PURCHASE,10/04/14,793.46
040414C,HAYS ACCOUNTANCY & FINANCE====,1004169396,1,906.25,FRS STAFF AGENCY,10/04/14,906.25
040414C,LB TOWER HAMLETS==============,10178726,1,512.50,COMMUNITY RELATIONS,10/04/14,512.50
040414C,APTCO,101829,1,360.00,OPERATIONAL EQUIP-PURCHASE,10/04/14,360.00
070414C,MOOLANDS LTD,10431,1,730.00,STRATEGIC (NON CYCLICAL),10/04/14,"7,300.00"
070414C,MOOLANDS LTD,10431,2,730.00,STRATEGIC (NON CYCLICAL),10/04/14,
070414C,MOOLANDS LTD,10431,3,730.00,STRATEGIC (NON CYCLICAL),10/04/14,
070414C,MOOLANDS LTD,10431,4,730.00,STRATEGIC (NON CYCLICAL),10/04/14,
070414C,MOOLANDS LTD,10431,5,730.00,STRATEGIC (NON CYCLICAL),10/04/14,
070414C,MOOLANDS LTD,10431,6,730.00,STRATEGIC (NON CYCLICAL),10/04/14,
070414C,MOOLANDS LTD,10431,7,730.00,STRATEGIC (NON CYCLICAL),10/04/14,
070414C,MOOLANDS LTD,10431,8,730.00,STRATEGIC (NON CYCLICAL),10/04/14,
070414C,MOOLANDS LTD,10431,9,730.00,STRATEGIC (NON CYCLICAL),10/04/14,
070414C,MOOLANDS LTD,10431,10,730.00,STRATEGIC (NON CYCLICAL),10/04/14,
070414C,*SPRUE SAFETY PRODUCTS LTD====,1058788,1,370.80,FIRE DETECTORS,10/04/14,370.80
070414C,*SPRUE SAFETY PRODUCTS LTD====,1058810,1,988.80,FIRE DETECTORS,10/04/14,988.80
030414C,VISTA LANDSCAPE MANAGEMENT LTD,119591,1,965.96,GROUNDS MAINTENANCE,10/04/14,965.96
070414C,VISTA LANDSCAPE MANAGEMENT LTD,119595,1,142.31,GROUNDS MAINTENANCE,10/04/14,"2,878.51"
070414C,VISTA LANDSCAPE MANAGEMENT LTD,119595,2,24.77,GROUNDS MAINTENANCE,10/04/14,
070414C,VISTA LANDSCAPE MANAGEMENT LTD,119595,3,27.29,GROUNDS MAINTENANCE,10/04/14,
070414C,VISTA LANDSCAPE MANAGEMENT LTD,119595,4,30.32,GROUNDS MAINTENANCE,10/04/14,
070414C,VISTA LANDSCAPE MANAGEMENT LTD,119595,5,111.28,GROUNDS MAINTENANCE,10/04/14,
070414C,VISTA LANDSCAPE MANAGEMENT LTD,119595,6,23.48,GROUNDS MAINTENANCE,10/04/14,
070414C,VISTA LANDSCAPE MANAGEMENT LTD,119595,7,31.20,GROUNDS MAINTENANCE,10/04/14,
070414C,VISTA LANDSCAPE MANAGEMENT LTD,119595,8,24.52,GROUNDS MAINTENANCE,10/04/14,
070414C,VISTA LANDSCAPE MANAGEMENT LTD,119595,9,21.11,GROUNDS MAINTENANCE,10/04/14,
070414C,VISTA LANDSCAPE MANAGEMENT LTD,119595,10,21.20,GROUNDS MAINTENANCE,10/04/14,
070414C,VISTA LANDSCAPE MANAGEMENT LTD,119595,11,24.74,GROUNDS MAINTENANCE,10/04/14,
070414C,VISTA LANDSCAPE MANAGEMENT LTD,119595,12,122.19,GROUNDS MAINTENANCE,10/04/14,
070414C,VISTA LANDSCAPE MANAGEMENT LTD,119595,13,20.52,GROUNDS MAINTENANCE,10/04/14,
070414C,VISTA LANDSCAPE MANAGEMENT LTD,119595,14,92.06,GROUNDS MAINTENANCE,10/04/14,
070414C,VISTA LANDSCAPE MANAGEMENT LTD,119595,15,27.21,GROUNDS MAINTENANCE,10/04/14,
070414C,VISTA LANDSCAPE MANAGEMENT LTD,119595,16,23.91,GROUNDS MAINTENANCE,10/04/14,
070414C,VISTA LANDSCAPE MANAGEMENT LTD,119595,17,139.80,GROUNDS MAINTENANCE,10/04/14,
070414C,VISTA LANDSCAPE MANAGEMENT LTD,119595,18,22.33,GROUNDS MAINTENANCE,10/04/14,
070414C,VISTA LANDSCAPE MANAGEMENT LTD,119595,19,23.87,GROUNDS MAINTENANCE,10/04/14,
070414C,VISTA LANDSCAPE MANAGEMENT LTD,119595,20,17.53,GROUNDS MAINTENANCE,10/04/14,
070414C,VISTA LANDSCAPE MANAGEMENT LTD,119595,21,23.00,GROUNDS MAINTENANCE,10/04/14,
070414C,VISTA LANDSCAPE MANAGEMENT LTD,119595,22,23.85,GROUNDS MAINTENANCE,10/04/14,
070414C,VISTA LANDSCAPE MANAGEMENT LTD,119595,23,27.55,GROUNDS MAINTENANCE,10/04/14,
070414C,VISTA LANDSCAPE MANAGEMENT LTD,119595,24,21.41,GROUNDS MAINTENANCE,10/04/14,
070414C,VISTA LANDSCAPE MANAGEMENT LTD,119595,25,21.28,GROUNDS MAINTENANCE,10/04/14,
070414C,VISTA LANDSCAPE MANAGEMENT LTD,119595,26,19.18,GROUNDS MAINTENANCE,10/04/14,
070414C,VISTA LANDSCAPE MANAGEMENT LTD,119595,27,89.20,GROUNDS MAINTENANCE,10/04/14,
070414C,VISTA LANDSCAPE MANAGEMENT LTD,119595,28,94.10,GROUNDS MAINTENANCE,10/04/14,
070414C,VISTA LANDSCAPE MANAGEMENT LTD,119595,29,22.58,GROUNDS MAINTENANCE,10/04/14,
070414C,VISTA LANDSCAPE MANAGEMENT LTD,119595,30,278.31,GROUNDS MAINTENANCE,10/04/14,
070414C,VISTA LANDSCAPE MANAGEMENT LTD,119595,31,22.07,GROUNDS MAINTENANCE,10/04/14,
070414C,VISTA LANDSCAPE MANAGEMENT LTD,119595,32,71.29,GROUNDS MAINTENANCE,10/04/14,
070414C,VISTA LANDSCAPE MANAGEMENT LTD,119595,33,20.59,GROUNDS MAINTENANCE,10/04/14,
070414C,VISTA LANDSCAPE MANAGEMENT LTD,119595,34,22.08,GROUNDS MAINTENANCE,10/04/14,
070414C,VISTA LANDSCAPE MANAGEMENT LTD,119595,35,21.40,GROUNDS MAINTENANCE,10/04/14,
070414C,VISTA LANDSCAPE MANAGEMENT LTD,119595,36,88.90,GROUNDS MAINTENANCE,10/04/14,
070414C,VISTA LANDSCAPE MANAGEMENT LTD,119595,37,130.36,GROUNDS MAINTENANCE,10/04/14,
070414C,VISTA LANDSCAPE MANAGEMENT LTD,119595,38,749.82,GROUNDS MAINTENANCE,10/04/14,
070414C,VISTA LANDSCAPE MANAGEMENT LTD,119595,39,70.24,GROUNDS MAINTENANCE,10/04/14,
070414C,VISTA LANDSCAPE MANAGEMENT LTD,119595,40,62.34,GROUNDS MAINTENANCE,10/04/14,
070414C,VISTA LANDSCAPE MANAGEMENT LTD,119595,41,27.32,GROUNDS MAINTENANCE,10/04/14,
030414C,REGENT OFFICE CARE LTD========,13832,1,158.70,STRATEGIC (CYCLICAL),10/04/14,"5,364.06"
030414C,REGENT OFFICE CARE LTD========,13832,2,158.70,STRATEGIC (CYCLICAL),10/04/14,
030414C,REGENT OFFICE CARE LTD========,13832,3,190.44,STRATEGIC (CYCLICAL),10/04/14,
030414C,REGENT OFFICE CARE LTD========,13832,4,190.44,STRATEGIC (CYCLICAL),10/04/14,
030414C,REGENT OFFICE CARE LTD========,13832,5,158.70,STRATEGIC (CYCLICAL),10/04/14,
030414C,REGENT OFFICE CARE LTD========,13832,6,190.44,STRATEGIC (CYCLICAL),10/04/14,
030414C,REGENT OFFICE CARE LTD========,13832,7,190.44,STRATEGIC (CYCLICAL),10/04/14,
030414C,REGENT OFFICE CARE LTD========,13832,8,190.44,STRATEGIC (CYCLICAL),10/04/14,
030414C,REGENT OFFICE CARE LTD========,13832,9,190.44,STRATEGIC (CYCLICAL),10/04/14,
030414C,REGENT OFFICE CARE LTD========,13832,10,190.44,STRATEGIC (CYCLICAL),10/04/14,
030414C,REGENT OFFICE CARE LTD========,13832,11,158.70,STRATEGIC (CYCLICAL),10/04/14,
030414C,REGENT OFFICE CARE LTD========,13832,12,158.70,STRATEGIC (CYCLICAL),10/04/14,
030414C,REGENT OFFICE CARE LTD========,13832,13,190.44,STRATEGIC (CYCLICAL),10/04/14,
030414C,REGENT OFFICE CARE LTD========,13832,14,190.44,STRATEGIC (CYCLICAL),10/04/14,
030414C,REGENT OFFICE CARE LTD========,13832,15,190.44,STRATEGIC (CYCLICAL),10/04/14,
030414C,REGENT OFFICE CARE LTD========,13832,16,190.44,STRATEGIC (CYCLICAL),10/04/14,
030414C,REGENT OFFICE CARE LTD========,13832,17,158.70,STRATEGIC (CYCLICAL),10/04/14,
030414C,REGENT OFFICE CARE LTD========,13832,18,190.44,STRATEGIC (CYCLICAL),10/04/14,
030414C,REGENT OFFICE CARE LTD========,13832,19,158.70,STRATEGIC (CYCLICAL),10/04/14,
030414C,REGENT OFFICE CARE LTD========,13832,20,158.70,STRATEGIC (CYCLICAL),10/04/14,
030414C,REGENT OFFICE CARE LTD========,13832,21,158.70,STRATEGIC (CYCLICAL),10/04/14,
030414C,REGENT OFFICE CARE LTD========,13832,22,190.44,STRATEGIC (CYCLICAL),10/04/14,
030414C,REGENT OFFICE CARE LTD========,13832,23,158.70,STRATEGIC (CYCLICAL),10/04/14,
030414C,REGENT OFFICE CARE LTD========,13832,24,158.70,STRATEGIC (CYCLICAL),10/04/14,
030414C,REGENT OFFICE CARE LTD========,13832,25,158.70,STRATEGIC (CYCLICAL),10/04/14,
030414C,REGENT OFFICE CARE LTD========,13832,26,158.70,STRATEGIC (CYCLICAL),10/04/14,
030414C,REGENT OFFICE CARE LTD========,13832,27,158.70,STRATEGIC (CYCLICAL),10/04/14,
030414C,REGENT OFFICE CARE LTD========,13832,28,158.70,STRATEGIC (CYCLICAL),10/04/14,
030414C,REGENT OFFICE CARE LTD========,13832,29,190.44,STRATEGIC (CYCLICAL),10/04/14,
030414C,REGENT OFFICE CARE LTD========,13832,30,158.70,STRATEGIC (CYCLICAL),10/04/14,
030414C,REGENT OFFICE CARE LTD========,13832,31,158.70,STRATEGIC (CYCLICAL),10/04/14,
800035992,PRIMEPEACE LTD================,140301,1,"3,500.00",MAINTENANCE & SUPPORT,10/04/14,"10,450.00"
800035992,PRIMEPEACE LTD================,140301,2,450.00,MAINTENANCE & SUPPORT,10/04/14,
800035992,PRIMEPEACE LTD================,140301,3,500.00,MAINTENANCE & SUPPORT,10/04/14,
800035992,PRIMEPEACE LTD================,140301,4,"2,000.00",MAINTENANCE & SUPPORT,10/04/14,
800035992,PRIMEPEACE LTD================,140301,5,"4,000.00",MAINTENANCE & SUPPORT,10/04/14,
800036052,PRIMEPEACE LTD================,140401,1,"20,000.00",MAINTENANCE & SUPPORT,10/04/14,"80,000.00"
800036052,PRIMEPEACE LTD================,140401,2,"20,000.00",MAINTENANCE & SUPPORT,10/04/14,
800036052,PRIMEPEACE LTD================,140401,3,"20,000.00",MAINTENANCE & SUPPORT,10/04/14,
800036052,PRIMEPEACE LTD================,140401,4,"20,000.00",MAINTENANCE & SUPPORT,10/04/14,
030414C,SURREY BLIND & CURTAIN CO=====,14137,1,"1,101.00",FIXTURES & FITTINGS,10/04/14,"1,101.00"
070414C,SURREY BLIND & CURTAIN CO=====,14143*,1,987.00,FIXTURES & FITTINGS,10/04/14,987.00
040414C,AIRSERVICES(UK)===============,17012,1,234.00,REPAIR & MAINTENANCE,10/04/14,366.00
040414C,AIRSERVICES(UK)===============,17012,2,39.00,REPAIR & MAINTENANCE,10/04/14,
040414C,AIRSERVICES(UK)===============,17012,3,13.00,REPAIR & MAINTENANCE,10/04/14,
040414C,AIRSERVICES(UK)===============,17012,4,72.00,REPAIR & MAINTENANCE,10/04/14,
040414C,AIRSERVICES(UK)===============,17012,5,8.00,REPAIR & MAINTENANCE,10/04/14,
070414C,CHANGING YOUNG MINDS,18/3/14&26/3/14,1,450.00,PROFESSIONAL DEVELOPMENT,10/04/14,450.00
140626,THAMES WATER UTILITIES LTD====,18966-01041N,1,"1,034.22",WATER & SEWERAGE RATES,10/04/14,"1,034.22"
040414C,TRADE WINDS===================,21628,1,453.00,PRINTING,10/04/14,453.00
260314C,FIRE SERVICES YOUTH TRAIN.ASS.,2412,1,375.65,SUBSCRIPTIONS,10/04/14,375.65
260314C,FIRE SERVICES YOUTH TRAIN.ASS.,2413,1,443.95,SUBSCRIPTIONS,10/04/14,443.95
030414C,CARPETS & FLOOR COVERS DIRECT=,2654,1,"1,040.00",FIXTURES & FITTINGS,10/04/14,"1,040.00"
800036035,ADECCO UK LIMITED=============,26738922,1,768.25,FRS STAFF AGENCY,10/04/14,768.25
800036029,ADECCO UK LIMITED=============,26738923,1,879.90,FRS STAFF AGENCY,10/04/14,879.90
800036030,ADECCO UK LIMITED=============,26738924,1,729.36,CONSULTANTS,10/04/14,729.36
800036031,ADECCO UK LIMITED=============,26738925,1,612.15,FRS STAFF AGENCY,10/04/14,612.15
800036032,ADECCO UK LIMITED=============,26738926,1,"2,500.00",FRS STAFF AGENCY,10/04/14,"2,500.00"
800036034,ADECCO UK LIMITED=============,26738928,1,489.72,FRS STAFF AGENCY,10/04/14,489.72
070414C,RS COMPONENTS LTD=============,275703950,1,312.40,TACTICAL DAY TO DAY,10/04/14,312.40
800033193,*BANNER BUSINESS SUPPLIES LTD=,27925592,1,3.01,STATIONERY CONSUMABLES,10/04/14,391.52
800033193,*BANNER BUSINESS SUPPLIES LTD=,27925592,2,3.01,STATIONERY CONSUMABLES,10/04/14,
800033193,*BANNER BUSINESS SUPPLIES LTD=,27925592,3,125.20,STATIONERY CONSUMABLES,10/04/14,
800033193,*BANNER BUSINESS SUPPLIES LTD=,27925592,4,62.60,STATIONERY CONSUMABLES,10/04/14,
800033193,*BANNER BUSINESS SUPPLIES LTD=,27925592,5,62.60,STATIONERY CONSUMABLES,10/04/14,
800033193,*BANNER BUSINESS SUPPLIES LTD=,27925592,6,62.60,STATIONERY CONSUMABLES,10/04/14,
800033193,*BANNER BUSINESS SUPPLIES LTD=,27925592,7,72.50,STATIONERY CONSUMABLES,10/04/14,
260314C,AECOM LIMITED=================,28186014,1,600.00,PROFESSIONAL DEVELOPMENT,10/04/14,"1,200.00"
260314C,AECOM LIMITED=================,28186014,2,600.00,PROFESSIONAL DEVELOPMENT,10/04/14,
070414C,EVOLUTION ENVIRONMENTAL LTD,3050,1,185.00,ASBESTOS,10/04/14,555.00
070414C,EVOLUTION ENVIRONMENTAL LTD,3050,2,185.00,ASBESTOS,10/04/14,
070414C,EVOLUTION ENVIRONMENTAL LTD,3050,3,185.00,ASBESTOS,10/04/14,
270314E,L B OF SUTTON=================,3183731347,1,252.00,CRB CHECKS,10/04/14,252.00
070414C,LEVEL 3 COMMUNICATIONS UK,32380389/805351,1,"14,015.91",MAINTENANCE & SUPPORT,10/04/14,"14,015.91"
030414C,MARTIN LAVELL LTD=============,32898,1,366.55,BOOKS & JOURNALS,10/04/14,366.55
040414C,EXPRESS VENDING LIMITED=======,342917,1,"1,404.00",CATERING EQUIPMENT,10/04/14,"1,404.00"
070414C,OPERATIONAL RESEARCH IN HEALTH,35Y/LFB1/43,1,"5,937.55",CONSULTANTS,10/04/14,"5,937.55"
040414C,COMPUTACENTRE================,3780002534,1,"22,100.84",PURCHASES-COMPUTER/EQUIPMENT,10/04/14,"35,455.32"
040414C,COMPUTACENTRE================,3780002534,2,"13,354.48",PURCHASES-COMPUTER/EQUIPMENT,10/04/14,
040414C,LOCAL GOVERNMENT ASSOCIATION==,40134646,1,432.00,PROFESSIONAL DEVELOPMENT,10/04/14,432.00
701594,LOCAL GOVERNMENT ASSOCIATION==,40134646**,1,360.00,PROFESSIONAL DEVELOPMENT,10/04/14,360.00
040414C,CANON (UK) LTD===============,401504043,1,297.32,OFFICE EQUIPMENT,10/04/14,332.21
040414C,CANON (UK) LTD===============,401504043,2,34.89,OFFICE EQUIPMENT,10/04/14,
260314G,PRESCO========================,432850,1,102.80,STATIONERY CONSUMABLES,10/04/14,254.06
260314G,PRESCO========================,432850,2,151.26,STATIONERY CONSUMABLES,10/04/14,
030414C,SPORTSAFE UK LTD==============,455592,1,295.00,GYM EQUIPMENT,10/04/14,295.00
030414C,FAHEY BUILDERS LTD============,5190,1,760.00,SPECIAL CLEANS,10/04/14,760.00
070414C,FAHEY BUILDERS LTD============,5191,1,"7,850.00",STRATEGIC (NON CYCLICAL),10/04/14,"9,690.00"
070414C,FAHEY BUILDERS LTD============,5191,2,"1,840.00",STRATEGIC (NON CYCLICAL),10/04/14,
030414C,FAHEY BUILDERS LTD============,5192,1,685.00,SPECIAL CLEANS,10/04/14,685.00
040414C,FAHEY BUILDERS LTD============,5193,1,780.00,SPECIAL CLEANS,10/04/14,780.00
030414C,RSG ENGINEERING LTD===========,51930,1,400.00,SPECIALIST EQUIPMENT,10/04/14,400.00
030414C,FAHEY BUILDERS LTD============,5194,1,680.00,SPECIAL CLEANS,10/04/14,680.00
030414C,FAHEY BUILDERS LTD============,5195,1,740.00,SPECIAL CLEANS,10/04/14,740.00
030414C,FAHEY BUILDERS LTD============,5196,1,760.00,SPECIAL CLEANS,10/04/14,760.00
070414C,FAHEY BUILDERS LTD============,5197,1,740.00,SPECIAL CLEANS,10/04/14,740.00
070414C,FAHEY BUILDERS LTD============,5198,1,780.00,SPECIAL CLEANS,10/04/14,780.00
070414C,FAHEY BUILDERS LTD============,5200,1,780.00,SPECIAL CLEANS,10/04/14,780.00
070414C,FAHEY BUILDERS LTD============,5201,1,750.00,SPECIAL CLEANS,10/04/14,750.00
040414C,UNIFY,549G6000851004,1,"2,175.00",PURCHASES-IT COMMUNICATIONS,10/04/14,"2,175.00"
030414C,SAFEGUARD PEST CON. & ENV.LTD,5582,1,730.00,PEST CONTROL,10/04/14,730.00
800033241,*GREENHAM TRADING LTD=========,5635939,1,10.81,HYGIENE,10/04/14,506.58
800033241,*GREENHAM TRADING LTD=========,5635939,2,10.81,HYGIENE,10/04/14,
800033241,*GREENHAM TRADING LTD=========,5635939,3,141.32,HYGIENE,10/04/14,
800033241,*GREENHAM TRADING LTD=========,5635939,4,29.50,HYGIENE,10/04/14,
800033241,*GREENHAM TRADING LTD=========,5635939,5,2.72,HYGIENE,10/04/14,
800033241,*GREENHAM TRADING LTD=========,5635939,6,2.76,HYGIENE,10/04/14,
800033241,*GREENHAM TRADING LTD=========,5635939,7,2.76,HYGIENE,10/04/14,
800033241,*GREENHAM TRADING LTD=========,5635939,8,2.76,HYGIENE,10/04/14,
800033241,*GREENHAM TRADING LTD=========,5635939,9,3.80,HYGIENE,10/04/14,
800033241,*GREENHAM TRADING LTD=========,5635939,10,3.80,HYGIENE,10/04/14,
800033241,*GREENHAM TRADING LTD=========,5635939,11,6.84,HYGIENE,10/04/14,
800033241,*GREENHAM TRADING LTD=========,5635939,12,14.60,HYGIENE,10/04/14,
800033241,*GREENHAM TRADING LTD=========,5635939,13,14.60,HYGIENE,10/04/14,
800033241,*GREENHAM TRADING LTD=========,5635939,14,31.00,HYGIENE,10/04/14,
800033241,*GREENHAM TRADING LTD=========,5635939,15,8.28,HYGIENE,10/04/14,
800033241,*GREENHAM TRADING LTD=========,5635939,16,40.00,HYGIENE,10/04/14,
800033241,*GREENHAM TRADING LTD=========,5635939,17,4.52,HYGIENE,10/04/14,
800033241,*GREENHAM TRADING LTD=========,5635939,18,8.00,HYGIENE,10/04/14,
800033241,*GREENHAM TRADING LTD=========,5635939,19,31.00,HYGIENE,10/04/14,
800033241,*GREENHAM TRADING LTD=========,5635939,20,40.75,HYGIENE,10/04/14,
800033241,*GREENHAM TRADING LTD=========,5635939,21,40.75,HYGIENE,10/04/14,
800033241,*GREENHAM TRADING LTD=========,5635939,22,27.60,HYGIENE,10/04/14,
800033241,*GREENHAM TRADING LTD=========,5635939,23,27.60,HYGIENE,10/04/14,
800033246,*GREENHAM TRADING LTD=========,5635946,1,24.80,HYGIENE,10/04/14,268.58
800033246,*GREENHAM TRADING LTD=========,5635946,2,10.70,HYGIENE,10/04/14,
800033246,*GREENHAM TRADING LTD=========,5635946,3,6.60,HYGIENE,10/04/14,
800033246,*GREENHAM TRADING LTD=========,5635946,4,27.96,OPERATIONAL EQUIP-PURCHASE,10/04/14,
800033246,*GREENHAM TRADING LTD=========,5635946,5,6.84,HYGIENE,10/04/14,
800033246,*GREENHAM TRADING LTD=========,5635946,6,40.75,HYGIENE,10/04/14,
800033246,*GREENHAM TRADING LTD=========,5635946,7,22.30,CLOTHING,10/04/14,
800033246,*GREENHAM TRADING LTD=========,5635946,8,4.94,HYGIENE,10/04/14,
800033246,*GREENHAM TRADING LTD=========,5635946,9,47.56,HYGIENE,10/04/14,
800033246,*GREENHAM TRADING LTD=========,5635946,10,32.43,HYGIENE,10/04/14,
800033246,*GREENHAM TRADING LTD=========,5635946,11,21.62,HYGIENE,10/04/14,
800033246,*GREENHAM TRADING LTD=========,5635946,12,22.08,HYGIENE,10/04/14,
800033264,*GREENHAM TRADING LTD=========,5635966,1,31.00,HYGIENE,10/04/14,391.12
800033264,*GREENHAM TRADING LTD=========,5635966,2,40.75,HYGIENE,10/04/14,
800033264,*GREENHAM TRADING LTD=========,5635966,3,10.70,HYGIENE,10/04/14,
800033264,*GREENHAM TRADING LTD=========,5635966,4,29.50,HYGIENE,10/04/14,
800033264,*GREENHAM TRADING LTD=========,5635966,5,19.50,HYGIENE,10/04/14,
800033264,*GREENHAM TRADING LTD=========,5635966,6,5.10,HYGIENE,10/04/14,
800033264,*GREENHAM TRADING LTD=========,5635966,7,22.60,HYGIENE,10/04/14,
800033264,*GREENHAM TRADING LTD=========,5635966,8,98.80,HYGIENE,10/04/14,
800033264,*GREENHAM TRADING LTD=========,5635966,9,18.64,OPERATIONAL EQUIP-PURCHASE,10/04/14,
800033264,*GREENHAM TRADING LTD=========,5635966,10,27.60,HYGIENE,10/04/14,
800033264,*GREENHAM TRADING LTD=========,5635966,11,29.36,HYGIENE,10/04/14,
800033264,*GREENHAM TRADING LTD=========,5635966,12,43.24,HYGIENE,10/04/14,
800033264,*GREENHAM TRADING LTD=========,5635966,13,1.64,HYGIENE,10/04/14,
800033264,*GREENHAM TRADING LTD=========,5635966,14,1.90,HYGIENE,10/04/14,
800033264,*GREENHAM TRADING LTD=========,5635966,15,10.79,HYGIENE,10/04/14,
140626,THAMES WATER UTILITIES LTD====,61085967898#,1,258.98,WATER & SEWERAGE RATES,10/04/14,258.98
070414C,CONTRACT CATERING CONSULTANTS=,6235,1,500.00,CONSULTANTS,10/04/14,500.00
070414C,GAS & AIR SERVICES (UK)=======,6361,1,"4,800.00",REPAIR & MAINTENANCE,10/04/14,"4,800.00"
070414C,MOORE STEPHENS CONSULTING LTD=,673448,1,"5,000.00",CONSULTANTS,10/04/14,"5,000.00"
070414C,MOORE STEPHENS CONSULTING LTD=,673449,1,"33,000.00",CONSULTANTS,10/04/14,"33,000.00"
070414C,MOORE STEPHENS CONSULTING LTD=,673450,1,"7,000.00",TELECOMMUNICATIONS,10/04/14,"7,000.00"
070414C,MOORE STEPHENS CONSULTING LTD=,673451,1,"3,500.00",MAINTENANCE & SUPPORT,10/04/14,"3,500.00"
070414C,MOORE STEPHENS CONSULTING LTD=,673452,1,"4,000.00",MAINTENANCE & SUPPORT,10/04/14,"4,000.00"
070414C,MERLIN ELECTRICAL SERVICES LTD,6799,1,"1,387.35",STRATEGIC (NON CYCLICAL),10/04/14,"1,387.35"
140626,THAMES WATER UTILITIES LTD====,69230-96400C,1,857.70,WATER & SEWERAGE RATES,10/04/14,857.70
070414C,*SP SERVICES,728507,1,414.40,HYGIENE,10/04/14,414.40
070414C,TWO SERVICES LTD==============,75838,1,681.50,CATERING EQUIPMENT,10/04/14,681.50
070414C,TWO SERVICES LTD==============,75839,1,713.00,CATERING EQUIPMENT,10/04/14,713.00
070414C,TWO SERVICES LTD==============,75840,1,681.50,CATERING EQUIPMENT,10/04/14,681.50
020414C,GREATER MANCHESTER FRS=======,76057770001,1,"7,904.78",FIRE AUTHORITIES,10/04/14,"7,904.78"
070414C,ANGUS FIRE LIMITED,8025367,1,"2,047.00",OPERATIONAL EQUIP-PURCHASE,10/04/14,"2,126.00"
070414C,ANGUS FIRE LIMITED,8025367,2,79.00,OPERATIONAL EQUIP-PURCHASE,10/04/14,
140626,THAMES WATER UTILITIES LTD====,8204330850H,1,490.11,WATER & SEWERAGE RATES,10/04/14,490.11
140625,BRITISH GAS ENERGY PERFORMANCE,90212763,1,128.40,GAS,10/04/14,"23,368.80"
140625,BRITISH GAS ENERGY PERFORMANCE,90212763,2,256.80,GAS,10/04/14,
140625,BRITISH GAS ENERGY PERFORMANCE,90212763,3,128.40,GAS,10/04/14,
140625,BRITISH GAS ENERGY PERFORMANCE,90212763,4,128.40,GAS,10/04/14,
140625,BRITISH GAS ENERGY PERFORMANCE,90212763,5,128.40,GAS,10/04/14,
140625,BRITISH GAS ENERGY PERFORMANCE,90212763,6,256.80,GAS,10/04/14,
140625,BRITISH GAS ENERGY PERFORMANCE,90212763,7,128.40,GAS,10/04/14,
140625,BRITISH GAS ENERGY PERFORMANCE,90212763,8,642.00,GAS,10/04/14,
140625,BRITISH GAS ENERGY PERFORMANCE,90212763,9,513.60,GAS,10/04/14,
140625,BRITISH GAS ENERGY PERFORMANCE,90212763,10,128.40,GAS,10/04/14,
140625,BRITISH GAS ENERGY PERFORMANCE,90212763,11,256.80,GAS,10/04/14,
140625,BRITISH GAS ENERGY PERFORMANCE,90212763,12,128.40,GAS,10/04/14,
140625,BRITISH GAS ENERGY PERFORMANCE,90212763,13,128.40,GAS,10/04/14,
140625,BRITISH GAS ENERGY PERFORMANCE,90212763,14,128.40,GAS,10/04/14,
140625,BRITISH GAS ENERGY PERFORMANCE,90212763,15,256.80,GAS,10/04/14,
140625,BRITISH GAS ENERGY PERFORMANCE,90212763,16,256.80,GAS,10/04/14,
140625,BRITISH GAS ENERGY PERFORMANCE,90212763,17,256.80,GAS,10/04/14,
140625,BRITISH GAS ENERGY PERFORMANCE,90212763,18,128.40,GAS,10/04/14,
140625,BRITISH GAS ENERGY PERFORMANCE,90212763,19,128.40,GAS,10/04/14,
140625,BRITISH GAS ENERGY PERFORMANCE,90212763,20,256.80,GAS,10/04/14,
140625,BRITISH GAS ENERGY PERFORMANCE,90212763,21,128.40,GAS,10/04/14,
140625,BRITISH GAS ENERGY PERFORMANCE,90212763,22,128.40,GAS,10/04/14,
140625,BRITISH GAS ENERGY PERFORMANCE,90212763,23,385.20,GAS,10/04/14,
140625,BRITISH GAS ENERGY PERFORMANCE,90212763,24,128.40,GAS,10/04/14,
140625,BRITISH GAS ENERGY PERFORMANCE,90212763,25,256.80,GAS,10/04/14,
140625,BRITISH GAS ENERGY PERFORMANCE,90212763,26,256.80,GAS,10/04/14,
140625,BRITISH GAS ENERGY PERFORMANCE,90212763,27,256.80,GAS,10/04/14,
140625,BRITISH GAS ENERGY PERFORMANCE,90212763,28,128.40,GAS,10/04/14,
140625,BRITISH GAS ENERGY PERFORMANCE,90212763,29,385.20,GAS,10/04/14,
140625,BRITISH GAS ENERGY PERFORMANCE,90212763,30,256.80,GAS,10/04/14,
140625,BRITISH GAS ENERGY PERFORMANCE,90212763,31,128.40,GAS,10/04/14,
140625,BRITISH GAS ENERGY PERFORMANCE,90212763,32,385.20,GAS,10/04/14,
140625,BRITISH GAS ENERGY PERFORMANCE,90212763,33,128.40,GAS,10/04/14,
140625,BRITISH GAS ENERGY PERFORMANCE,90212763,34,128.40,GAS,10/04/14,
140625,BRITISH GAS ENERGY PERFORMANCE,90212763,35,128.40,GAS,10/04/14,
140625,BRITISH GAS ENERGY PERFORMANCE,90212763,36,256.80,GAS,10/04/14,
140625,BRITISH GAS ENERGY PERFORMANCE,90212763,37,256.80,GAS,10/04/14,
140625,BRITISH GAS ENERGY PERFORMANCE,90212763,38,128.40,GAS,10/04/14,
140625,BRITISH GAS ENERGY PERFORMANCE,90212763,39,128.40,GAS,10/04/14,
140625,BRITISH GAS ENERGY PERFORMANCE,90212763,40,256.80,GAS,10/04/14,
140625,BRITISH GAS ENERGY PERFORMANCE,90212763,41,513.60,GAS,10/04/14,
140625,BRITISH GAS ENERGY PERFORMANCE,90212763,42,128.40,GAS,10/04/14,
140625,BRITISH GAS ENERGY PERFORMANCE,90212763,43,128.40,GAS,10/04/14,
140625,BRITISH GAS ENERGY PERFORMANCE,90212763,44,256.80,GAS,10/04/14,
140625,BRITISH GAS ENERGY PERFORMANCE,90212763,45,385.20,GAS,10/04/14,
140625,BRITISH GAS ENERGY PERFORMANCE,90212763,46,128.40,GAS,10/04/14,
140625,BRITISH GAS ENERGY PERFORMANCE,90212763,47,256.80,GAS,10/04/14,
140625,BRITISH GAS ENERGY PERFORMANCE,90212763,48,256.80,GAS,10/04/14,
140625,BRITISH GAS ENERGY PERFORMANCE,90212763,49,256.80,GAS,10/04/14,
140625,BRITISH GAS ENERGY PERFORMANCE,90212763,50,256.80,GAS,10/04/14,
140625,BRITISH GAS ENERGY PERFORMANCE,90212763,51,256.80,GAS,10/04/14,
140625,BRITISH GAS ENERGY PERFORMANCE,90212763,52,128.40,GAS,10/04/14,
140625,BRITISH GAS ENERGY PERFORMANCE,90212763,53,128.40,GAS,10/04/14,
140625,BRITISH GAS ENERGY PERFORMANCE,90212763,54,128.40,GAS,10/04/14,
140625,BRITISH GAS ENERGY PERFORMANCE,90212763,55,128.40,GAS,10/04/14,
140625,BRITISH GAS ENERGY PERFORMANCE,90212763,56,128.40,GAS,10/04/14,
140625,BRITISH GAS ENERGY PERFORMANCE,90212763,57,128.40,GAS,10/04/14,
140625,BRITISH GAS ENERGY PERFORMANCE,90212763,58,128.40,GAS,10/04/14,
140625,BRITISH GAS ENERGY PERFORMANCE,90212763,59,128.40,GAS,10/04/14,
140625,BRITISH GAS ENERGY PERFORMANCE,90212763,60,128.40,GAS,10/04/14,
140625,BRITISH GAS ENERGY PERFORMANCE,90212763,61,128.40,GAS,10/04/14,
140625,BRITISH GAS ENERGY PERFORMANCE,90212763,62,128.40,GAS,10/04/14,
140625,BRITISH GAS ENERGY PERFORMANCE,90212763,63,385.20,GAS,10/04/14,
140625,BRITISH GAS ENERGY PERFORMANCE,90212763,64,256.80,GAS,10/04/14,
140625,BRITISH GAS ENERGY PERFORMANCE,90212763,65,128.40,GAS,10/04/14,
140625,BRITISH GAS ENERGY PERFORMANCE,90212763,66,128.40,GAS,10/04/14,
140625,BRITISH GAS ENERGY PERFORMANCE,90212763,67,770.40,GAS,10/04/14,
140625,BRITISH GAS ENERGY PERFORMANCE,90212763,68,128.40,GAS,10/04/14,
140625,BRITISH GAS ENERGY PERFORMANCE,90212763,69,128.40,GAS,10/04/14,
140625,BRITISH GAS ENERGY PERFORMANCE,90212763,70,128.40,GAS,10/04/14,
140625,BRITISH GAS ENERGY PERFORMANCE,90212763,71,256.80,GAS,10/04/14,
140625,BRITISH GAS ENERGY PERFORMANCE,90212763,72,385.20,GAS,10/04/14,
140625,BRITISH GAS ENERGY PERFORMANCE,90212763,73,128.40,GAS,10/04/14,
140625,BRITISH GAS ENERGY PERFORMANCE,90212763,74,128.40,GAS,10/04/14,
140625,BRITISH GAS ENERGY PERFORMANCE,90212763,75,128.40,GAS,10/04/14,
140625,BRITISH GAS ENERGY PERFORMANCE,90212763,76,128.40,GAS,10/04/14,
140625,BRITISH GAS ENERGY PERFORMANCE,90212763,77,256.80,GAS,10/04/14,
140625,BRITISH GAS ENERGY PERFORMANCE,90212763,78,128.40,GAS,10/04/14,
140625,BRITISH GAS ENERGY PERFORMANCE,90212763,79,385.20,GAS,10/04/14,
140625,BRITISH GAS ENERGY PERFORMANCE,90212763,80,128.40,GAS,10/04/14,
140625,BRITISH GAS ENERGY PERFORMANCE,90212763,81,128.40,GAS,10/04/14,
140625,BRITISH GAS ENERGY PERFORMANCE,90212763,82,256.80,GAS,10/04/14,
140625,BRITISH GAS ENERGY PERFORMANCE,90212763,83,513.60,GAS,10/04/14,
140625,BRITISH GAS ENERGY PERFORMANCE,90212763,84,128.40,GAS,10/04/14,
140625,BRITISH GAS ENERGY PERFORMANCE,90212763,85,128.40,GAS,10/04/14,
140625,BRITISH GAS ENERGY PERFORMANCE,90212763,86,128.40,GAS,10/04/14,
140625,BRITISH GAS ENERGY PERFORMANCE,90212763,87,128.40,GAS,10/04/14,
140625,BRITISH GAS ENERGY PERFORMANCE,90212763,88,128.40,GAS,10/04/14,
140625,BRITISH GAS ENERGY PERFORMANCE,90212763,89,128.40,GAS,10/04/14,
140625,BRITISH GAS ENERGY PERFORMANCE,90212763,90,128.40,GAS,10/04/14,
140625,BRITISH GAS ENERGY PERFORMANCE,90212763,91,256.80,GAS,10/04/14,
140625,BRITISH GAS ENERGY PERFORMANCE,90212763,92,128.40,GAS,10/04/14,
140625,BRITISH GAS ENERGY PERFORMANCE,90212763,93,128.40,GAS,10/04/14,
140625,BRITISH GAS ENERGY PERFORMANCE,90212763,94,256.80,GAS,10/04/14,
140625,BRITISH GAS ENERGY PERFORMANCE,90212763,95,256.80,GAS,10/04/14,
140625,BRITISH GAS ENERGY PERFORMANCE,90212763,96,128.40,GAS,10/04/14,
140625,BRITISH GAS ENERGY PERFORMANCE,90212763,97,128.40,GAS,10/04/14,
140625,BRITISH GAS ENERGY PERFORMANCE,90212763,98,128.40,GAS,10/04/14,
140625,BRITISH GAS ENERGY PERFORMANCE,90212763,99,128.40,GAS,10/04/14,
140625,BRITISH GAS ENERGY PERFORMANCE,90212763,100,128.40,GAS,10/04/14,
140625,BRITISH GAS ENERGY PERFORMANCE,90212763,101,256.80,GAS,10/04/14,
140625,BRITISH GAS ENERGY PERFORMANCE,90212763,102,128.40,GAS,10/04/14,
140625,BRITISH GAS ENERGY PERFORMANCE,90212763,103,128.40,GAS,10/04/14,
140625,BRITISH GAS ENERGY PERFORMANCE,90212763,104,128.40,GAS,10/04/14,
140625,BRITISH GAS ENERGY PERFORMANCE,90212763,105,128.40,GAS,10/04/14,
140625,BRITISH GAS ENERGY PERFORMANCE,90212763,106,128.40,GAS,10/04/14,
140625,BRITISH GAS ENERGY PERFORMANCE,90212763,107,385.20,GAS,10/04/14,
140625,BRITISH GAS ENERGY PERFORMANCE,90212763,108,256.80,GAS,10/04/14,
140625,BRITISH GAS ENERGY PERFORMANCE,90212763,109,128.40,GAS,10/04/14,
140625,BRITISH GAS ENERGY PERFORMANCE,90212763,110,256.80,GAS,10/04/14,
140625,BRITISH GAS ENERGY PERFORMANCE,90212763,111,385.20,GAS,10/04/14,
140625,BRITISH GAS ENERGY PERFORMANCE,90212763,112,128.40,GAS,10/04/14,
140625,BRITISH GAS ENERGY PERFORMANCE,90212763,113,385.20,GAS,10/04/14,
140625,BRITISH GAS ENERGY PERFORMANCE,90212763,114,128.40,GAS,10/04/14,
020414C,DRAEGER SAFETY UK LIMITED=====,90441375,1,25.60,PROTECTIVE EQUIPT - PARTS,10/04/14,668.00
020414C,DRAEGER SAFETY UK LIMITED=====,90441375,2,111.10,PROTECTIVE EQUIPT - PARTS,10/04/14,
020414C,DRAEGER SAFETY UK LIMITED=====,90441375,3,362.50,PROTECTIVE EQUIPT - PARTS,10/04/14,
020414C,DRAEGER SAFETY UK LIMITED=====,90441375,4,168.80,PROTECTIVE EQUIPT - PARTS,10/04/14,
260314C,CAPITA SECURE INFO SOLUTIONS,93538078,1,"53,214.26",CAMS CONTRACT,10/04/14,"53,214.26"
030414C,CAPITA SECURE INFO SOLUTIONS,93538109,1,792.00,ACQUISITIONS,10/04/14,"1,172.16"
030414C,CAPITA SECURE INFO SOLUTIONS,93538109,2,264.00,ACQUISITIONS,10/04/14,
030414C,CAPITA SECURE INFO SOLUTIONS,93538109,3,116.16,ACQUISITIONS,10/04/14,
070414C,BSI MANAGEMENT SYSTEMS,94020154/2000,1,"8,239.00",BOOKS & JOURNALS,10/04/14,"8,239.00"
270314E,NISBETS=======================,9503980,1,529.99,CATERING EQUIPMENT,10/04/14,529.99
270314E,NISBETS=======================,9503981,1,529.99,CATERING EQUIPMENT,10/04/14,529.99
310314F,NISBETS=======================,9503982,1,529.99,CATERING EQUIPMENT,10/04/14,529.99
070414C,LONDON BOROUGH OF LAMBETH,ADPSD290,1,"30,583.72",DEVELOPMENT  EXPENSES-CONTRACT,10/04/14,"30,583.72"
070414C,THAMES WATER UTILITIES LTD====,ADPSD291,1,"1,500.00",PROF FEES-MISCELLANEOUS,10/04/14,"1,500.00"
070414C,ASTEC SURVEYS LIMITED=========,ASL-14-118,1,500.00,ASBESTOS,10/04/14,500.00
070414C,ASTEC SURVEYS LIMITED=========,ASL-14-125,1,195.00,ASBESTOS,10/04/14,370.00
070414C,ASTEC SURVEYS LIMITED=========,ASL-14-125,2,175.00,ASBESTOS,10/04/14,
070414C,ASTEC SURVEYS LIMITED=========,ASL-14-129,1,375.00,ASBESTOS,10/04/14,375.00
250314E,SURVITEC SERVICE &DISTRIBUTION,CD30776187,1,831.75,OPERATIONAL EQUIP-PURCHASE,10/04/14,"1,436.75"
250314E,SURVITEC SERVICE &DISTRIBUTION,CD30776187,2,590.00,OPERATIONAL EQUIP-PURCHASE,10/04/14,
250314E,SURVITEC SERVICE &DISTRIBUTION,CD30776187,3,15.00,OPERATIONAL EQUIP-PURCHASE,10/04/14,
250314E,SURVITEC SERVICE &DISTRIBUTION,CD30776188,1,133.08,OPERATIONAL EQUIP-PURCHASE,10/04/14,377.08
250314E,SURVITEC SERVICE &DISTRIBUTION,CD30776188,2,236.00,OPERATIONAL EQUIP-PURCHASE,10/04/14,
250314E,SURVITEC SERVICE &DISTRIBUTION,CD30776188,3,8.00,OPERATIONAL EQUIP-PURCHASE,10/04/14,
260314C,SURVITEC SERVICE &DISTRIBUTION,CD30776581,1,"5,280.00",OPERATIONAL EQUIP-PURCHASE,10/04/14,"6,600.00"
260314C,SURVITEC SERVICE &DISTRIBUTION,CD30776581,2,"1,320.00",OPERATIONAL EQUIP-PURCHASE,10/04/14,
020414C,THE GEOINFORMATION GROUP======,D140317,1,"10,000.00",CONSULTANTS,10/04/14,"10,000.00"
250314C,PAULA OWEN CONSULTING LTD,EAG24032014,1,200.00,GENERAL,10/04/14,300.00
250314C,PAULA OWEN CONSULTING LTD,EAG24032014,2,45.00,GENERAL,10/04/14,
250314C,PAULA OWEN CONSULTING LTD,EAG24032014,3,50.00,GENERAL,10/04/14,
250314C,PAULA OWEN CONSULTING LTD,EAG24032014,4,5.00,GENERAL,10/04/14,
070414C,KIER BUILDING SERV ENGINEERS==,F00048239,1,"2,076.29",STRATEGIC (NON CYCLICAL),10/04/14,"2,076.29"
260314C,PURDY CONTRACTS LTD,IN233474,1,"16,515.39",STRATEGIC (NON CYCLICAL),10/04/14,"16,515.39"
040414C,CARDINUS LTD==================,INV-49064-PH2BDD,1,"3,265.30",MAINTENANCE & SUPPORT,10/04/14,"3,265.30"
070414C,SPECIALIST COMPUTER CENTRES===,OP/L825379,1,"1,475.00",ACQUISITIONS,10/04/14,"1,475.00"
070414C,SAFETYNET SOLUTIONS LIMITED===,PSI-0018802,1,636.00,PREMISES SECURITY,10/04/14,636.00
270314E,HUNTER LODGE==================,SI-05474C,1,"2,530.00",ADVERTISING,10/04/14,"2,530.00"
070414C,HUNTER LODGE==================,SI-05474E,1,"22,500.00",ADVERTISING,10/04/14,"22,500.00"
260314G,SABRE SAFETY LTD,SUKIN11850,1,387.32,PROTECTIVE EQUIPT - PARTS,10/04/14,763.65
260314G,SABRE SAFETY LTD,SUKIN11850,2,238.86,PROTECTIVE EQUIPT - PARTS,10/04/14,
260314G,SABRE SAFETY LTD,SUKIN11850,3,124.97,PROTECTIVE EQUIPT - PARTS,10/04/14,
260314G,SABRE SAFETY LTD,SUKIN11850,4,12.50,REPAIR & MAINTENANCE,10/04/14,
040414C,GREENSPACE INFO.FOR GT. LONDON,0000000930,1,"2,000.00",SUBSCRIPTIONS,14/04/14,"2,000.00"
270314E,HEALTH MANAGEMENT LIMITED=====,0000111146,1,"6,461.00",MEDICAL APPEALS,14/04/14,"6,461.00"
140627,THAMES WATER UTILITIES LTD====,04230-30577B,1,901.43,WATER & SEWERAGE RATES,14/04/14,901.43
080414E,*SPRUE SAFETY PRODUCTS LTD====,1058796,1,"1,730.40",FIRE DETECTORS,14/04/14,"1,730.40"
310314F,*SPRUE SAFETY PRODUCTS LTD====,1059105,1,"1,112.40",FIRE DETECTORS,14/04/14,"1,112.40"
310314F,*SPRUE SAFETY PRODUCTS LTD====,1059106,1,"1,483.20",FIRE DETECTORS,14/04/14,"1,483.20"
310314F,*SPRUE SAFETY PRODUCTS LTD====,1059111,1,"1,483.20",FIRE DETECTORS,14/04/14,"1,483.20"
070414C,*SPRUE SAFETY PRODUCTS LTD====,1059113,1,"1,730.40",FIRE DETECTORS,14/04/14,"1,730.40"
070414C,*SPRUE SAFETY PRODUCTS LTD====,1059115,1,618.00,FIRE DETECTORS,14/04/14,618.00
070414C,*SPRUE SAFETY PRODUCTS LTD====,1059117,1,988.80,FIRE DETECTORS,14/04/14,988.80
070414C,*SPRUE SAFETY PRODUCTS LTD====,1059118,1,494.40,FIRE DETECTORS,14/04/14,494.40
080414E,*SPRUE SAFETY PRODUCTS LTD====,1059119,1,"2,101.20",FIRE DETECTORS,14/04/14,"2,101.20"
310314F,*SPRUE SAFETY PRODUCTS LTD====,1059120,1,"1,483.20",FIRE DETECTORS,14/04/14,"1,483.20"
020414E,*SPRUE SAFETY PRODUCTS LTD====,1059162,1,880.00,FIRE DETECTORS,14/04/14,"2,200.00"
020414E,*SPRUE SAFETY PRODUCTS LTD====,1059162,2,"1,320.00",FIRE DETECTORS,14/04/14,
020414E,*SPRUE SAFETY PRODUCTS LTD====,1059163,1,880.00,FIRE DETECTORS,14/04/14,880.00
800033222,*JAMES HUNTER (OUTFITTERS) LTD,107573,1,294.48,CLOTHING,14/04/14,294.48
800033460,*JAMES HUNTER (OUTFITTERS) LTD,107596,1,231.56,CLOTHING,14/04/14,293.35
800033460,*JAMES HUNTER (OUTFITTERS) LTD,107596,2,61.79,CLOTHING,14/04/14,
800033461,*JAMES HUNTER (OUTFITTERS) LTD,107597,1,231.56,CLOTHING,14/04/14,293.35
800033461,*JAMES HUNTER (OUTFITTERS) LTD,107597,2,61.79,CLOTHING,14/04/14,
800033463,*JAMES HUNTER (OUTFITTERS) LTD,107599,1,231.56,CLOTHING,14/04/14,293.35
800033463,*JAMES HUNTER (OUTFITTERS) LTD,107599,2,61.79,CLOTHING,14/04/14,
800033467,*JAMES HUNTER (OUTFITTERS) LTD,107603,1,231.56,CLOTHING,14/04/14,293.35
800033467,*JAMES HUNTER (OUTFITTERS) LTD,107603,2,61.79,CLOTHING,14/04/14,
090414E,GREEN ENERGY PARTNERS LTD,1120,1,"2,625.00",CONSULTANTS,14/04/14,"3,249.06"
090414E,GREEN ENERGY PARTNERS LTD,1120,2,624.06,CONSULTANTS,14/04/14,
310314F,INFOR (UNITED KINGDOM) LIMITED,11402300-GB04G,1,"1,150.00",MAINTENANCE & SUPPORT,14/04/14,"1,150.00"
040414C,INFOR (UNITED KINGDOM) LIMITED,11402308-GB04G,1,"5,992.01",MAINTENANCE & SUPPORT,14/04/14,"5,992.01"
080414E,VISTA LANDSCAPE MANAGEMENT LTD,119610,1,750.00,GROUNDS MAINTENANCE,14/04/14,750.00
080414E,VISTA LANDSCAPE MANAGEMENT LTD,119611,1,495.01,GROUNDS MAINTENANCE,14/04/14,495.01
080414E,VISTA LANDSCAPE MANAGEMENT LTD,119612,1,573.59,GROUNDS MAINTENANCE,14/04/14,573.59
080414E,VISTA LANDSCAPE MANAGEMENT LTD,119613,1,725.00,GROUNDS MAINTENANCE,14/04/14,725.00
020414C,HAGEMEYER UK LTD==============,130696815,1,"1,108.90",FIRE DETECTORS,14/04/14,"1,108.90"
090414E,VECTOR COMMAND LTD============,1569,1,"65,584.00",MAINTENANCE & SUPPORT,14/04/14,"65,584.00"
260314G,GREATER LONDON AUTHORITY======,1800003936,1,"3,618.26",FIRE AUTHS-MUTUAL ASSISTANCE,14/04/14,"3,618.26"
090414E,BRIGHT INTERACTIVE LTD========,182/0141/1,1,450.00,CONSULTANTS,14/04/14,450.00
260314G,PSYCHOLOGICAL CONSULTANCY LTD,19478,1,"6,075.00",ASSESSMENTS,14/04/14,"6,075.00"
070414C,THE STATIONERY OFFICE LTD=====,2086647X,1,714.00,BOOKS & JOURNALS,14/04/14,714.00
090414E,B NOKES CONTRACTS LTD,2126,1,"6,107.75",STRATEGIC (NON CYCLICAL),14/04/14,"6,107.75"
140627,ESSEX & SUFFOLK WATER PLC=====,2518200017'R',1,"1,444.20",WATER & SEWERAGE RATES,14/04/14,"1,444.20"
080414E,CARPETS & FLOOR COVERS DIRECT=,2667,1,865.64,TACTICAL DAY TO DAY,14/04/14,865.64
040414C,SUNDERLAND CITY COUNCIL,2808006277,1,"14,866.68",FIRE AUTHORITIES,14/04/14,"14,866.68"
090414E,ARTIC BUILDING SERVICES LTD,34413,1,"30,094.69",PROF FEES-MISCELLANEOUS,14/04/14,"30,094.69"
020414C,CK DIRECT,3481,1,"8,185.00",STRATEGIC (NON CYCLICAL),14/04/14,"8,185.00"
080414E,CLASSIC VIDEO INTERNATIONAL===,37944,1,"17,511.00",PUBLIC RELATIONS,14/04/14,"17,511.00"
140627,FOCUS & VISION TECHNOLOGY LTD,39496,1,556.96,MEDICAL EXPENSES CLAIMS,14/04/14,556.96
140627,FOCUS & VISION TECHNOLOGY LTD,39518,1,426.55,MEDICAL EXPENSES CLAIMS,14/04/14,426.55
140627,FOCUS & VISION TECHNOLOGY LTD,39664,1,936.48,MEDICAL EXPENSES CLAIMS,14/04/14,936.48
080414E,KNIGHTON CLEANING SERVICES LTD,40038,1,972.90,GENERAL CLEANS,14/04/14,"68,976.83"
080414E,KNIGHTON CLEANING SERVICES LTD,40038,2,"1,072.79",GENERAL CLEANS,14/04/14,
080414E,KNIGHTON CLEANING SERVICES LTD,40038,3,"1,006.42",GENERAL CLEANS,14/04/14,
080414E,KNIGHTON CLEANING SERVICES LTD,40038,4,"1,212.03",GENERAL CLEANS,14/04/14,
080414E,KNIGHTON CLEANING SERVICES LTD,40038,5,588.44,GENERAL CLEANS,14/04/14,
080414E,KNIGHTON CLEANING SERVICES LTD,40038,6,"1,352.92",GENERAL CLEANS,14/04/14,
080414E,KNIGHTON CLEANING SERVICES LTD,40038,7,"1,962.26",GENERAL CLEANS,14/04/14,
080414E,KNIGHTON CLEANING SERVICES LTD,40038,8,"2,019.86",GENERAL CLEANS,14/04/14,
080414E,KNIGHTON CLEANING SERVICES LTD,40038,9,"3,162.88",GENERAL CLEANS,14/04/14,
080414E,KNIGHTON CLEANING SERVICES LTD,40038,10,995.59,GENERAL CLEANS,14/04/14,
080414E,KNIGHTON CLEANING SERVICES LTD,40038,11,879.86,GENERAL CLEANS,14/04/14,
080414E,KNIGHTON CLEANING SERVICES LTD,40038,12,"1,208.43",GENERAL CLEANS,14/04/14,
080414E,KNIGHTON CLEANING SERVICES LTD,40038,13,"1,003.19",GENERAL CLEANS,14/04/14,
080414E,KNIGHTON CLEANING SERVICES LTD,40038,14,"1,048.85",GENERAL CLEANS,14/04/14,
080414E,KNIGHTON CLEANING SERVICES LTD,40038,15,"1,071.34",GENERAL CLEANS,14/04/14,
080414E,KNIGHTON CLEANING SERVICES LTD,40038,16,"1,333.85",GENERAL CLEANS,14/04/14,
080414E,KNIGHTON CLEANING SERVICES LTD,40038,17,"1,214.66",GENERAL CLEANS,14/04/14,
080414E,KNIGHTON CLEANING SERVICES LTD,40038,18,581.88,GENERAL CLEANS,14/04/14,
080414E,KNIGHTON CLEANING SERVICES LTD,40038,19,"12,111.60",GENERAL CLEANS,14/04/14,
080414E,KNIGHTON CLEANING SERVICES LTD,40038,20,"1,167.31",GENERAL CLEANS,14/04/14,
080414E,KNIGHTON CLEANING SERVICES LTD,40038,21,390.32,GENERAL CLEANS,14/04/14,
080414E,KNIGHTON CLEANING SERVICES LTD,40038,22,"1,480.68",GENERAL CLEANS,14/04/14,
080414E,KNIGHTON CLEANING SERVICES LTD,40038,23,"3,106.56",GENERAL CLEANS,14/04/14,
080414E,KNIGHTON CLEANING SERVICES LTD,40038,24,620.95,GENERAL CLEANS,14/04/14,
080414E,KNIGHTON CLEANING SERVICES LTD,40038,25,"1,694.87",GENERAL CLEANS,14/04/14,
080414E,KNIGHTON CLEANING SERVICES LTD,40038,26,837.31,GENERAL CLEANS,14/04/14,
080414E,KNIGHTON CLEANING SERVICES LTD,40038,27,"1,277.50",GENERAL CLEANS,14/04/14,
080414E,KNIGHTON CLEANING SERVICES LTD,40038,28,"1,883.42",GENERAL CLEANS,14/04/14,
080414E,KNIGHTON CLEANING SERVICES LTD,40038,29,"1,218.44",GENERAL CLEANS,14/04/14,
080414E,KNIGHTON CLEANING SERVICES LTD,40038,30,884.34,GENERAL CLEANS,14/04/14,
080414E,KNIGHTON CLEANING SERVICES LTD,40038,31,"1,177.51",GENERAL CLEANS,14/04/14,
080414E,KNIGHTON CLEANING SERVICES LTD,40038,32,"1,203.19",GENERAL CLEANS,14/04/14,
080414E,KNIGHTON CLEANING SERVICES LTD,40038,33,"6,149.09",GENERAL CLEANS,14/04/14,
080414E,KNIGHTON CLEANING SERVICES LTD,40038,34,718.82,GENERAL CLEANS,14/04/14,
080414E,KNIGHTON CLEANING SERVICES LTD,40038,35,897.31,GENERAL CLEANS,14/04/14,
080414E,KNIGHTON CLEANING SERVICES LTD,40038,36,"1,806.36",GENERAL CLEANS,14/04/14,
080414E,KNIGHTON CLEANING SERVICES LTD,40038,37,"1,050.32",GENERAL CLEANS,14/04/14,
080414E,KNIGHTON CLEANING SERVICES LTD,40038,38,797.40,GENERAL CLEANS,14/04/14,
080414E,KNIGHTON CLEANING SERVICES LTD,40038,39,"1,584.60",GENERAL CLEANS,14/04/14,
080414E,KNIGHTON CLEANING SERVICES LTD,40038,40,"1,288.59",GENERAL CLEANS,14/04/14,
080414E,KNIGHTON CLEANING SERVICES LTD,40038,41,"1,283.46",GENERAL CLEANS,14/04/14,
080414E,KNIGHTON CLEANING SERVICES LTD,40038,42,"1,188.30",GENERAL CLEANS,14/04/14,
080414E,KNIGHTON CLEANING SERVICES LTD,40038,43,470.43,GENERAL CLEANS,14/04/14,
080414E,KNIGHTON CLEANING SERVICES LTD,40039,1,"2,145.42",GENERAL CLEANS,14/04/14,"77,010.95"
080414E,KNIGHTON CLEANING SERVICES LTD,40039,2,"1,984.67",GENERAL CLEANS,14/04/14,
080414E,KNIGHTON CLEANING SERVICES LTD,40039,3,"1,401.30",GENERAL CLEANS,14/04/14,
080414E,KNIGHTON CLEANING SERVICES LTD,40039,4,"1,132.66",GENERAL CLEANS,14/04/14,
080414E,KNIGHTON CLEANING SERVICES LTD,40039,5,"1,185.30",GENERAL CLEANS,14/04/14,
080414E,KNIGHTON CLEANING SERVICES LTD,40039,6,"1,048.17",GENERAL CLEANS,14/04/14,
080414E,KNIGHTON CLEANING SERVICES LTD,40039,7,744.37,GENERAL CLEANS,14/04/14,
080414E,KNIGHTON CLEANING SERVICES LTD,40039,8,"1,190.81",GENERAL CLEANS,14/04/14,
080414E,KNIGHTON CLEANING SERVICES LTD,40039,9,"1,239.98",GENERAL CLEANS,14/04/14,
080414E,KNIGHTON CLEANING SERVICES LTD,40039,10,"1,057.98",GENERAL CLEANS,14/04/14,
080414E,KNIGHTON CLEANING SERVICES LTD,40039,11,"1,864.82",GENERAL CLEANS,14/04/14,
080414E,KNIGHTON CLEANING SERVICES LTD,40039,12,"2,215.12",GENERAL CLEANS,14/04/14,
080414E,KNIGHTON CLEANING SERVICES LTD,40039,13,749.21,GENERAL CLEANS,14/04/14,
080414E,KNIGHTON CLEANING SERVICES LTD,40039,14,"1,420.93",GENERAL CLEANS,14/04/14,
080414E,KNIGHTON CLEANING SERVICES LTD,40039,15,748.61,GENERAL CLEANS,14/04/14,
080414E,KNIGHTON CLEANING SERVICES LTD,40039,16,"1,487.35",GENERAL CLEANS,14/04/14,
080414E,KNIGHTON CLEANING SERVICES LTD,40039,17,"1,718.38",GENERAL CLEANS,14/04/14,
080414E,KNIGHTON CLEANING SERVICES LTD,40039,18,764.49,GENERAL CLEANS,14/04/14,
080414E,KNIGHTON CLEANING SERVICES LTD,40039,19,"2,259.49",GENERAL CLEANS,14/04/14,
080414E,KNIGHTON CLEANING SERVICES LTD,40039,20,"1,791.41",GENERAL CLEANS,14/04/14,
080414E,KNIGHTON CLEANING SERVICES LTD,40039,21,913.70,GENERAL CLEANS,14/04/14,
080414E,KNIGHTON CLEANING SERVICES LTD,40039,22,914.93,GENERAL CLEANS,14/04/14,
080414E,KNIGHTON CLEANING SERVICES LTD,40039,23,"1,062.89",GENERAL CLEANS,14/04/14,
080414E,KNIGHTON CLEANING SERVICES LTD,40039,24,"1,733.68",GENERAL CLEANS,14/04/14,
080414E,KNIGHTON CLEANING SERVICES LTD,40039,25,"1,030.35",GENERAL CLEANS,14/04/14,
080414E,KNIGHTON CLEANING SERVICES LTD,40039,26,809.26,GENERAL CLEANS,14/04/14,
080414E,KNIGHTON CLEANING SERVICES LTD,40039,27,952.65,GENERAL CLEANS,14/04/14,
080414E,KNIGHTON CLEANING SERVICES LTD,40039,28,"1,309.47",GENERAL CLEANS,14/04/14,
080414E,KNIGHTON CLEANING SERVICES LTD,40039,29,757.11,GENERAL CLEANS,14/04/14,
080414E,KNIGHTON CLEANING SERVICES LTD,40039,30,"1,525.99",GENERAL CLEANS,14/04/14,
080414E,KNIGHTON CLEANING SERVICES LTD,40039,31,"1,249.50",GENERAL CLEANS,14/04/14,
080414E,KNIGHTON CLEANING SERVICES LTD,40039,32,"1,369.17",GENERAL CLEANS,14/04/14,
080414E,KNIGHTON CLEANING SERVICES LTD,40039,33,769.25,GENERAL CLEANS,14/04/14,
080414E,KNIGHTON CLEANING SERVICES LTD,40039,34,940.18,GENERAL CLEANS,14/04/14,
080414E,KNIGHTON CLEANING SERVICES LTD,40039,35,686.16,GENERAL CLEANS,14/04/14,
080414E,KNIGHTON CLEANING SERVICES LTD,40039,36,"1,485.42",GENERAL CLEANS,14/04/14,
080414E,KNIGHTON CLEANING SERVICES LTD,40039,37,"1,311.33",GENERAL CLEANS,14/04/14,
080414E,KNIGHTON CLEANING SERVICES LTD,40039,38,932.88,GENERAL CLEANS,14/04/14,
080414E,KNIGHTON CLEANING SERVICES LTD,40039,39,"2,744.76",GENERAL CLEANS,14/04/14,
080414E,KNIGHTON CLEANING SERVICES LTD,40039,40,"1,014.46",GENERAL CLEANS,14/04/14,
080414E,KNIGHTON CLEANING SERVICES LTD,40039,41,"1,061.55",GENERAL CLEANS,14/04/14,
080414E,KNIGHTON CLEANING SERVICES LTD,40039,42,"1,027.02",GENERAL CLEANS,14/04/14,
080414E,KNIGHTON CLEANING SERVICES LTD,40039,43,931.42,GENERAL CLEANS,14/04/14,
080414E,KNIGHTON CLEANING SERVICES LTD,40039,44,"1,272.47",GENERAL CLEANS,14/04/14,
080414E,KNIGHTON CLEANING SERVICES LTD,40039,45,"2,238.52",GENERAL CLEANS,14/04/14,
080414E,KNIGHTON CLEANING SERVICES LTD,40039,46,"1,822.05",GENERAL CLEANS,14/04/14,
080414E,KNIGHTON CLEANING SERVICES LTD,40039,47,"1,024.83",GENERAL CLEANS,14/04/14,
080414E,KNIGHTON CLEANING SERVICES LTD,40039,48,676.12,GENERAL CLEANS,14/04/14,
080414E,KNIGHTON CLEANING SERVICES LTD,40039,49,667.63,GENERAL CLEANS,14/04/14,
080414E,KNIGHTON CLEANING SERVICES LTD,40039,50,776.02,GENERAL CLEANS,14/04/14,
080414E,KNIGHTON CLEANING SERVICES LTD,40039,51,"2,211.74",GENERAL CLEANS,14/04/14,
080414E,KNIGHTON CLEANING SERVICES LTD,40039,52,902.35,GENERAL CLEANS,14/04/14,
080414E,KNIGHTON CLEANING SERVICES LTD,40039,53,"1,561.89",GENERAL CLEANS,14/04/14,
080414E,KNIGHTON CLEANING SERVICES LTD,40039,54,"2,575.91",GENERAL CLEANS,14/04/14,
080414E,KNIGHTON CLEANING SERVICES LTD,40039,55,754.42,GENERAL CLEANS,14/04/14,
080414E,KNIGHTON CLEANING SERVICES LTD,40039,56,771.12,GENERAL CLEANS,14/04/14,
080414E,KNIGHTON CLEANING SERVICES LTD,40039,57,13.00,GENERAL CLEANS,14/04/14,
080414E,KNIGHTON CLEANING SERVICES LTD,40039,58,"1,048.52",GENERAL CLEANS,14/04/14,
080414E,KNIGHTON CLEANING SERVICES LTD,40039,59,796.65,GENERAL CLEANS,14/04/14,
080414E,KNIGHTON CLEANING SERVICES LTD,40039,60,"1,035.93",GENERAL CLEANS,14/04/14,
080414E,KNIGHTON CLEANING SERVICES LTD,40039,61,"1,257.09",GENERAL CLEANS,14/04/14,
080414E,KNIGHTON CLEANING SERVICES LTD,40039,62,921.09,GENERAL CLEANS,14/04/14,
080414E,MITIE SECURITY (LONDON) LTD===,406/00003299*,1,383.25,PREMISES SECURITY,14/04/14,383.25
260314C,NUS STUDENTS' UNION,4202,1,"3,470.00",CONSULTANTS,14/04/14,"3,470.00"
080414E,SPORTSAFE UK LTD==============,454836,1,135.04,GYM EQUIPMENT,14/04/14,842.13
080414E,SPORTSAFE UK LTD==============,454836,2,502.02,GYM EQUIPMENT,14/04/14,
080414E,SPORTSAFE UK LTD==============,454836,3,79.92,GYM EQUIPMENT,14/04/14,
080414E,SPORTSAFE UK LTD==============,454836,4,7.25,GYM EQUIPMENT,14/04/14,
080414E,SPORTSAFE UK LTD==============,454836,5,25.90,GYM EQUIPMENT,14/04/14,
080414E,SPORTSAFE UK LTD==============,454836,6,92.00,GYM EQUIPMENT,14/04/14,
140627,SUTTON & EAST SURREY WATER PLC,514285-8'L',1,402.07,WATER & SEWERAGE RATES,14/04/14,402.07
080414E,FAHEY BUILDERS LTD============,5206,1,685.00,SPECIAL CLEANS,14/04/14,685.00
070414C,UNIFY,549G6000857958,1,"2,750.00",TELECOMMUNICATIONS,14/04/14,"2,750.00"
140627,THAMES WATER UTILITIES LTD====,55520-98535B,1,691.24,WATER & SEWERAGE RATES,14/04/14,691.24
090414E,URS SCOTT WILSON LIMITED,5779671,1,"6,559.41",PROF FEES-MISCELLANEOUS,14/04/14,"7,482.88"
090414E,URS SCOTT WILSON LIMITED,5779671,2,923.47,PROF FEES-MISCELLANEOUS,14/04/14,
902399,BANK OF SCOTLAND,593.485.01.108000-0414,1,"16,851,851.77",PURCHASES-VEHICLES,14/04/14,"16,851,851.77"
090414E,DISCLOSURE SCOTLAND===========,596647,1,"1,025.00",CRB CHECKS,14/04/14,"1,025.00"
080414E,TOYOTA MATERIAL HANDLING UK LT,610111215,1,909.99,PURCHASE,14/04/14,909.99
140627,THAMES WATER UTILITIES LTD====,63661-76423B,1,953.96,WATER & SEWERAGE RATES,14/04/14,953.96
140627,SUTTON & EAST SURREY WATER PLC,873190-4 'T',1,700.58,WATER & SEWERAGE RATES,14/04/14,700.58
140627,CITY UNIVERSITY===============,90301653,1,"1,240.00",MEDICAL EXPENSES CLAIMS,14/04/14,"1,240.00"
070414C,DRAEGER SAFETY UK LIMITED=====,90441823,1,351.00,REPAIR & MAINTENANCE,14/04/14,351.00
070414C,DRAEGER SAFETY UK LIMITED=====,90441963,1,52.91,PROTECTIVE EQUIPT - PARTS,14/04/14,"1,435.01"
070414C,DRAEGER SAFETY UK LIMITED=====,90441963,2,851.10,PROTECTIVE EQUIPT - PARTS,14/04/14,
070414C,DRAEGER SAFETY UK LIMITED=====,90441963,3,531.00,PROTECTIVE EQUIPT - PARTS,14/04/14,
140627,THAMES WATER UTILITIES LTD====,9524085193#,1,577.15,WATER & SEWERAGE RATES,14/04/14,577.15
270314E,SURVITEC SERVICE &DISTRIBUTION,CD30776809,1,372.00,PROTECTIVE EQUIPT - PARTS,14/04/14,372.00
090414E,KIER BUILDING SERV ENGINEERS==,F00048237,1,337.00,STRATEGIC (NON CYCLICAL),14/04/14,"1,336.64"
090414E,KIER BUILDING SERV ENGINEERS==,F00048237,2,999.64,STRATEGIC (NON CYCLICAL),14/04/14,
040414C,SOUTH WALES FIRE&RESCUE SERVIC,FBINV13-1198,1,"19,318.72",FIRE AUTHORITIES,14/04/14,"19,318.72"
020414C,SPECIALIST COMPUTER CENTRES===,OP/L828878,1,650.68,ACQUISITIONS,14/04/14,"4,401.06"
020414C,SPECIALIST COMPUTER CENTRES===,OP/L828878,2,73.83,ACQUISITIONS,14/04/14,
020414C,SPECIALIST COMPUTER CENTRES===,OP/L828878,3,9.00,ACQUISITIONS,14/04/14,
020414C,SPECIALIST COMPUTER CENTRES===,OP/L828878,4,"3,253.40",ACQUISITIONS,14/04/14,
020414C,SPECIALIST COMPUTER CENTRES===,OP/L828878,5,369.15,ACQUISITIONS,14/04/14,
020414C,SPECIALIST COMPUTER CENTRES===,OP/L828878,6,45.00,ACQUISITIONS,14/04/14,
020414C,SPECIALIST COMPUTER CENTRES===,OP/L828880,1,"3,253.40",ACQUISITIONS,14/04/14,"3,667.55"
020414C,SPECIALIST COMPUTER CENTRES===,OP/L828880,2,369.15,ACQUISITIONS,14/04/14,
020414C,SPECIALIST COMPUTER CENTRES===,OP/L828880,3,45.00,ACQUISITIONS,14/04/14,
800036056,ALLSTAR BUSINESS SOLUTIONS LTD,P2002635440,1,"1,108.95",FUEL,14/04/14,"20,300.83"
800036056,ALLSTAR BUSINESS SOLUTIONS LTD,P2002635440,2,712.62,FUEL,14/04/14,
800036056,ALLSTAR BUSINESS SOLUTIONS LTD,P2002635440,3,643.08,FUEL,14/04/14,
800036056,ALLSTAR BUSINESS SOLUTIONS LTD,P2002635440,4,582.58,FUEL,14/04/14,
800036056,ALLSTAR BUSINESS SOLUTIONS LTD,P2002635440,5,509.55,FUEL,14/04/14,
800036056,ALLSTAR BUSINESS SOLUTIONS LTD,P2002635440,6,492.85,FUEL,14/04/14,
800036056,ALLSTAR BUSINESS SOLUTIONS LTD,P2002635440,7,437.89,FUEL,14/04/14,
800036056,ALLSTAR BUSINESS SOLUTIONS LTD,P2002635440,8,371.85,FUEL,14/04/14,
800036056,ALLSTAR BUSINESS SOLUTIONS LTD,P2002635440,9,369.19,FUEL,14/04/14,
800036056,ALLSTAR BUSINESS SOLUTIONS LTD,P2002635440,10,349.28,FUEL,14/04/14,
800036056,ALLSTAR BUSINESS SOLUTIONS LTD,P2002635440,11,347.08,FUEL,14/04/14,
800036056,ALLSTAR BUSINESS SOLUTIONS LTD,P2002635440,12,346.79,FUEL,14/04/14,
800036056,ALLSTAR BUSINESS SOLUTIONS LTD,P2002635440,13,346.61,FUEL,14/04/14,
800036056,ALLSTAR BUSINESS SOLUTIONS LTD,P2002635440,14,345.86,FUEL,14/04/14,
800036056,ALLSTAR BUSINESS SOLUTIONS LTD,P2002635440,15,340.18,FUEL,14/04/14,
800036056,ALLSTAR BUSINESS SOLUTIONS LTD,P2002635440,16,331.29,FUEL,14/04/14,
800036056,ALLSTAR BUSINESS SOLUTIONS LTD,P2002635440,17,330.84,FUEL,14/04/14,
800036056,ALLSTAR BUSINESS SOLUTIONS LTD,P2002635440,18,329.40,FUEL,14/04/14,
800036056,ALLSTAR BUSINESS SOLUTIONS LTD,P2002635440,19,329.29,FUEL,14/04/14,
800036056,ALLSTAR BUSINESS SOLUTIONS LTD,P2002635440,20,326.04,FUEL,14/04/14,
800036056,ALLSTAR BUSINESS SOLUTIONS LTD,P2002635440,21,323.68,FUEL,14/04/14,
800036056,ALLSTAR BUSINESS SOLUTIONS LTD,P2002635440,22,290.55,FUEL,14/04/14,
800036056,ALLSTAR BUSINESS SOLUTIONS LTD,P2002635440,23,272.02,FUEL,14/04/14,
800036056,ALLSTAR BUSINESS SOLUTIONS LTD,P2002635440,24,264.67,FUEL,14/04/14,
800036056,ALLSTAR BUSINESS SOLUTIONS LTD,P2002635440,25,254.86,FUEL,14/04/14,
800036056,ALLSTAR BUSINESS SOLUTIONS LTD,P2002635440,26,250.68,FUEL,14/04/14,
800036056,ALLSTAR BUSINESS SOLUTIONS LTD,P2002635440,27,247.55,FUEL,14/04/14,
800036056,ALLSTAR BUSINESS SOLUTIONS LTD,P2002635440,28,236.04,FUEL,14/04/14,
800036056,ALLSTAR BUSINESS SOLUTIONS LTD,P2002635440,29,235.79,FUEL,14/04/14,
800036056,ALLSTAR BUSINESS SOLUTIONS LTD,P2002635440,30,223.43,FUEL,14/04/14,
800036056,ALLSTAR BUSINESS SOLUTIONS LTD,P2002635440,31,219.52,FUEL,14/04/14,
800036056,ALLSTAR BUSINESS SOLUTIONS LTD,P2002635440,32,216.29,FUEL,14/04/14,
800036056,ALLSTAR BUSINESS SOLUTIONS LTD,P2002635440,33,215.74,FUEL,14/04/14,
800036056,ALLSTAR BUSINESS SOLUTIONS LTD,P2002635440,34,212.31,FUEL,14/04/14,
800036056,ALLSTAR BUSINESS SOLUTIONS LTD,P2002635440,35,202.55,FUEL,14/04/14,
800036056,ALLSTAR BUSINESS SOLUTIONS LTD,P2002635440,36,201.62,FUEL,14/04/14,
800036056,ALLSTAR BUSINESS SOLUTIONS LTD,P2002635440,37,187.49,FUEL,14/04/14,
800036056,ALLSTAR BUSINESS SOLUTIONS LTD,P2002635440,38,187.22,FUEL,14/04/14,
800036056,ALLSTAR BUSINESS SOLUTIONS LTD,P2002635440,39,186.83,FUEL,14/04/14,
800036056,ALLSTAR BUSINESS SOLUTIONS LTD,P2002635440,40,185.21,FUEL,14/04/14,
800036056,ALLSTAR BUSINESS SOLUTIONS LTD,P2002635440,41,181.35,FUEL,14/04/14,
800036056,ALLSTAR BUSINESS SOLUTIONS LTD,P2002635440,42,177.92,FUEL,14/04/14,
800036056,ALLSTAR BUSINESS SOLUTIONS LTD,P2002635440,43,177.55,FUEL,14/04/14,
800036056,ALLSTAR BUSINESS SOLUTIONS LTD,P2002635440,44,174.29,FUEL,14/04/14,
800036056,ALLSTAR BUSINESS SOLUTIONS LTD,P2002635440,45,169.72,FUEL,14/04/14,
800036056,ALLSTAR BUSINESS SOLUTIONS LTD,P2002635440,46,168.77,FUEL,14/04/14,
800036056,ALLSTAR BUSINESS SOLUTIONS LTD,P2002635440,47,162.48,FUEL,14/04/14,
800036056,ALLSTAR BUSINESS SOLUTIONS LTD,P2002635440,48,160.56,FUEL,14/04/14,
800036056,ALLSTAR BUSINESS SOLUTIONS LTD,P2002635440,49,156.36,FUEL,14/04/14,
800036056,ALLSTAR BUSINESS SOLUTIONS LTD,P2002635440,50,154.74,FUEL,14/04/14,
800036056,ALLSTAR BUSINESS SOLUTIONS LTD,P2002635440,51,149.20,FUEL,14/04/14,
800036056,ALLSTAR BUSINESS SOLUTIONS LTD,P2002635440,52,148.62,FUEL,14/04/14,
800036056,ALLSTAR BUSINESS SOLUTIONS LTD,P2002635440,53,145.72,FUEL,14/04/14,
800036056,ALLSTAR BUSINESS SOLUTIONS LTD,P2002635440,54,144.57,FUEL,14/04/14,
800036056,ALLSTAR BUSINESS SOLUTIONS LTD,P2002635440,55,143.20,FUEL,14/04/14,
800036056,ALLSTAR BUSINESS SOLUTIONS LTD,P2002635440,56,140.42,FUEL,14/04/14,
800036056,ALLSTAR BUSINESS SOLUTIONS LTD,P2002635440,57,140.38,FUEL,14/04/14,
800036056,ALLSTAR BUSINESS SOLUTIONS LTD,P2002635440,58,139.50,FUEL,14/04/14,
800036056,ALLSTAR BUSINESS SOLUTIONS LTD,P2002635440,59,139.16,FUEL,14/04/14,
800036056,ALLSTAR BUSINESS SOLUTIONS LTD,P2002635440,60,136.92,FUEL,14/04/14,
800036056,ALLSTAR BUSINESS SOLUTIONS LTD,P2002635440,61,135.46,FUEL,14/04/14,
800036056,ALLSTAR BUSINESS SOLUTIONS LTD,P2002635440,62,134.59,FUEL,14/04/14,
800036056,ALLSTAR BUSINESS SOLUTIONS LTD,P2002635440,63,131.76,FUEL,14/04/14,
800036056,ALLSTAR BUSINESS SOLUTIONS LTD,P2002635440,64,125.45,FUEL,14/04/14,
800036056,ALLSTAR BUSINESS SOLUTIONS LTD,P2002635440,65,125.16,FUEL,14/04/14,
800036056,ALLSTAR BUSINESS SOLUTIONS LTD,P2002635440,66,121.42,FUEL,14/04/14,
800036056,ALLSTAR BUSINESS SOLUTIONS LTD,P2002635440,67,120.77,FUEL,14/04/14,
800036056,ALLSTAR BUSINESS SOLUTIONS LTD,P2002635440,68,118.62,FUEL,14/04/14,
800036056,ALLSTAR BUSINESS SOLUTIONS LTD,P2002635440,69,116.24,FUEL,14/04/14,
800036056,ALLSTAR BUSINESS SOLUTIONS LTD,P2002635440,70,114.08,FUEL,14/04/14,
800036056,ALLSTAR BUSINESS SOLUTIONS LTD,P2002635440,71,113.73,FUEL,14/04/14,
800036056,ALLSTAR BUSINESS SOLUTIONS LTD,P2002635440,72,112.16,FUEL,14/04/14,
800036056,ALLSTAR BUSINESS SOLUTIONS LTD,P2002635440,73,110.03,FUEL,14/04/14,
800036056,ALLSTAR BUSINESS SOLUTIONS LTD,P2002635440,74,109.96,FUEL,14/04/14,
800036056,ALLSTAR BUSINESS SOLUTIONS LTD,P2002635440,75,108.58,FUEL,14/04/14,
800036056,ALLSTAR BUSINESS SOLUTIONS LTD,P2002635440,76,107.97,FUEL,14/04/14,
800036056,ALLSTAR BUSINESS SOLUTIONS LTD,P2002635440,77,107.65,FUEL,14/04/14,
800036056,ALLSTAR BUSINESS SOLUTIONS LTD,P2002635440,78,106.53,FUEL,14/04/14,
800036056,ALLSTAR BUSINESS SOLUTIONS LTD,P2002635440,79,101.17,FUEL,14/04/14,
800036056,ALLSTAR BUSINESS SOLUTIONS LTD,P2002635440,80,98.28,FUEL,14/04/14,
800036056,ALLSTAR BUSINESS SOLUTIONS LTD,P2002635440,81,97.39,FUEL,14/04/14,
800036056,ALLSTAR BUSINESS SOLUTIONS LTD,P2002635440,82,87.62,FUEL,14/04/14,
800036056,ALLSTAR BUSINESS SOLUTIONS LTD,P2002635440,83,86.03,FUEL,14/04/14,
800036056,ALLSTAR BUSINESS SOLUTIONS LTD,P2002635440,84,85.78,FUEL,14/04/14,
800036056,ALLSTAR BUSINESS SOLUTIONS LTD,P2002635440,85,83.70,FUEL,14/04/14,
800036056,ALLSTAR BUSINESS SOLUTIONS LTD,P2002635440,86,79.01,FUEL,14/04/14,
800036056,ALLSTAR BUSINESS SOLUTIONS LTD,P2002635440,87,77.03,FUEL,14/04/14,
800036056,ALLSTAR BUSINESS SOLUTIONS LTD,P2002635440,88,73.89,FUEL,14/04/14,
800036056,ALLSTAR BUSINESS SOLUTIONS LTD,P2002635440,89,71.45,FUEL,14/04/14,
800036056,ALLSTAR BUSINESS SOLUTIONS LTD,P2002635440,90,69.17,FUEL,14/04/14,
800036056,ALLSTAR BUSINESS SOLUTIONS LTD,P2002635440,91,68.94,FUEL,14/04/14,
800036056,ALLSTAR BUSINESS SOLUTIONS LTD,P2002635440,92,64.81,FUEL,14/04/14,
800036056,ALLSTAR BUSINESS SOLUTIONS LTD,P2002635440,93,53.16,FUEL,14/04/14,
800036056,ALLSTAR BUSINESS SOLUTIONS LTD,P2002635440,94,51.41,FUEL,14/04/14,
800036056,ALLSTAR BUSINESS SOLUTIONS LTD,P2002635440,95,49.62,FUEL,14/04/14,
800036056,ALLSTAR BUSINESS SOLUTIONS LTD,P2002635440,96,44.16,FUEL,14/04/14,
800036056,ALLSTAR BUSINESS SOLUTIONS LTD,P2002635440,97,37.93,FUEL,14/04/14,
800036056,ALLSTAR BUSINESS SOLUTIONS LTD,P2002635440,98,34.48,FUEL,14/04/14,
800036056,ALLSTAR BUSINESS SOLUTIONS LTD,P2002635440,99,33.98,FUEL,14/04/14,
800036056,ALLSTAR BUSINESS SOLUTIONS LTD,P2002635440,100,25.23,FUEL,14/04/14,
800036056,ALLSTAR BUSINESS SOLUTIONS LTD,P2002635440,101,22.62,FUEL,14/04/14,
800036056,ALLSTAR BUSINESS SOLUTIONS LTD,P2002635440,102,7.11,FUEL,14/04/14,
270314E,HUNTER LODGE==================,S-015322,1,"6,800.00",ADVERTISING,14/04/14,"6,800.00"
270314E,HUNTER LODGE==================,S-015323,1,"6,350.00",ADVERTISING,14/04/14,"6,350.00"
270314E,HUNTER LODGE==================,SI-05478,1,"1,405.00",ADVERTISING,14/04/14,"1,405.00"
020414C,GROUND CONTROL UMITED,SIN033903,1,750.00,GROUNDS MAINTENANCE,14/04/14,750.00
020414C,GROUND CONTROL UMITED,SIN033904,1,460.00,GROUNDS MAINTENANCE,14/04/14,460.00
800033395,*XMA LTD,V176971,1,60.38,STATIONERY CONSUMABLES,14/04/14,276.72
800033395,*XMA LTD,V176971,2,54.55,STATIONERY CONSUMABLES,14/04/14,
800033395,*XMA LTD,V176971,3,51.23,STATIONERY CONSUMABLES,14/04/14,
800033395,*XMA LTD,V176971,4,55.28,STATIONERY CONSUMABLES,14/04/14,
800033395,*XMA LTD,V176971,5,55.28,STATIONERY CONSUMABLES,14/04/14,
800033404,*XMA LTD,V177089,1,23.07,STATIONERY CONSUMABLES,14/04/14,346.05
800033404,*XMA LTD,V177089,2,23.07,STATIONERY CONSUMABLES,14/04/14,
800033404,*XMA LTD,V177089,3,23.07,STATIONERY CONSUMABLES,14/04/14,
800033404,*XMA LTD,V177089,4,23.07,STATIONERY CONSUMABLES,14/04/14,
800033404,*XMA LTD,V177089,5,23.07,STATIONERY CONSUMABLES,14/04/14,
800033404,*XMA LTD,V177089,6,23.07,STATIONERY CONSUMABLES,14/04/14,
800033404,*XMA LTD,V177089,7,23.07,STATIONERY CONSUMABLES,14/04/14,
800033404,*XMA LTD,V177089,8,23.07,STATIONERY CONSUMABLES,14/04/14,
800033404,*XMA LTD,V177089,9,23.07,STATIONERY CONSUMABLES,14/04/14,
800033404,*XMA LTD,V177089,10,23.07,STATIONERY CONSUMABLES,14/04/14,
800033404,*XMA LTD,V177089,11,23.07,STATIONERY CONSUMABLES,14/04/14,
800033404,*XMA LTD,V177089,12,23.07,STATIONERY CONSUMABLES,14/04/14,
800033404,*XMA LTD,V177089,13,23.07,STATIONERY CONSUMABLES,14/04/14,
800033404,*XMA LTD,V177089,14,23.07,STATIONERY CONSUMABLES,14/04/14,
800033404,*XMA LTD,V177089,15,23.07,STATIONERY CONSUMABLES,14/04/14,
140628,TV LICENSING==================,900000518/,1,"4,656.00",LICENCES,15/04/14,"14,986.50"
140628,TV LICENSING==================,900000518/,2,"4,074.00",LICENCES,15/04/14,
140628,TV LICENSING==================,900000518/,3,"5,092.50",LICENCES,15/04/14,
140628,TV LICENSING==================,900000518/,4,"1,164.00",LICENCES,15/04/14,
902401,BABCOCK TRAINING LTD,PTSI010399,1,"1,618,237.79",OUTSOURCED TRAINING,16/04/14,"1,618,237.79"
070414C,ARTELIA,000000006926,1,"2,176.22",CONSULTANTS,17/04/14,"2,176.22"
040414C,HEALTH MANAGEMENT LIMITED=====,0000111603,1,600.00,THIRD PARTY REPORTS,17/04/14,"1,800.00"
040414C,HEALTH MANAGEMENT LIMITED=====,0000111603,2,600.00,THIRD PARTY REPORTS,17/04/14,
040414C,HEALTH MANAGEMENT LIMITED=====,0000111603,3,600.00,THIRD PARTY REPORTS,17/04/14,
070414C,LYNN WICKINS,0064,1,"1,615.00",PROFESSIONAL SERVICES,17/04/14,"1,615.00"
140414F,AA WOODS,057157,1,"4,720.00",ASBESTOS,17/04/14,"4,720.00"
110414C,HAYS ACCOUNTANCY & FINANCE====,1004191252,1,899.00,FRS STAFF AGENCY,17/04/14,899.00
310314F,CARILLION COMMUNICATIONS LTD==,1012198,1,450.00,STRATEGIC (NON CYCLICAL),17/04/14,450.00
040414C,SMITH & OUZMAN LTD============,103810,1,845.00,BANK CHARGES,17/04/14,845.00
040414C,SMITH & OUZMAN LTD============,103811,1,455.00,BANK CHARGES,17/04/14,455.00
040414C,SMITH & OUZMAN LTD============,103812,1,570.00,BANK CHARGES,17/04/14,570.00
140628,CITY OF WESTMINSTER===========,10414551014,1,451.16,PROPERTY RATES,17/04/14,451.16
140414F,*SPRUE SAFETY PRODUCTS LTD====,1058789,1,988.80,FIRE DETECTORS,17/04/14,988.80
020414E,*SPRUE SAFETY PRODUCTS LTD====,1059255,1,"2,200.00",FIRE DETECTORS,17/04/14,"5,500.00"
020414E,*SPRUE SAFETY PRODUCTS LTD====,1059255,2,"2,200.00",FIRE DETECTORS,17/04/14,
020414E,*SPRUE SAFETY PRODUCTS LTD====,1059255,3,"1,100.00",FIRE DETECTORS,17/04/14,
070414C,*SPRUE SAFETY PRODUCTS LTD====,1059256,1,880.00,FIRE DETECTORS,17/04/14,880.00
020414E,*SPRUE SAFETY PRODUCTS LTD====,1059340,1,"3,708.00",FIRE DETECTORS,17/04/14,"3,708.00"
020414E,*SPRUE SAFETY PRODUCTS LTD====,1059353,1,660.00,FIRE DETECTORS,17/04/14,"3,300.00"
020414E,*SPRUE SAFETY PRODUCTS LTD====,1059353,2,"1,320.00",FIRE DETECTORS,17/04/14,
020414E,*SPRUE SAFETY PRODUCTS LTD====,1059353,3,"1,320.00",FIRE DETECTORS,17/04/14,
140414F,*SPRUE SAFETY PRODUCTS LTD====,1059558,1,"1,483.20",FIRE DETECTORS,17/04/14,"1,483.20"
150414F,WARWICK IC SYSTEMS LTD=======,10604,1,"10,133.00",MAINTENANCE & SUPPORT,17/04/14,"10,133.00"
140628,CITY OF WESTMINSTER===========,10643589714,1,451.16,PROPERTY RATES,17/04/14,451.16
140628,CITY OF WESTMINSTER===========,10852612114,1,451.16,PROPERTY RATES,17/04/14,451.16
110414C,DIAMOND BUILD PLC=============,13590,1,"35,488.44",DEVELOPMENT  EXPENSES-CONTRACT,17/04/14,"35,488.44"
110414C,DIAMOND BUILD PLC=============,13591,1,"1,982.30",DEVELOPMENT  EXPENSES-CONTRACT,17/04/14,"1,982.30"
150414F,BRITISH TELECOMMUNICATIONS PLC,150392,1,155.00,TELECOMMUNICATIONS,17/04/14,"15,489.23"
150414F,BRITISH TELECOMMUNICATIONS PLC,150392,2,"2,800.00",TELECOMMUNICATIONS,17/04/14,
150414F,BRITISH TELECOMMUNICATIONS PLC,150392,3,"12,534.23",TELECOMMUNICATIONS,17/04/14,
030414C,QAS SYSTEMS LTD===============,1506971,1,"4,158.28",MAINTENANCE & SUPPORT,17/04/14,"58,009.88"
030414C,QAS SYSTEMS LTD===============,1506971,2,"3,312.03",MAINTENANCE & SUPPORT,17/04/14,
030414C,QAS SYSTEMS LTD===============,1506971,3,"12,970.11",MAINTENANCE & SUPPORT,17/04/14,
030414C,QAS SYSTEMS LTD===============,1506971,4,"3,956.24",MAINTENANCE & SUPPORT,17/04/14,
030414C,QAS SYSTEMS LTD===============,1506971,5,"9,935.76",MAINTENANCE & SUPPORT,17/04/14,
030414C,QAS SYSTEMS LTD===============,1506971,6,"1,310.10",MAINTENANCE & SUPPORT,17/04/14,
030414C,QAS SYSTEMS LTD===============,1506971,7,315.81,MAINTENANCE & SUPPORT,17/04/14,
030414C,QAS SYSTEMS LTD===============,1506971,8,"12,375.00",MAINTENANCE & SUPPORT,17/04/14,
030414C,QAS SYSTEMS LTD===============,1506971,9,"4,000.00",MAINTENANCE & SUPPORT,17/04/14,
030414C,QAS SYSTEMS LTD===============,1506971,10,"5,676.55",MAINTENANCE & SUPPORT,17/04/14,
140628,THAMES WATER UTILITIES LTD====,16168-06584D,1,570.56,WATER & SEWERAGE RATES,17/04/14,570.56
140628,EDF ENERGY===================,1785676847,1,"1,108.17",ELECTRICITY,17/04/14,"1,108.17"
140628,EDF ENERGY===================,1785907942,1,"2,684.50",ELECTRICITY,17/04/14,"2,684.50"
140628,EDF ENERGY===================,1786209543,1,"7,537.24",ELECTRICITY,17/04/14,"7,537.24"
140628,EDF ENERGY===================,1786484443,1,211.54,ELECTRICITY,17/04/14,"4,230.83"
140628,EDF ENERGY===================,1786484443,2,"4,019.29",ELECTRICITY,17/04/14,
140628,EDF ENERGY===================,1793376240,1,"10,563.16",ELECTRICITY,17/04/14,"10,563.16"
140414F,COMMUNITIES & LOCAL GOVERNMENT,1800019765,1,"123,093.55",MAINTENANCE & SUPPORT,17/04/14,"131,117.65"
140414F,COMMUNITIES & LOCAL GOVERNMENT,1800019765,2,"8,024.10",MAINTENANCE & SUPPORT,17/04/14,
070414C,COMMUNITIES & LOCAL GOVERNMENT,1800019888,1,"123,093.55",MAINTENANCE & SUPPORT,17/04/14,"131,117.65"
070414C,COMMUNITIES & LOCAL GOVERNMENT,1800019888,2,"8,024.10",MAINTENANCE & SUPPORT,17/04/14,
140628,EDF ENERGY===================,1813823633,1,"16,698.08",ELECTRICITY,17/04/14,"16,698.08"
150414F,GRADIENT CONSULTANTS LLP======,2014,1,348.02,ASBESTOS,17/04/14,"3,132.18"
150414F,GRADIENT CONSULTANTS LLP======,2014,2,348.02,ASBESTOS,17/04/14,
150414F,GRADIENT CONSULTANTS LLP======,2014,3,348.02,ASBESTOS,17/04/14,
150414F,GRADIENT CONSULTANTS LLP======,2014,4,348.02,ASBESTOS,17/04/14,
150414F,GRADIENT CONSULTANTS LLP======,2014,5,348.02,ASBESTOS,17/04/14,
150414F,GRADIENT CONSULTANTS LLP======,2014,6,348.02,ASBESTOS,17/04/14,
150414F,GRADIENT CONSULTANTS LLP======,2014,7,348.02,ASBESTOS,17/04/14,
150414F,GRADIENT CONSULTANTS LLP======,2014,8,348.02,ASBESTOS,17/04/14,
150414F,GRADIENT CONSULTANTS LLP======,2014,9,348.02,ASBESTOS,17/04/14,
110414C,ENERGY AUDITING AGENCY LTD====,20141492,1,330.00,PROFESSIONAL SERVICES,17/04/14,660.00
110414C,ENERGY AUDITING AGENCY LTD====,20141492,2,330.00,PROFESSIONAL SERVICES,17/04/14,
110414C,ENERGY AUDITING AGENCY LTD====,20141494,1,163.00,PROFESSIONAL SERVICES,17/04/14,326.00
110414C,ENERGY AUDITING AGENCY LTD====,20141494,2,163.00,PROFESSIONAL SERVICES,17/04/14,
110414C,ENERGY AUDITING AGENCY LTD====,20141495,1,323.86,PROFESSIONAL SERVICES,17/04/14,"1,619.30"
110414C,ENERGY AUDITING AGENCY LTD====,20141495,2,323.86,PROFESSIONAL SERVICES,17/04/14,
110414C,ENERGY AUDITING AGENCY LTD====,20141495,3,323.86,PROFESSIONAL SERVICES,17/04/14,
110414C,ENERGY AUDITING AGENCY LTD====,20141495,4,323.86,PROFESSIONAL SERVICES,17/04/14,
110414C,ENERGY AUDITING AGENCY LTD====,20141495,5,323.86,PROFESSIONAL SERVICES,17/04/14,
140414F,SOUTHERN ASBESTOS SERVICES LTD,218365,1,300.00,ASBESTOS,17/04/14,300.00
140414F,VODAFONE LIMITED==============,230522,1,"1,015.00",TELECOMMUNICATIONS,17/04/14,"1,024.05"
140414F,VODAFONE LIMITED==============,230522,2,9.05,TELECOMMUNICATIONS,17/04/14,
150414F,ARKAS LIMITED=================,25209,1,438.88,STRATEGIC (CYCLICAL),17/04/14,"1,731.00"
150414F,ARKAS LIMITED=================,25209,2,405.88,STRATEGIC (CYCLICAL),17/04/14,
150414F,ARKAS LIMITED=================,25209,3,554.38,STRATEGIC (CYCLICAL),17/04/14,
150414F,ARKAS LIMITED=================,25209,4,331.86,STRATEGIC (CYCLICAL),17/04/14,
150414F,ARKAS LIMITED=================,25210,1,405.88,STRATEGIC (CYCLICAL),17/04/14,"1,129.00"
150414F,ARKAS LIMITED=================,25210,2,214.00,STRATEGIC (CYCLICAL),17/04/14,
150414F,ARKAS LIMITED=================,25210,3,181.00,STRATEGIC (CYCLICAL),17/04/14,
150414F,ARKAS LIMITED=================,25210,4,328.12,STRATEGIC (CYCLICAL),17/04/14,
150414F,ARKAS LIMITED=================,25211,1,197.50,STRATEGIC (CYCLICAL),17/04/14,"1,430.98"
150414F,ARKAS LIMITED=================,25211,2,247.00,STRATEGIC (CYCLICAL),17/04/14,
150414F,ARKAS LIMITED=================,25211,3,197.50,STRATEGIC (CYCLICAL),17/04/14,
150414F,ARKAS LIMITED=================,25211,4,788.98,STRATEGIC (CYCLICAL),17/04/14,
150414F,ARKAS LIMITED=================,25212,1,214.00,STRATEGIC (CYCLICAL),17/04/14,922.00
150414F,ARKAS LIMITED=================,25212,2,263.50,STRATEGIC (CYCLICAL),17/04/14,
150414F,ARKAS LIMITED=================,25212,3,296.50,STRATEGIC (CYCLICAL),17/04/14,
150414F,ARKAS LIMITED=================,25212,4,148.00,STRATEGIC (CYCLICAL),17/04/14,
150414F,ARKAS LIMITED=================,25213,1,230.50,STRATEGIC (CYCLICAL),17/04/14,911.22
150414F,ARKAS LIMITED=================,25213,2,214.00,STRATEGIC (CYCLICAL),17/04/14,
150414F,ARKAS LIMITED=================,25213,3,249.69,STRATEGIC (CYCLICAL),17/04/14,
150414F,ARKAS LIMITED=================,25213,4,217.03,STRATEGIC (CYCLICAL),17/04/14,
150414F,ARKAS LIMITED=================,25214,1,214.00,STRATEGIC (CYCLICAL),17/04/14,675.00
150414F,ARKAS LIMITED=================,25214,2,181.00,STRATEGIC (CYCLICAL),17/04/14,
150414F,ARKAS LIMITED=================,25214,3,280.00,STRATEGIC (CYCLICAL),17/04/14,
140629,L B OF SOUTHWARK==============,2541480-1A,1,"16,615.50",PROPERTY RATES,17/04/14,"16,615.50"
150414F,BRITISH TELECOM===============,25654711Q051,1,"70,019.81",TELECOMMUNICATIONS,17/04/14,"71,266.71"
150414F,BRITISH TELECOM===============,25654711Q051,2,"1,246.90",TELECOMMUNICATIONS,17/04/14,
140628,THAMES WATER UTILITIES LTD====,25747-00531C,1,720.17,WATER & SEWERAGE RATES,17/04/14,720.17
800036037,ADECCO UK LIMITED=============,26738930,1,439.60,FRS STAFF AGENCY,17/04/14,439.60
800036955,ADECCO UK LIMITED=============,26746537,1,768.25,FRS STAFF AGENCY,17/04/14,768.25
800036956,ADECCO UK LIMITED=============,26746538,1,439.60,FRS STAFF AGENCY,17/04/14,439.60
800036958,ADECCO UK LIMITED=============,26746540,1,879.90,FRS STAFF AGENCY,17/04/14,879.90
800036959,ADECCO UK LIMITED=============,26746541,1,729.36,CONSULTANTS,17/04/14,729.36
800036961,ADECCO UK LIMITED=============,26746543,1,612.15,FRS STAFF AGENCY,17/04/14,612.15
800036967,ADECCO UK LIMITED=============,26746549,1,612.15,FRS STAFF AGENCY,17/04/14,612.15
800036975,ADECCO UK LIMITED=============,26746557,1,263.76,FRS STAFF AGENCY,17/04/14,263.76
800036978,ADECCO UK LIMITED=============,26746560,1,439.60,FRS STAFF AGENCY,17/04/14,439.60
800036979,ADECCO UK LIMITED=============,26746561,1,422.94,FRS STAFF AGENCY,17/04/14,422.94
800036980,ADECCO UK LIMITED=============,26746562,1,351.68,FRS STAFF AGENCY,17/04/14,351.68
800036987,ADECCO UK LIMITED=============,26750236,1,993.84,FRS STAFF AGENCY,17/04/14,993.84
800036992,ADECCO UK LIMITED=============,26750237,1,"2,867.35",PROF FEES-SOFTWARE CONSULTANTS,17/04/14,"2,867.35"
800036985,ADECCO UK LIMITED=============,26750242,1,"1,257.00",FRS STAFF AGENCY,17/04/14,"1,257.00"
110414C,MACE LIMITED,26915/0114620,1,"12,748.91",PROF FEES-MISCELLANEOUS,17/04/14,"12,748.91"
110414C,MACE LIMITED,26915/0114621,1,"7,995.30",DEVELOPMENT  EXPENSES-CONTRACT,17/04/14,"7,995.30"
110414C,RIDGEWAY TEXTILES LIMITED=====,27570,1,"1,183.75",PUBLIC RELATIONS,17/04/14,"1,183.75"
040414C,PRECISE MEDIA MONITORING LTD==,275904,1,839.42,PRESS OFFICE,17/04/14,839.42
070414C,AECOM LIMITED=================,28187073,1,550.60,PROFESSIONAL SERVICES,17/04/14,550.60
110414C,UNDERSTANDING RECRUITMENT=====,2889,1,"5,880.00",CONSULTANTS,17/04/14,"5,880.00"
020414C,CLC PRESENTATION SYSTEMS LTD,30252,1,"2,600.00",OFFICE EQUIPMENT,17/04/14,"3,390.00"
020414C,CLC PRESENTATION SYSTEMS LTD,30252,2,395.00,OFFICE EQUIPMENT,17/04/14,
020414C,CLC PRESENTATION SYSTEMS LTD,30252,3,395.00,OFFICE EQUIPMENT,17/04/14,
080414E,MCGRATH BROS (WASTE CONTROL) L,320384,1,292.50,REFUSE COLLECTION,17/04/14,292.50
080414E,MCGRATH BROS (WASTE CONTROL) L,320949,1,266.48,REFUSE COLLECTION,17/04/14,"16,763.63"
080414E,MCGRATH BROS (WASTE CONTROL) L,320949,2,111.36,REFUSE COLLECTION,17/04/14,
080414E,MCGRATH BROS (WASTE CONTROL) L,320949,3,207.84,REFUSE COLLECTION,17/04/14,
080414E,MCGRATH BROS (WASTE CONTROL) L,320949,4,90.08,REFUSE COLLECTION,17/04/14,
080414E,MCGRATH BROS (WASTE CONTROL) L,320949,5,111.36,REFUSE COLLECTION,17/04/14,
080414E,MCGRATH BROS (WASTE CONTROL) L,320949,6,82.04,REFUSE COLLECTION,17/04/14,
080414E,MCGRATH BROS (WASTE CONTROL) L,320949,7,29.32,REFUSE COLLECTION,17/04/14,
080414E,MCGRATH BROS (WASTE CONTROL) L,320949,8,163.32,REFUSE COLLECTION,17/04/14,
080414E,MCGRATH BROS (WASTE CONTROL) L,320949,9,111.36,REFUSE COLLECTION,17/04/14,
080414E,MCGRATH BROS (WASTE CONTROL) L,320949,10,82.04,REFUSE COLLECTION,17/04/14,
080414E,MCGRATH BROS (WASTE CONTROL) L,320949,11,36.65,REFUSE COLLECTION,17/04/14,
080414E,MCGRATH BROS (WASTE CONTROL) L,320949,12,114.20,REFUSE COLLECTION,17/04/14,
080414E,MCGRATH BROS (WASTE CONTROL) L,320949,13,163.32,REFUSE COLLECTION,17/04/14,
080414E,MCGRATH BROS (WASTE CONTROL) L,320949,14,286.28,REFUSE COLLECTION,17/04/14,
080414E,MCGRATH BROS (WASTE CONTROL) L,320949,15,111.36,REFUSE COLLECTION,17/04/14,
080414E,MCGRATH BROS (WASTE CONTROL) L,320949,16,302.36,REFUSE COLLECTION,17/04/14,
080414E,MCGRATH BROS (WASTE CONTROL) L,320949,17,82.04,REFUSE COLLECTION,17/04/14,
080414E,MCGRATH BROS (WASTE CONTROL) L,320949,18,266.48,REFUSE COLLECTION,17/04/14,
080414E,MCGRATH BROS (WASTE CONTROL) L,320949,19,29.32,REFUSE COLLECTION,17/04/14,
080414E,MCGRATH BROS (WASTE CONTROL) L,320949,20,330.80,REFUSE COLLECTION,17/04/14,
080414E,MCGRATH BROS (WASTE CONTROL) L,320949,21,143.52,REFUSE COLLECTION,17/04/14,
080414E,MCGRATH BROS (WASTE CONTROL) L,320949,22,82.04,REFUSE COLLECTION,17/04/14,
080414E,MCGRATH BROS (WASTE CONTROL) L,320949,23,82.04,REFUSE COLLECTION,17/04/14,
080414E,MCGRATH BROS (WASTE CONTROL) L,320949,24,82.04,REFUSE COLLECTION,17/04/14,
080414E,MCGRATH BROS (WASTE CONTROL) L,320949,25,29.32,REFUSE COLLECTION,17/04/14,
080414E,MCGRATH BROS (WASTE CONTROL) L,320949,26,131.16,REFUSE COLLECTION,17/04/14,
080414E,MCGRATH BROS (WASTE CONTROL) L,320949,27,82.04,REFUSE COLLECTION,17/04/14,
080414E,MCGRATH BROS (WASTE CONTROL) L,320949,28,286.28,REFUSE COLLECTION,17/04/14,
080414E,MCGRATH BROS (WASTE CONTROL) L,320949,29,238.04,REFUSE COLLECTION,17/04/14,
080414E,MCGRATH BROS (WASTE CONTROL) L,320949,30,82.04,REFUSE COLLECTION,17/04/14,
080414E,MCGRATH BROS (WASTE CONTROL) L,320949,31,119.40,REFUSE COLLECTION,17/04/14,
080414E,MCGRATH BROS (WASTE CONTROL) L,320949,32,266.48,REFUSE COLLECTION,17/04/14,
080414E,MCGRATH BROS (WASTE CONTROL) L,320949,33,119.40,REFUSE COLLECTION,17/04/14,
080414E,MCGRATH BROS (WASTE CONTROL) L,320949,34,111.36,REFUSE COLLECTION,17/04/14,
080414E,MCGRATH BROS (WASTE CONTROL) L,320949,35,159.60,REFUSE COLLECTION,17/04/14,
080414E,MCGRATH BROS (WASTE CONTROL) L,320949,36,111.36,REFUSE COLLECTION,17/04/14,
080414E,MCGRATH BROS (WASTE CONTROL) L,320949,37,143.52,REFUSE COLLECTION,17/04/14,
080414E,MCGRATH BROS (WASTE CONTROL) L,320949,38,114.20,REFUSE COLLECTION,17/04/14,
080414E,MCGRATH BROS (WASTE CONTROL) L,320949,39,82.04,REFUSE COLLECTION,17/04/14,
080414E,MCGRATH BROS (WASTE CONTROL) L,320949,40,202.16,REFUSE COLLECTION,17/04/14,
080414E,MCGRATH BROS (WASTE CONTROL) L,320949,41,202.16,REFUSE COLLECTION,17/04/14,
080414E,MCGRATH BROS (WASTE CONTROL) L,320949,42,111.36,REFUSE COLLECTION,17/04/14,
080414E,MCGRATH BROS (WASTE CONTROL) L,320949,43,82.04,REFUSE COLLECTION,17/04/14,
080414E,MCGRATH BROS (WASTE CONTROL) L,320949,44,90.08,REFUSE COLLECTION,17/04/14,
080414E,MCGRATH BROS (WASTE CONTROL) L,320949,45,266.48,REFUSE COLLECTION,17/04/14,
080414E,MCGRATH BROS (WASTE CONTROL) L,320949,46,202.16,REFUSE COLLECTION,17/04/14,
080414E,MCGRATH BROS (WASTE CONTROL) L,320949,47,119.40,REFUSE COLLECTION,17/04/14,
080414E,MCGRATH BROS (WASTE CONTROL) L,320949,48,82.04,REFUSE COLLECTION,17/04/14,
080414E,MCGRATH BROS (WASTE CONTROL) L,320949,49,82.04,REFUSE COLLECTION,17/04/14,
080414E,MCGRATH BROS (WASTE CONTROL) L,320949,50,119.40,REFUSE COLLECTION,17/04/14,
080414E,MCGRATH BROS (WASTE CONTROL) L,320949,51,266.48,REFUSE COLLECTION,17/04/14,
080414E,MCGRATH BROS (WASTE CONTROL) L,320949,52,90.08,REFUSE COLLECTION,17/04/14,
080414E,MCGRATH BROS (WASTE CONTROL) L,320949,53,82.04,REFUSE COLLECTION,17/04/14,
080414E,MCGRATH BROS (WASTE CONTROL) L,320949,54,139.20,REFUSE COLLECTION,17/04/14,
080414E,MCGRATH BROS (WASTE CONTROL) L,320949,55,29.32,REFUSE COLLECTION,17/04/14,
080414E,MCGRATH BROS (WASTE CONTROL) L,320949,56,114.20,REFUSE COLLECTION,17/04/14,
080414E,MCGRATH BROS (WASTE CONTROL) L,320949,57,29.32,REFUSE COLLECTION,17/04/14,
080414E,MCGRATH BROS (WASTE CONTROL) L,320949,58,143.52,REFUSE COLLECTION,17/04/14,
080414E,MCGRATH BROS (WASTE CONTROL) L,320949,59,82.04,REFUSE COLLECTION,17/04/14,
080414E,MCGRATH BROS (WASTE CONTROL) L,320949,60,266.48,REFUSE COLLECTION,17/04/14,
080414E,MCGRATH BROS (WASTE CONTROL) L,320949,61,111.36,REFUSE COLLECTION,17/04/14,
080414E,MCGRATH BROS (WASTE CONTROL) L,320949,62,111.36,REFUSE COLLECTION,17/04/14,
080414E,MCGRATH BROS (WASTE CONTROL) L,320949,63,90.08,REFUSE COLLECTION,17/04/14,
080414E,MCGRATH BROS (WASTE CONTROL) L,320949,64,302.36,REFUSE COLLECTION,17/04/14,
080414E,MCGRATH BROS (WASTE CONTROL) L,320949,65,82.04,REFUSE COLLECTION,17/04/14,
080414E,MCGRATH BROS (WASTE CONTROL) L,320949,66,266.48,REFUSE COLLECTION,17/04/14,
080414E,MCGRATH BROS (WASTE CONTROL) L,320949,67,82.04,REFUSE COLLECTION,17/04/14,
080414E,MCGRATH BROS (WASTE CONTROL) L,320949,68,111.36,REFUSE COLLECTION,17/04/14,
080414E,MCGRATH BROS (WASTE CONTROL) L,320949,69,111.36,REFUSE COLLECTION,17/04/14,
080414E,MCGRATH BROS (WASTE CONTROL) L,320949,70,111.36,REFUSE COLLECTION,17/04/14,
080414E,MCGRATH BROS (WASTE CONTROL) L,320949,72,82.04,REFUSE COLLECTION,17/04/14,
080414E,MCGRATH BROS (WASTE CONTROL) L,320949,73,328.06,REFUSE COLLECTION,17/04/14,
080414E,MCGRATH BROS (WASTE CONTROL) L,320949,74,90.08,REFUSE COLLECTION,17/04/14,
080414E,MCGRATH BROS (WASTE CONTROL) L,320949,75,111.36,REFUSE COLLECTION,17/04/14,
080414E,MCGRATH BROS (WASTE CONTROL) L,320949,76,111.36,REFUSE COLLECTION,17/04/14,
080414E,MCGRATH BROS (WASTE CONTROL) L,320949,77,114.20,REFUSE COLLECTION,17/04/14,
080414E,MCGRATH BROS (WASTE CONTROL) L,320949,78,82.04,REFUSE COLLECTION,17/04/14,
080414E,MCGRATH BROS (WASTE CONTROL) L,320949,79,82.04,REFUSE COLLECTION,17/04/14,
080414E,MCGRATH BROS (WASTE CONTROL) L,320949,80,82.04,REFUSE COLLECTION,17/04/14,
080414E,MCGRATH BROS (WASTE CONTROL) L,320949,81,82.04,REFUSE COLLECTION,17/04/14,
080414E,MCGRATH BROS (WASTE CONTROL) L,320949,82,266.48,REFUSE COLLECTION,17/04/14,
080414E,MCGRATH BROS (WASTE CONTROL) L,320949,83,286.28,REFUSE COLLECTION,17/04/14,
080414E,MCGRATH BROS (WASTE CONTROL) L,320949,84,111.36,REFUSE COLLECTION,17/04/14,
080414E,MCGRATH BROS (WASTE CONTROL) L,320949,85,29.32,REFUSE COLLECTION,17/04/14,
080414E,MCGRATH BROS (WASTE CONTROL) L,320949,86,114.20,REFUSE COLLECTION,17/04/14,
080414E,MCGRATH BROS (WASTE CONTROL) L,320949,87,111.36,REFUSE COLLECTION,17/04/14,
080414E,MCGRATH BROS (WASTE CONTROL) L,320949,88,90.08,REFUSE COLLECTION,17/04/14,
080414E,MCGRATH BROS (WASTE CONTROL) L,320949,89,536.03,REFUSE COLLECTION,17/04/14,
080414E,MCGRATH BROS (WASTE CONTROL) L,320949,90,94.51,REFUSE COLLECTION,17/04/14,
080414E,MCGRATH BROS (WASTE CONTROL) L,320949,91,90.08,REFUSE COLLECTION,17/04/14,
080414E,MCGRATH BROS (WASTE CONTROL) L,320949,92,286.28,REFUSE COLLECTION,17/04/14,
080414E,MCGRATH BROS (WASTE CONTROL) L,320949,93,82.04,REFUSE COLLECTION,17/04/14,
080414E,MCGRATH BROS (WASTE CONTROL) L,320949,94,111.36,REFUSE COLLECTION,17/04/14,
080414E,MCGRATH BROS (WASTE CONTROL) L,320949,95,111.36,REFUSE COLLECTION,17/04/14,
080414E,MCGRATH BROS (WASTE CONTROL) L,320949,96,302.36,REFUSE COLLECTION,17/04/14,
080414E,MCGRATH BROS (WASTE CONTROL) L,320949,97,111.36,REFUSE COLLECTION,17/04/14,
080414E,MCGRATH BROS (WASTE CONTROL) L,320949,98,"1,629.81",REFUSE COLLECTION,17/04/14,
080414E,MCGRATH BROS (WASTE CONTROL) L,320949,99,82.04,REFUSE COLLECTION,17/04/14,
080414E,MCGRATH BROS (WASTE CONTROL) L,320949,100,111.36,REFUSE COLLECTION,17/04/14,
080414E,MCGRATH BROS (WASTE CONTROL) L,320949,101,111.36,REFUSE COLLECTION,17/04/14,
080414E,MCGRATH BROS (WASTE CONTROL) L,320949,102,303.12,REFUSE COLLECTION,17/04/14,
080414E,MCGRATH BROS (WASTE CONTROL) L,320949,103,82.04,REFUSE COLLECTION,17/04/14,
080414E,MCGRATH BROS (WASTE CONTROL) L,320949,104,130.28,REFUSE COLLECTION,17/04/14,
080414E,MCGRATH BROS (WASTE CONTROL) L,320949,105,131.16,REFUSE COLLECTION,17/04/14,
080414E,MCGRATH BROS (WASTE CONTROL) L,320949,106,36.65,REFUSE COLLECTION,17/04/14,
080414E,MCGRATH BROS (WASTE CONTROL) L,320949,107,111.36,REFUSE COLLECTION,17/04/14,
080414E,MCGRATH BROS (WASTE CONTROL) L,320949,108,119.40,REFUSE COLLECTION,17/04/14,
080414E,MCGRATH BROS (WASTE CONTROL) L,320949,109,114.20,REFUSE COLLECTION,17/04/14,
080414E,MCGRATH BROS (WASTE CONTROL) L,320949,110,82.04,REFUSE COLLECTION,17/04/14,
080414E,MCGRATH BROS (WASTE CONTROL) L,320949,111,82.04,REFUSE COLLECTION,17/04/14,
080414E,MCGRATH BROS (WASTE CONTROL) L,320949,112,29.32,REFUSE COLLECTION,17/04/14,
080414E,MCGRATH BROS (WASTE CONTROL) L,320949,113,82.04,REFUSE COLLECTION,17/04/14,
110414C,CK DIRECT,3496,1,"8,645.00",STRATEGIC (NON CYCLICAL),17/04/14,"8,645.00"
020414C,360 SYSTEMS LIMITED===========,3602204,1,"3,134.50",CONSULTANTS,17/04/14,"3,134.50"
020414C,COMPUTACENTRE================,3880088503,1,"4,125.00",PURCHASES-COMPUTER/EQUIPMENT,17/04/14,"15,769.50"
020414C,COMPUTACENTRE================,3880088503,2,"2,062.50",PURCHASES-COMPUTER/EQUIPMENT,17/04/14,
020414C,COMPUTACENTRE================,3880088503,3,"4,800.00",PURCHASES-COMPUTER/EQUIPMENT,17/04/14,
020414C,COMPUTACENTRE================,3880088503,4,"1,782.00",PURCHASES-COMPUTER/EQUIPMENT,17/04/14,
020414C,COMPUTACENTRE================,3880088503,5,"3,000.00",PURCHASES-COMPUTER/EQUIPMENT,17/04/14,
140628,L B OF LAMBETH================,390009702A,1,"3,385.12",PROPERTY RATES,17/04/14,"3,385.12"
140628,L B OF LAMBETH================,390009711A,1,"4,207.50",PROPERTY RATES,17/04/14,"4,207.50"
140628,L B OF LAMBETH================,390025509*,1,"1,192.50",PROPERTY RATES,17/04/14,"1,192.50"
110414C,KNIGHTON CLEANING SERVICES LTD,39600,1,"2,286.11",HYGIENE,17/04/14,"2,286.11"
070414C,GLOBAL TO LOCAL LTD,437/14/AF184,1,200.00,CONSULTANTS,17/04/14,829.17
070414C,GLOBAL TO LOCAL LTD,437/14/AF184,2,29.17,CONSULTANTS,17/04/14,
070414C,GLOBAL TO LOCAL LTD,437/14/AF184,3,600.00,CONSULTANTS,17/04/14,
140628,L B OF HOUNSLOW===============,4400030075,1,"2,500.00",RENTS,17/04/14,"2,500.00"
090414E,WILLMOTT DIXON CONSTRUCTION,442635,1,"405,218.92",DEVELOPMENT  EXPENSES-CONTRACT,17/04/14,"405,218.92"
150414F,MITIE SECURITY (LONDON) LTD===,45/551504,1,"8,488.48",PREMISES SECURITY,17/04/14,"8,488.48"
150414F,SPORTSAFE UK LTD==============,456047,1,102.29,GYM EQUIPMENT,17/04/14,"1,013.71"
150414F,SPORTSAFE UK LTD==============,456047,2,415.52,GYM EQUIPMENT,17/04/14,
150414F,SPORTSAFE UK LTD==============,456047,3,23.90,GYM EQUIPMENT,17/04/14,
150414F,SPORTSAFE UK LTD==============,456047,4,184.00,GYM EQUIPMENT,17/04/14,
150414F,SPORTSAFE UK LTD==============,456047,5,147.00,GYM EQUIPMENT,17/04/14,
150414F,SPORTSAFE UK LTD==============,456047,6,49.00,GYM EQUIPMENT,17/04/14,
150414F,SPORTSAFE UK LTD==============,456047,7,92.00,GYM EQUIPMENT,17/04/14,
150414F,SPORTSAFE UK LTD==============,456051,1,290.00,GYM EQUIPMENT,17/04/14,290.00
150414F,SPORTSAFE UK LTD==============,456052,1,315.72,GYM EQUIPMENT,17/04/14,367.16
150414F,SPORTSAFE UK LTD==============,456052,2,51.44,GYM EQUIPMENT,17/04/14,
150414F,SPORTSAFE UK LTD==============,458049,1,73.94,GYM EQUIPMENT,17/04/14,479.65
150414F,SPORTSAFE UK LTD==============,458049,2,207.76,GYM EQUIPMENT,17/04/14,
150414F,SPORTSAFE UK LTD==============,458049,3,49.00,GYM EQUIPMENT,17/04/14,
150414F,SPORTSAFE UK LTD==============,458049,4,59.95,GYM EQUIPMENT,17/04/14,
150414F,SPORTSAFE UK LTD==============,458049,5,89.00,GYM EQUIPMENT,17/04/14,
150414F,FAHEY BUILDERS LTD============,5202,1,680.00,SPECIAL CLEANS,17/04/14,680.00
150414F,FAHEY BUILDERS LTD============,5205,1,750.00,SPECIAL CLEANS,17/04/14,750.00
150414F,FAHEY BUILDERS LTD============,5214,1,750.00,SPECIAL CLEANS,17/04/14,750.00
150414F,FAHEY BUILDERS LTD============,5216,1,760.00,SPECIAL CLEANS,17/04/14,760.00
150414F,FAHEY BUILDERS LTD============,5219,1,"3,725.00",STRATEGIC (NON CYCLICAL),17/04/14,"3,725.00"
140414F,CORE SURVEYSLTD===============,5440,1,170.00,ASBESTOS,17/04/14,510.00
140414F,CORE SURVEYSLTD===============,5440,2,170.00,ASBESTOS,17/04/14,
140414F,CORE SURVEYSLTD===============,5440,3,170.00,ASBESTOS,17/04/14,
140414F,CORE SURVEYSLTD===============,5525,1,170.00,ASBESTOS,17/04/14,530.00
140414F,CORE SURVEYSLTD===============,5525,2,170.00,ASBESTOS,17/04/14,
140414F,CORE SURVEYSLTD===============,5525,3,190.00,ASBESTOS,17/04/14,
140629,ALPHABET (GB) LIMITED,57816,1,472.21,LEASE CAR CHARGES,17/04/14,"5,943.34"
140629,ALPHABET (GB) LIMITED,57816,2,"5,471.13",LEASE CAR CHARGES,17/04/14,
140629,ALPHABET (GB) LIMITED,57816,3,-550.95,VAT CAR LEASING,17/04/14,
140629,ALPHABET (GB) LIMITED,57816,4,550.95,LEASE CAR CHARGES,17/04/14,
110414C,URS SCOTT WILSON LIMITED,5841171,1,"3,437.14",PROF FEES-MISCELLANEOUS,17/04/14,"3,437.14"
150414F,MOORE STEPHENS CONSULTING LTD=,673453,1,"39,175.40",MAINTENANCE & SUPPORT,17/04/14,"39,175.40"
270314C,SWEETT  UK LTD,7035844,1,741.41,STRATEGIC (NON CYCLICAL),17/04/14,741.41
270314C,SWEETT  UK LTD,7035849,1,753.11,STRATEGIC (NON CYCLICAL),17/04/14,753.11
270314C,SWEETT  UK LTD,7035850,1,300.02,STRATEGIC (NON CYCLICAL),17/04/14,300.02
270314C,SWEETT  UK LTD,7035851,1,730.85,STRATEGIC (NON CYCLICAL),17/04/14,730.85
270314C,SWEETT  UK LTD,7035852,1,426.34,STRATEGIC (NON CYCLICAL),17/04/14,426.34
140629,LB OF BROMLEY=================,7117565511,1,"2,235.17",PROPERTY RATES,17/04/14,"2,235.17"
140629,L B OF LAMBETH================,72829579C,1,"1,496.35",PROPERTY RATES,17/04/14,"1,496.35"
140414F,A.R.C.S. ENVIRONMENTAL LTD====,8322,1,930.00,ASBESTOS,17/04/14,930.00
110414C,VCG KESTREL LIMITED===========,89041,1,"1,692.00",PRINTING,17/04/14,"1,692.00"
140628,ROYAL BOROUGH OF GREENWICH,900179989*,1,"15,544.50",PROPERTY RATES,17/04/14,"15,544.50"
070414C,DRAEGER SAFETY UK LIMITED=====,90442048,1,311.20,PROTECTIVE EQUIPT - PARTS,17/04/14,"4,507.20"
070414C,DRAEGER SAFETY UK LIMITED=====,90442048,2,"2,837.00",PROTECTIVE EQUIPT - PARTS,17/04/14,
070414C,DRAEGER SAFETY UK LIMITED=====,90442048,3,"1,359.00",PROTECTIVE EQUIPT - PARTS,17/04/14,
110414C,SECTOR TREASURY SERVICES LTD==,93548131,1,485.00,CONSULTANTS,17/04/14,485.00
140414F,ASTEC SURVEYS LIMITED=========,ASL-14-130,1,530.00,ASBESTOS,17/04/14,530.00
020414C,LPFA CONTRIBUTIONS ACCOUNT====,BD508,1,"63,947.00",PENSION SERVICES,17/04/14,"63,947.00"
150414F,E&S B DAVIS LTD,DAV/48867,1,360.00,OPERATIONAL EQUIP-PURCHASE,17/04/14,460.00
150414F,E&S B DAVIS LTD,DAV/48867,2,100.00,OPERATIONAL EQUIP-PURCHASE,17/04/14,
150414F,NCC SERVICES LTD==============,E861455,1,750.00,MAINTENANCE & SUPPORT,17/04/14,750.00
150414F,BUTLER & YOUNG================,I109916,1,"3,445.00",PROF FEES-MISCELLANEOUS,17/04/14,"3,445.00"
020414C,MOTT MACDONALD============,IN00287717,1,"8,350.00",CONSULTANTS,17/04/14,"8,350.00"
020414C,BLUESKY SHAREPOINT CONSULTING,INV-1324,1,"5,100.00",CONSULTANTS,17/04/14,"5,100.00"
110414C,JCT600 CONTRACTS LIMITED======,INV00055278,1,794.00,MILEAGE CHARGES,17/04/14,794.00
110414C,PHOENIX SOFTWARE LTD==========,OP/I723781,1,"2,825.00",MAINTENANCE & SUPPORT,17/04/14,"2,825.00"
110414C,PILLINGER CONTROLS LTD========,PI72417,1,"1,385.00",STRATEGIC (NON CYCLICAL),17/04/14,"1,385.00"
140629,ARVAL UK LTD,RI10001086106,1,155.32,LEASE CAR CHARGES,17/04/14,"4,360.88"
140629,ARVAL UK LTD,RI10001086106,2,"4,205.56",LEASE CAR CHARGES,17/04/14,
140629,ARVAL UK LTD,RI10001086106,3,-383.73,VAT CAR LEASING,17/04/14,
140629,ARVAL UK LTD,RI10001086106,4,383.73,LEASE CAR CHARGES,17/04/14,
070414C,SECURITAS SECURITY SERVICES LT,S-SIN0220435,1,"118,920.96",GENERAL,17/04/14,"118,920.96"
110414C,ARVAL UK LTD,SI0001063040,1,445.00,MILEAGE CHARGES,17/04/14,445.00
040414C,SKYGUARD LTD,SI01132625,1,"1,701.70",OPERATIONAL EQUIP-PURCHASE,17/04/14,"1,701.70"
020414C,BABCOCK CRITICAL SERVICES LTD,SIMP012778,1,"9,453.00",GENERAL,17/04/14,"9,453.00"
140414F,BABCOCK CRITICAL SERVICES LTD,SIMP012792,1,"28,156.70",VEHICLES,17/04/14,"28,156.70"
040414C,BABCOCK CRITICAL SERVICES LTD,SIMP012793,1,"9,800.00",PURCHASES-VEHICLES,17/04/14,"9,800.00"
070414C,LC ENERGY LTD,SIN002153,1,794.40,GAS,17/04/14,794.40
040414C,GROUND CONTROL UMITED,SIN034284,1,13.00,GROUNDS MAINTENANCE,17/04/14,970.43
040414C,GROUND CONTROL UMITED,SIN034284,2,13.00,GROUNDS MAINTENANCE,17/04/14,
040414C,GROUND CONTROL UMITED,SIN034284,3,13.00,GROUNDS MAINTENANCE,17/04/14,
040414C,GROUND CONTROL UMITED,SIN034284,4,41.58,GROUNDS MAINTENANCE,17/04/14,
040414C,GROUND CONTROL UMITED,SIN034284,5,41.58,GROUNDS MAINTENANCE,17/04/14,
040414C,GROUND CONTROL UMITED,SIN034284,6,13.00,GROUNDS MAINTENANCE,17/04/14,
040414C,GROUND CONTROL UMITED,SIN034284,7,13.00,GROUNDS MAINTENANCE,17/04/14,
040414C,GROUND CONTROL UMITED,SIN034284,8,53.87,GROUNDS MAINTENANCE,17/04/14,
040414C,GROUND CONTROL UMITED,SIN034284,9,13.00,GROUNDS MAINTENANCE,17/04/14,
040414C,GROUND CONTROL UMITED,SIN034284,10,13.00,GROUNDS MAINTENANCE,17/04/14,
040414C,GROUND CONTROL UMITED,SIN034284,11,60.38,GROUNDS MAINTENANCE,17/04/14,
040414C,GROUND CONTROL UMITED,SIN034284,12,45.21,GROUNDS MAINTENANCE,17/04/14,
040414C,GROUND CONTROL UMITED,SIN034284,13,49.12,GROUNDS MAINTENANCE,17/04/14,
040414C,GROUND CONTROL UMITED,SIN034284,14,13.00,GROUNDS MAINTENANCE,17/04/14,
040414C,GROUND CONTROL UMITED,SIN034284,15,13.00,GROUNDS MAINTENANCE,17/04/14,
040414C,GROUND CONTROL UMITED,SIN034284,16,13.00,GROUNDS MAINTENANCE,17/04/14,
040414C,GROUND CONTROL UMITED,SIN034284,17,49.12,GROUNDS MAINTENANCE,17/04/14,
040414C,GROUND CONTROL UMITED,SIN034284,18,15.00,GROUNDS MAINTENANCE,17/04/14,
040414C,GROUND CONTROL UMITED,SIN034284,19,13.00,GROUNDS MAINTENANCE,17/04/14,
040414C,GROUND CONTROL UMITED,SIN034284,20,50.41,GROUNDS MAINTENANCE,17/04/14,
040414C,GROUND CONTROL UMITED,SIN034284,21,13.00,GROUNDS MAINTENANCE,17/04/14,
040414C,GROUND CONTROL UMITED,SIN034284,22,13.00,GROUNDS MAINTENANCE,17/04/14,
040414C,GROUND CONTROL UMITED,SIN034284,23,13.00,GROUNDS MAINTENANCE,17/04/14,
040414C,GROUND CONTROL UMITED,SIN034284,24,49.12,GROUNDS MAINTENANCE,17/04/14,
040414C,GROUND CONTROL UMITED,SIN034284,25,45.21,GROUNDS MAINTENANCE,17/04/14,
040414C,GROUND CONTROL UMITED,SIN034284,26,13.00,GROUNDS MAINTENANCE,17/04/14,
040414C,GROUND CONTROL UMITED,SIN034284,27,45.21,GROUNDS MAINTENANCE,17/04/14,
040414C,GROUND CONTROL UMITED,SIN034284,28,15.00,GROUNDS MAINTENANCE,17/04/14,
040414C,GROUND CONTROL UMITED,SIN034284,29,49.12,GROUNDS MAINTENANCE,17/04/14,
040414C,GROUND CONTROL UMITED,SIN034284,30,49.12,GROUNDS MAINTENANCE,17/04/14,
040414C,GROUND CONTROL UMITED,SIN034284,31,49.12,GROUNDS MAINTENANCE,17/04/14,
040414C,GROUND CONTROL UMITED,SIN034284,32,47.59,GROUNDS MAINTENANCE,17/04/14,
040414C,GROUND CONTROL UMITED,SIN034284,33,13.00,GROUNDS MAINTENANCE,17/04/14,
040414C,GROUND CONTROL UMITED,SIN034284,34,6.67,GROUNDS MAINTENANCE,17/04/14,
110414C,COSMUR CONSTRUCTION LTD,SL005445,1,"1,733.25",STRATEGIC (NON CYCLICAL),17/04/14,"1,733.25"
070414C,ARVAL UK LTD,VS0001142743,1,330.41,CONTRACT HIRE,17/04/14,330.41
150414E,MOOLANDS LTD,00000577,1,"4,200.00",STRATEGIC (NON CYCLICAL),22/04/14,"4,200.00"
070414C,CLARITY INFORMATION SOLUTIONS=,01060,1,"18,334.00",MAINTENANCE & SUPPORT,22/04/14,"18,334.00"
090414E,CUNDALL JOHNSTON AND PARTNERS,100018010,1,762.25,PROFESSIONAL SERVICES,22/04/14,762.25
160414C,*SPRUE SAFETY PRODUCTS LTD====,1059114,1,"1,730.40",FIRE DETECTORS,22/04/14,"1,730.40"
160414C,SILVERSANDS LIMITED===========,120647,1,"1,900.00",PURCHASES-SOFTWARE,22/04/14,"2,850.00"
160414C,SILVERSANDS LIMITED===========,120647,2,950.00,PURCHASES-SOFTWARE,22/04/14,
160414C,SILVERSANDS LIMITED===========,120648,1,"2,375.00",PURCHASES-SOFTWARE,22/04/14,"2,375.00"
160414C,SILVERSANDS LIMITED===========,120649,1,"14,250.00",PURCHASES-SOFTWARE,22/04/14,"14,250.00"
160414C,SILVERSANDS LIMITED===========,120650,1,"14,250.00",PURCHASES-SOFTWARE,22/04/14,"14,250.00"
160414C,SILVERSANDS LIMITED===========,120651,1,"14,250.00",PURCHASES-SOFTWARE,22/04/14,"14,250.00"
160414C,SILVERSANDS LIMITED===========,120652,1,"1,900.00",PURCHASES-SOFTWARE,22/04/14,"1,900.00"
160414C,RUTH LEE LTD==================,12082,1,425.65,OPERATIONAL EQUIP-PURCHASE,22/04/14,631.30
160414C,RUTH LEE LTD==================,12082,2,205.65,OPERATIONAL EQUIP-PURCHASE,22/04/14,
160414C,SAFEGUARD PEST CON. & ENV.LTD,124039,1,460.00,PEST CONTROL,22/04/14,460.00
140632,BGLOBAL METERING LTD==========,13014357,1,53.00,ELECTRICITY,22/04/14,"7,579.00"
140632,BGLOBAL METERING LTD==========,13014357,2,53.00,ELECTRICITY,22/04/14,
140632,BGLOBAL METERING LTD==========,13014357,3,53.00,ELECTRICITY,22/04/14,
140632,BGLOBAL METERING LTD==========,13014357,4,53.00,ELECTRICITY,22/04/14,
140632,BGLOBAL METERING LTD==========,13014357,5,53.00,ELECTRICITY,22/04/14,
140632,BGLOBAL METERING LTD==========,13014357,6,53.00,ELECTRICITY,22/04/14,
140632,BGLOBAL METERING LTD==========,13014357,7,53.00,ELECTRICITY,22/04/14,
140632,BGLOBAL METERING LTD==========,13014357,8,265.00,ELECTRICITY,22/04/14,
140632,BGLOBAL METERING LTD==========,13014357,9,106.00,ELECTRICITY,22/04/14,
140632,BGLOBAL METERING LTD==========,13014357,10,53.00,ELECTRICITY,22/04/14,
140632,BGLOBAL METERING LTD==========,13014357,11,53.00,ELECTRICITY,22/04/14,
140632,BGLOBAL METERING LTD==========,13014357,12,53.00,ELECTRICITY,22/04/14,
140632,BGLOBAL METERING LTD==========,13014357,13,53.00,ELECTRICITY,22/04/14,
140632,BGLOBAL METERING LTD==========,13014357,14,53.00,ELECTRICITY,22/04/14,
140632,BGLOBAL METERING LTD==========,13014357,15,53.00,ELECTRICITY,22/04/14,
140632,BGLOBAL METERING LTD==========,13014357,16,53.00,ELECTRICITY,22/04/14,
140632,BGLOBAL METERING LTD==========,13014357,17,53.00,ELECTRICITY,22/04/14,
140632,BGLOBAL METERING LTD==========,13014357,18,53.00,ELECTRICITY,22/04/14,
140632,BGLOBAL METERING LTD==========,13014357,19,106.00,ELECTRICITY,22/04/14,
140632,BGLOBAL METERING LTD==========,13014357,20,53.00,ELECTRICITY,22/04/14,
140632,BGLOBAL METERING LTD==========,13014357,21,53.00,ELECTRICITY,22/04/14,
140632,BGLOBAL METERING LTD==========,13014357,22,53.00,ELECTRICITY,22/04/14,
140632,BGLOBAL METERING LTD==========,13014357,23,53.00,ELECTRICITY,22/04/14,
140632,BGLOBAL METERING LTD==========,13014357,24,53.00,ELECTRICITY,22/04/14,
140632,BGLOBAL METERING LTD==========,13014357,25,53.00,ELECTRICITY,22/04/14,
140632,BGLOBAL METERING LTD==========,13014357,26,53.00,ELECTRICITY,22/04/14,
140632,BGLOBAL METERING LTD==========,13014357,27,53.00,ELECTRICITY,22/04/14,
140632,BGLOBAL METERING LTD==========,13014357,28,53.00,ELECTRICITY,22/04/14,
140632,BGLOBAL METERING LTD==========,13014357,29,53.00,ELECTRICITY,22/04/14,
140632,BGLOBAL METERING LTD==========,13014357,30,106.00,ELECTRICITY,22/04/14,
140632,BGLOBAL METERING LTD==========,13014357,31,53.00,ELECTRICITY,22/04/14,
140632,BGLOBAL METERING LTD==========,13014357,32,53.00,ELECTRICITY,22/04/14,
140632,BGLOBAL METERING LTD==========,13014357,33,53.00,ELECTRICITY,22/04/14,
140632,BGLOBAL METERING LTD==========,13014357,34,53.00,ELECTRICITY,22/04/14,
140632,BGLOBAL METERING LTD==========,13014357,35,53.00,ELECTRICITY,22/04/14,
140632,BGLOBAL METERING LTD==========,13014357,36,53.00,ELECTRICITY,22/04/14,
140632,BGLOBAL METERING LTD==========,13014357,37,53.00,ELECTRICITY,22/04/14,
140632,BGLOBAL METERING LTD==========,13014357,38,106.00,ELECTRICITY,22/04/14,
140632,BGLOBAL METERING LTD==========,13014357,39,53.00,ELECTRICITY,22/04/14,
140632,BGLOBAL METERING LTD==========,13014357,40,53.00,ELECTRICITY,22/04/14,
140632,BGLOBAL METERING LTD==========,13014357,41,53.00,ELECTRICITY,22/04/14,
140632,BGLOBAL METERING LTD==========,13014357,42,53.00,ELECTRICITY,22/04/14,
140632,BGLOBAL METERING LTD==========,13014357,43,212.00,ELECTRICITY,22/04/14,
140632,BGLOBAL METERING LTD==========,13014357,44,53.00,ELECTRICITY,22/04/14,
140632,BGLOBAL METERING LTD==========,13014357,45,53.00,ELECTRICITY,22/04/14,
140632,BGLOBAL METERING LTD==========,13014357,46,53.00,ELECTRICITY,22/04/14,
140632,BGLOBAL METERING LTD==========,13014357,47,159.00,ELECTRICITY,22/04/14,
140632,BGLOBAL METERING LTD==========,13014357,48,53.00,ELECTRICITY,22/04/14,
140632,BGLOBAL METERING LTD==========,13014357,49,53.00,ELECTRICITY,22/04/14,
140632,BGLOBAL METERING LTD==========,13014357,50,159.00,ELECTRICITY,22/04/14,
140632,BGLOBAL METERING LTD==========,13014357,51,53.00,ELECTRICITY,22/04/14,
140632,BGLOBAL METERING LTD==========,13014357,52,53.00,ELECTRICITY,22/04/14,
140632,BGLOBAL METERING LTD==========,13014357,53,53.00,ELECTRICITY,22/04/14,
140632,BGLOBAL METERING LTD==========,13014357,54,53.00,ELECTRICITY,22/04/14,
140632,BGLOBAL METERING LTD==========,13014357,55,53.00,ELECTRICITY,22/04/14,
140632,BGLOBAL METERING LTD==========,13014357,56,53.00,ELECTRICITY,22/04/14,
140632,BGLOBAL METERING LTD==========,13014357,57,53.00,ELECTRICITY,22/04/14,
140632,BGLOBAL METERING LTD==========,13014357,58,53.00,ELECTRICITY,22/04/14,
140632,BGLOBAL METERING LTD==========,13014357,59,53.00,ELECTRICITY,22/04/14,
140632,BGLOBAL METERING LTD==========,13014357,60,53.00,ELECTRICITY,22/04/14,
140632,BGLOBAL METERING LTD==========,13014357,61,53.00,ELECTRICITY,22/04/14,
140632,BGLOBAL METERING LTD==========,13014357,62,53.00,ELECTRICITY,22/04/14,
140632,BGLOBAL METERING LTD==========,13014357,63,53.00,ELECTRICITY,22/04/14,
140632,BGLOBAL METERING LTD==========,13014357,64,265.00,ELECTRICITY,22/04/14,
140632,BGLOBAL METERING LTD==========,13014357,65,53.00,ELECTRICITY,22/04/14,
140632,BGLOBAL METERING LTD==========,13014357,66,53.00,ELECTRICITY,22/04/14,
140632,BGLOBAL METERING LTD==========,13014357,67,53.00,ELECTRICITY,22/04/14,
140632,BGLOBAL METERING LTD==========,13014357,68,106.00,ELECTRICITY,22/04/14,
140632,BGLOBAL METERING LTD==========,13014357,69,53.00,ELECTRICITY,22/04/14,
140632,BGLOBAL METERING LTD==========,13014357,70,53.00,ELECTRICITY,22/04/14,
140632,BGLOBAL METERING LTD==========,13014357,71,53.00,ELECTRICITY,22/04/14,
140632,BGLOBAL METERING LTD==========,13014357,72,53.00,ELECTRICITY,22/04/14,
140632,BGLOBAL METERING LTD==========,13014357,73,53.00,ELECTRICITY,22/04/14,
140632,BGLOBAL METERING LTD==========,13014357,74,53.00,ELECTRICITY,22/04/14,
140632,BGLOBAL METERING LTD==========,13014357,75,53.00,ELECTRICITY,22/04/14,
140632,BGLOBAL METERING LTD==========,13014357,76,53.00,ELECTRICITY,22/04/14,
140632,BGLOBAL METERING LTD==========,13014357,77,53.00,ELECTRICITY,22/04/14,
140632,BGLOBAL METERING LTD==========,13014357,78,53.00,ELECTRICITY,22/04/14,
140632,BGLOBAL METERING LTD==========,13014357,79,53.00,ELECTRICITY,22/04/14,
140632,BGLOBAL METERING LTD==========,13014357,80,159.00,ELECTRICITY,22/04/14,
140632,BGLOBAL METERING LTD==========,13014357,81,53.00,ELECTRICITY,22/04/14,
140632,BGLOBAL METERING LTD==========,13014357,82,106.00,ELECTRICITY,22/04/14,
140632,BGLOBAL METERING LTD==========,13014357,83,53.00,ELECTRICITY,22/04/14,
140632,BGLOBAL METERING LTD==========,13014357,84,53.00,ELECTRICITY,22/04/14,
140632,BGLOBAL METERING LTD==========,13014357,85,53.00,ELECTRICITY,22/04/14,
140632,BGLOBAL METERING LTD==========,13014357,86,53.00,ELECTRICITY,22/04/14,
140632,BGLOBAL METERING LTD==========,13014357,87,53.00,ELECTRICITY,22/04/14,
140632,BGLOBAL METERING LTD==========,13014357,88,53.00,ELECTRICITY,22/04/14,
140632,BGLOBAL METERING LTD==========,13014357,89,53.00,ELECTRICITY,22/04/14,
140632,BGLOBAL METERING LTD==========,13014357,90,53.00,ELECTRICITY,22/04/14,
140632,BGLOBAL METERING LTD==========,13014357,91,106.00,ELECTRICITY,22/04/14,
140632,BGLOBAL METERING LTD==========,13014357,92,159.00,ELECTRICITY,22/04/14,
140632,BGLOBAL METERING LTD==========,13014357,93,53.00,ELECTRICITY,22/04/14,
140632,BGLOBAL METERING LTD==========,13014357,94,53.00,ELECTRICITY,22/04/14,
140632,BGLOBAL METERING LTD==========,13014357,95,53.00,ELECTRICITY,22/04/14,
140632,BGLOBAL METERING LTD==========,13014357,96,53.00,ELECTRICITY,22/04/14,
140632,BGLOBAL METERING LTD==========,13014357,97,53.00,ELECTRICITY,22/04/14,
140632,BGLOBAL METERING LTD==========,13014357,98,53.00,ELECTRICITY,22/04/14,
140632,BGLOBAL METERING LTD==========,13014357,99,53.00,ELECTRICITY,22/04/14,
140632,BGLOBAL METERING LTD==========,13014357,100,53.00,ELECTRICITY,22/04/14,
140632,BGLOBAL METERING LTD==========,13014357,101,53.00,ELECTRICITY,22/04/14,
140632,BGLOBAL METERING LTD==========,13014357,102,53.00,ELECTRICITY,22/04/14,
140632,BGLOBAL METERING LTD==========,13014357,103,53.00,ELECTRICITY,22/04/14,
140632,BGLOBAL METERING LTD==========,13014357,104,53.00,ELECTRICITY,22/04/14,
140632,BGLOBAL METERING LTD==========,13014357,105,53.00,ELECTRICITY,22/04/14,
140632,BGLOBAL METERING LTD==========,13014357,106,212.00,ELECTRICITY,22/04/14,
140632,BGLOBAL METERING LTD==========,13014357,107,53.00,ELECTRICITY,22/04/14,
140632,BGLOBAL METERING LTD==========,13014357,108,265.00,ELECTRICITY,22/04/14,
140632,BGLOBAL METERING LTD==========,13014357,109,106.00,ELECTRICITY,22/04/14,
020414C,H&A HEIGHT SERVICES LTD=======,1303,1,650.00,STRATEGIC (NON CYCLICAL),22/04/14,650.00
140635,THAMES WATER UTILITIES LTD====,13752-86795D,1,404.43,WATER & SEWERAGE RATES,22/04/14,404.43
170414F,SURREY BLIND & CURTAIN CO=====,14155,1,617.00,OFFICE FURNITURE,22/04/14,617.00
150414E,UK TAPES LTD==================,150266,1,967.20,GENERAL CONSUMABLES,22/04/14,"2,333.76"
150414E,UK TAPES LTD==================,150266,2,"1,366.56",GENERAL CONSUMABLES,22/04/14,
140635,THAMES WATER UTILITIES LTD====,1560420001Y,1,"1,245.03",WATER & SEWERAGE RATES,22/04/14,"1,245.03"
150414E,IRON MOUNTAIN (UK) LTD========,16184011,1,"2,685.61",MAINTENANCE & SUPPORT,22/04/14,"2,685.61"
160414C,L B OF REDBRIDGE==============,170113506364,1,"1,000.00",COMMUNITY RELATIONS,22/04/14,"1,000.00"
160414C,BT REDCARE====================,20020208,1,966.57,TELECOMMUNICATIONS,22/04/14,966.57
160414C,KENT FIRE & RESCUE SERVICE,201206,1,"5,396.75",FIRE AUTHORITIES,22/04/14,"5,396.75"
170414F,KENT FIRE & RESCUE SERVICE,201223,1,"5,396.75",FIRE AUTHORITIES,22/04/14,"5,396.75"
140635,NOMURA INTERNATIONAL PLC,23221,1,"3,156.39",RENTS,22/04/14,"3,156.39"
140635,PHONOGRAPHIC PERFORMANCE LTD,2374198,1,"45,334.90",LICENCES,22/04/14,"73,220.44"
140635,PHONOGRAPHIC PERFORMANCE LTD,2374198,2,"27,885.54",LICENCES,22/04/14,
800033306,ADECCO UK LIMITED=============,26735134,1,"1,268.75",FRS STAFF AGENCY,22/04/14,"1,268.75"
800033307,ADECCO UK LIMITED=============,26735135,1,"1,268.75",FRS STAFF AGENCY,22/04/14,"1,268.75"
800036051,ADECCO UK LIMITED=============,26738927,1,"1,270.34",FRS STAFF AGENCY,22/04/14,"1,270.34"
800036036,ADECCO UK LIMITED=============,26738929,1,"1,471.35",FRS STAFF AGENCY,22/04/14,"1,471.35"
800036038,ADECCO UK LIMITED=============,26738931,1,966.84,FRS STAFF AGENCY,22/04/14,966.84
800036039,ADECCO UK LIMITED=============,26738932,1,612.15,FRS STAFF AGENCY,22/04/14,612.15
800036040,ADECCO UK LIMITED=============,26738933,1,367.29,FRS STAFF AGENCY,22/04/14,367.29
800036041,ADECCO UK LIMITED=============,26738934,1,542.19,FRS STAFF AGENCY,22/04/14,542.19
800036042,ADECCO UK LIMITED=============,26738935,1,439.60,FRS STAFF AGENCY,22/04/14,439.60
800036043,ADECCO UK LIMITED=============,26738936,1,"1,156.95",FRS STAFF AGENCY,22/04/14,"1,156.95"
800036044,ADECCO UK LIMITED=============,26738937,1,"1,949.85",FRS STAFF AGENCY,22/04/14,"1,949.85"
800036045,ADECCO UK LIMITED=============,26738938,1,489.72,FRS STAFF AGENCY,22/04/14,489.72
800036046,ADECCO UK LIMITED=============,26738939,1,612.15,FRS STAFF AGENCY,22/04/14,612.15
800036047,ADECCO UK LIMITED=============,26738940,1,"1,221.23",FRS STAFF AGENCY,22/04/14,"1,221.23"
800036048,ADECCO UK LIMITED=============,26738941,1,"1,445.40",FRS STAFF AGENCY,22/04/14,"1,445.40"
800036049,ADECCO UK LIMITED=============,26738942,1,367.29,FRS STAFF AGENCY,22/04/14,367.29
800036957,ADECCO UK LIMITED=============,26746539,1,439.60,FRS STAFF AGENCY,22/04/14,439.60
800036960,ADECCO UK LIMITED=============,26746542,1,729.36,CONSULTANTS,22/04/14,729.36
800036962,ADECCO UK LIMITED=============,26746544,1,"1,270.34",FRS STAFF AGENCY,22/04/14,"1,270.34"
800036964,ADECCO UK LIMITED=============,26746546,1,966.84,FRS STAFF AGENCY,22/04/14,966.84
800036965,ADECCO UK LIMITED=============,26746547,1,612.15,FRS STAFF AGENCY,22/04/14,612.15
800036966,ADECCO UK LIMITED=============,26746548,1,263.76,FRS STAFF AGENCY,22/04/14,263.76
800036968,ADECCO UK LIMITED=============,26746550,1,"1,285.50",FRS STAFF AGENCY,22/04/14,"1,285.50"
800036969,ADECCO UK LIMITED=============,26746551,1,612.15,FRS STAFF AGENCY,22/04/14,612.15
800036970,ADECCO UK LIMITED=============,26746552,1,585.92,FRS STAFF AGENCY,22/04/14,585.92
800036971,ADECCO UK LIMITED=============,26746553,1,"1,199.80",FRS STAFF AGENCY,22/04/14,"1,199.80"
800036972,ADECCO UK LIMITED=============,26746554,1,963.60,FRS STAFF AGENCY,22/04/14,963.60
800036973,ADECCO UK LIMITED=============,26746555,1,367.29,FRS STAFF AGENCY,22/04/14,367.29
800036977,ADECCO UK LIMITED=============,26746559,1,"1,949.85",FRS STAFF AGENCY,22/04/14,"1,949.85"
800036981,ADECCO UK LIMITED=============,26746563,1,439.60,FRS STAFF AGENCY,22/04/14,439.60
800036982,ADECCO UK LIMITED=============,26746564,1,612.15,FRS STAFF AGENCY,22/04/14,612.15
800036983,ADECCO UK LIMITED=============,26746565,1,"1,471.35",FRS STAFF AGENCY,22/04/14,"1,471.35"
800036984,ADECCO UK LIMITED=============,26746566,1,612.15,FRS STAFF AGENCY,22/04/14,612.15
800036991,ADECCO UK LIMITED=============,26750235,1,436.32,FRS STAFF AGENCY,22/04/14,436.32
800036993,ADECCO UK LIMITED=============,26750238,1,"2,867.35",PROF FEES-SOFTWARE CONSULTANTS,22/04/14,"2,867.35"
800036994,ADECCO UK LIMITED=============,26750239,1,"2,867.35",PROF FEES-SOFTWARE CONSULTANTS,22/04/14,"2,867.35"
800036995,ADECCO UK LIMITED=============,26750240,1,"2,867.35",PROF FEES-SOFTWARE CONSULTANTS,22/04/14,"2,867.35"
800036986,ADECCO UK LIMITED=============,26750243,1,"1,602.68",FRS STAFF AGENCY,22/04/14,"1,602.68"
140635,THAMES WATER UTILITIES LTD====,27970-86298D,1,"2,499.22",WATER & SEWERAGE RATES,22/04/14,"2,499.22"
160414C,BISHOP CREIGHTON HSE SETTLEMNT,3037,1,595.00,COMMUNITY RELATIONS,22/04/14,595.00
140414F,EVOLUTION ENVIRONMENTAL LTD,3077,1,185.00,ASBESTOS,22/04/14,630.00
140414F,EVOLUTION ENVIRONMENTAL LTD,3077,2,175.00,ASBESTOS,22/04/14,
140414F,EVOLUTION ENVIRONMENTAL LTD,3077,3,270.00,ASBESTOS,22/04/14,
140414F,EVOLUTION ENVIRONMENTAL LTD,3078,1,185.00,ASBESTOS,22/04/14,555.00
140414F,EVOLUTION ENVIRONMENTAL LTD,3078,2,185.00,ASBESTOS,22/04/14,
140414F,EVOLUTION ENVIRONMENTAL LTD,3078,3,185.00,ASBESTOS,22/04/14,
140414F,EVOLUTION ENVIRONMENTAL LTD,3079,1,185.00,ASBESTOS,22/04/14,370.00
140414F,EVOLUTION ENVIRONMENTAL LTD,3079,2,185.00,ASBESTOS,22/04/14,
150414E,LEVEL 3 COMMUNICATIONS UK,33243355/806875,1,"3,276.00",MAINTENANCE & SUPPORT,22/04/14,"105,651.43"
150414E,LEVEL 3 COMMUNICATIONS UK,33243355/806875,2,"1,596.33",MAINTENANCE & SUPPORT,22/04/14,
150414E,LEVEL 3 COMMUNICATIONS UK,33243355/806875,3,"26,520.00",MAINTENANCE & SUPPORT,22/04/14,
150414E,LEVEL 3 COMMUNICATIONS UK,33243355/806875,4,"2,262.39",MAINTENANCE & SUPPORT,22/04/14,
150414E,LEVEL 3 COMMUNICATIONS UK,33243355/806875,5,103.75,MAINTENANCE & SUPPORT,22/04/14,
150414E,LEVEL 3 COMMUNICATIONS UK,33243355/806875,6,"15,124.59",MAINTENANCE & SUPPORT,22/04/14,
150414E,LEVEL 3 COMMUNICATIONS UK,33243355/806875,7,"56,768.37",MAINTENANCE & SUPPORT,22/04/14,
140635,THAMES WATER UTILITIES LTD====,3344972311~,1,360.59,WATER & SEWERAGE RATES,22/04/14,360.59
070414C,COMPUTACENTRE================,3880091557,1,"34,650.00",MAINTENANCE & SUPPORT,22/04/14,"55,000.00"
070414C,COMPUTACENTRE================,3880091557,2,495.00,MAINTENANCE & SUPPORT,22/04/14,
070414C,COMPUTACENTRE================,3880091557,3,350.00,MAINTENANCE & SUPPORT,22/04/14,
070414C,COMPUTACENTRE================,3880091557,4,"1,245.00",MAINTENANCE & SUPPORT,22/04/14,
070414C,COMPUTACENTRE================,3880091557,5,"2,970.00",MAINTENANCE & SUPPORT,22/04/14,
070414C,COMPUTACENTRE================,3880091557,6,"1,650.00",MAINTENANCE & SUPPORT,22/04/14,
070414C,COMPUTACENTRE================,3880091557,7,"4,655.00",MAINTENANCE & SUPPORT,22/04/14,
070414C,COMPUTACENTRE================,3880091557,8,"3,315.00",MAINTENANCE & SUPPORT,22/04/14,
070414C,COMPUTACENTRE================,3880091557,9,"3,215.00",MAINTENANCE & SUPPORT,22/04/14,
070414C,COMPUTACENTRE================,3880091557,10,"2,455.00",MAINTENANCE & SUPPORT,22/04/14,
150414E,COMPUTACENTRE================,3880093137,1,822.22,ACQUISITIONS,22/04/14,"1,779.01"
150414E,COMPUTACENTRE================,3880093137,2,956.79,ACQUISITIONS,22/04/14,
170414F,THE HEIGHTEC GROUP LTD========,39187,1,"1,630.91",OPERATIONAL EQUIP-PURCHASE,22/04/14,"1,630.91"
160414C,KNIGHTON CLEANING SERVICES LTD,40117,1,390.00,GYM EQUIPMENT,22/04/14,390.00
160414C,CANON (UK) LTD===============,401500286,1,390.91,OFFICE EQUIPMENT,22/04/14,390.91
160414C,CANON (UK) LTD===============,401504020,1,"3,102.16",OFFICE EQUIPMENT,22/04/14,"3,102.16"
140635,THAMES WATER UTILITIES LTD====,47190-45186D,1,"2,040.62",WATER & SEWERAGE RATES,22/04/14,"2,040.62"
140635,THAMES WATER UTILITIES LTD====,5179216119;,1,331.03,WATER & SEWERAGE RATES,22/04/14,331.03
140635,THAMES WATER UTILITIES LTD====,6514886346*,1,319.84,WATER & SEWERAGE RATES,22/04/14,319.84
150414E,SWEETT  UK LTD,7036621,1,"1,238.71",PROF FEES-MISCELLANEOUS,22/04/14,"1,238.71"
150414E,SWEETT  UK LTD,7036622,1,"1,171.17",PROF FEES-MISCELLANEOUS,22/04/14,"1,171.17"
140635,THAMES WATER UTILITIES LTD====,7544309254D,1,296.88,WATER & SEWERAGE RATES,22/04/14,296.88
160414C,SUPPORTPLAN (UK) LTD==========,82433,1,387.00,MAINTENANCE & SUPPORT,22/04/14,387.00
160414C,TITAN FIRE AND SECURITY=======,87719,1,"5,200.00",STRATEGIC (NON CYCLICAL),22/04/14,"5,200.00"
160414C,VCG KESTREL LIMITED===========,89068,1,"2,345.00",PRINTING,22/04/14,"2,345.00"
150414E,MICROSOFT LTD=================,9620753110,1,"31,100.00",MAINTENANCE & SUPPORT,22/04/14,"31,100.00"
160414C,E&S B DAVIS LTD,DAV/49556,1,900.00,OPERATIONAL EQUIP-PURCHASE,22/04/14,900.00
160414C,E&S B DAVIS LTD,DAV/49558,1,320.00,OPERATIONAL EQUIP-PURCHASE,22/04/14,320.00
160414C,KIER BUILDING SERV ENGINEERS==,F00048367,1,"1,645.88",STRATEGIC (NON CYCLICAL),22/04/14,"1,645.88"
160414C,KIER BUILDING SERV ENGINEERS==,F00048369,1,835.18,STRATEGIC (NON CYCLICAL),22/04/14,835.18
160414C,KIER BUILDING SERV ENGINEERS==,F00048370,1,"3,139.84",STRATEGIC (NON CYCLICAL),22/04/14,"3,139.84"
150414E,KIER BUILDING SERV ENGINEERS==,F00048372,1,"2,028.84",STRATEGIC (NON CYCLICAL),22/04/14,"2,028.84"
140636,JCT600 CONTRACTS LIMITED======,INV00058120,1,489.65,LEASE CAR CHARGES,22/04/14,489.65
140636,JCT600 CONTRACTS LIMITED======,INV00058120,2,-43.40,VAT CAR LEASING,22/04/14,
140636,JCT600 CONTRACTS LIMITED======,INV00058120,3,43.40,LEASE CAR CHARGES,22/04/14,
140636,JCT600 CONTRACTS LIMITED======,INV00058205,1,337.02,LEASE CAR CHARGES,22/04/14,337.02
140636,JCT600 CONTRACTS LIMITED======,INV00058205,2,-28.98,VAT CAR LEASING,22/04/14,
140636,JCT600 CONTRACTS LIMITED======,INV00058205,3,28.98,LEASE CAR CHARGES,22/04/14,
140636,JCT600 CONTRACTS LIMITED======,INV00058206,1,343.36,LEASE CAR CHARGES,22/04/14,343.36
140636,JCT600 CONTRACTS LIMITED======,INV00058206,2,-30.44,VAT CAR LEASING,22/04/14,
140636,JCT600 CONTRACTS LIMITED======,INV00058206,3,30.44,LEASE CAR CHARGES,22/04/14,
140636,JCT600 CONTRACTS LIMITED======,INV00058207,1,354.71,LEASE CAR CHARGES,22/04/14,354.71
140636,JCT600 CONTRACTS LIMITED======,INV00058207,2,-31.43,VAT CAR LEASING,22/04/14,
140636,JCT600 CONTRACTS LIMITED======,INV00058207,3,31.43,LEASE CAR CHARGES,22/04/14,
140636,JCT600 CONTRACTS LIMITED======,INV00058208,1,447.09,LEASE CAR CHARGES,22/04/14,447.09
140636,JCT600 CONTRACTS LIMITED======,INV00058208,2,-39.53,VAT CAR LEASING,22/04/14,
140636,JCT600 CONTRACTS LIMITED======,INV00058208,3,39.53,LEASE CAR CHARGES,22/04/14,
140636,JCT600 CONTRACTS LIMITED======,INV00058209,1,345.66,LEASE CAR CHARGES,22/04/14,345.66
140636,JCT600 CONTRACTS LIMITED======,INV00058209,2,-30.06,VAT CAR LEASING,22/04/14,
140636,JCT600 CONTRACTS LIMITED======,INV00058209,3,30.06,LEASE CAR CHARGES,22/04/14,
140636,JCT600 CONTRACTS LIMITED======,INV00058210,1,259.19,LEASE CAR CHARGES,22/04/14,259.19
140636,JCT600 CONTRACTS LIMITED======,INV00058210,2,-23.54,VAT CAR LEASING,22/04/14,
140636,JCT600 CONTRACTS LIMITED======,INV00058210,3,23.54,LEASE CAR CHARGES,22/04/14,
140636,JCT600 CONTRACTS LIMITED======,INV00058212,1,457.08,LEASE CAR CHARGES,22/04/14,457.08
140636,JCT600 CONTRACTS LIMITED======,INV00058212,2,-40.53,VAT CAR LEASING,22/04/14,
140636,JCT600 CONTRACTS LIMITED======,INV00058212,3,40.53,LEASE CAR CHARGES,22/04/14,
140636,JCT600 CONTRACTS LIMITED======,INV00058213,1,362.83,LEASE CAR CHARGES,22/04/14,362.83
140636,JCT600 CONTRACTS LIMITED======,INV00058213,2,-33.54,VAT CAR LEASING,22/04/14,
140636,JCT600 CONTRACTS LIMITED======,INV00058213,3,33.54,LEASE CAR CHARGES,22/04/14,
140636,JCT600 CONTRACTS LIMITED======,INV00058214,1,357.86,LEASE CAR CHARGES,22/04/14,357.86
140636,JCT600 CONTRACTS LIMITED======,INV00058214,2,-31.78,VAT CAR LEASING,22/04/14,
140636,JCT600 CONTRACTS LIMITED======,INV00058214,3,31.78,LEASE CAR CHARGES,22/04/14,
150414E,CORPORATE DIRECT (EUROPE) LTD=,INV0168030,1,399.50,RADIO,22/04/14,408.45
150414E,CORPORATE DIRECT (EUROPE) LTD=,INV0168030,2,8.95,RADIO,22/04/14,
160414C,CORPORATE DIRECT (EUROPE) LTD=,INV0168474,1,"1,049.50",RADIO,22/04/14,"1,058.45"
160414C,CORPORATE DIRECT (EUROPE) LTD=,INV0168474,2,8.95,RADIO,22/04/14,
170414F,BRISSCO SIGNS & GRAPHICS======,INV81515,1,"6,318.70",HYDRANTS,22/04/14,"6,318.70"
110414C,BLUE3 (LONDON) LTD OPERATING,LFB-ISP-003,1,"3,702.53",DAY TO DAY MINOR IMPS,22/04/14,"3,702.53"
800037286,ALLSTAR BUSINESS SOLUTIONS LTD,P2002668691,1,"1,220.56",FUEL,22/04/14,"18,961.94"
800037286,ALLSTAR BUSINESS SOLUTIONS LTD,P2002668691,2,696.08,FUEL,22/04/14,
800037286,ALLSTAR BUSINESS SOLUTIONS LTD,P2002668691,3,661.41,FUEL,22/04/14,
800037286,ALLSTAR BUSINESS SOLUTIONS LTD,P2002668691,4,634.57,FUEL,22/04/14,
800037286,ALLSTAR BUSINESS SOLUTIONS LTD,P2002668691,5,437.61,FUEL,22/04/14,
800037286,ALLSTAR BUSINESS SOLUTIONS LTD,P2002668691,6,402.69,FUEL,22/04/14,
800037286,ALLSTAR BUSINESS SOLUTIONS LTD,P2002668691,7,372.81,FUEL,22/04/14,
800037286,ALLSTAR BUSINESS SOLUTIONS LTD,P2002668691,8,364.42,FUEL,22/04/14,
800037286,ALLSTAR BUSINESS SOLUTIONS LTD,P2002668691,9,341.15,FUEL,22/04/14,
800037286,ALLSTAR BUSINESS SOLUTIONS LTD,P2002668691,10,332.14,FUEL,22/04/14,
800037286,ALLSTAR BUSINESS SOLUTIONS LTD,P2002668691,11,325.30,FUEL,22/04/14,
800037286,ALLSTAR BUSINESS SOLUTIONS LTD,P2002668691,12,322.67,FUEL,22/04/14,
800037286,ALLSTAR BUSINESS SOLUTIONS LTD,P2002668691,13,321.81,FUEL,22/04/14,
800037286,ALLSTAR BUSINESS SOLUTIONS LTD,P2002668691,14,319.82,FUEL,22/04/14,
800037286,ALLSTAR BUSINESS SOLUTIONS LTD,P2002668691,15,315.53,FUEL,22/04/14,
800037286,ALLSTAR BUSINESS SOLUTIONS LTD,P2002668691,16,313.51,FUEL,22/04/14,
800037286,ALLSTAR BUSINESS SOLUTIONS LTD,P2002668691,17,308.85,FUEL,22/04/14,
800037286,ALLSTAR BUSINESS SOLUTIONS LTD,P2002668691,18,280.28,FUEL,22/04/14,
800037286,ALLSTAR BUSINESS SOLUTIONS LTD,P2002668691,19,267.57,FUEL,22/04/14,
800037286,ALLSTAR BUSINESS SOLUTIONS LTD,P2002668691,20,261.41,FUEL,22/04/14,
800037286,ALLSTAR BUSINESS SOLUTIONS LTD,P2002668691,21,258.00,FUEL,22/04/14,
800037286,ALLSTAR BUSINESS SOLUTIONS LTD,P2002668691,22,257.35,FUEL,22/04/14,
800037286,ALLSTAR BUSINESS SOLUTIONS LTD,P2002668691,23,255.42,FUEL,22/04/14,
800037286,ALLSTAR BUSINESS SOLUTIONS LTD,P2002668691,24,248.53,FUEL,22/04/14,
800037286,ALLSTAR BUSINESS SOLUTIONS LTD,P2002668691,25,247.90,FUEL,22/04/14,
800037286,ALLSTAR BUSINESS SOLUTIONS LTD,P2002668691,26,245.25,FUEL,22/04/14,
800037286,ALLSTAR BUSINESS SOLUTIONS LTD,P2002668691,27,233.87,FUEL,22/04/14,
800037286,ALLSTAR BUSINESS SOLUTIONS LTD,P2002668691,28,214.68,FUEL,22/04/14,
800037286,ALLSTAR BUSINESS SOLUTIONS LTD,P2002668691,29,211.04,FUEL,22/04/14,
800037286,ALLSTAR BUSINESS SOLUTIONS LTD,P2002668691,30,210.10,FUEL,22/04/14,
800037286,ALLSTAR BUSINESS SOLUTIONS LTD,P2002668691,31,207.66,FUEL,22/04/14,
800037286,ALLSTAR BUSINESS SOLUTIONS LTD,P2002668691,32,202.82,FUEL,22/04/14,
800037286,ALLSTAR BUSINESS SOLUTIONS LTD,P2002668691,33,202.46,FUEL,22/04/14,
800037286,ALLSTAR BUSINESS SOLUTIONS LTD,P2002668691,34,195.39,FUEL,22/04/14,
800037286,ALLSTAR BUSINESS SOLUTIONS LTD,P2002668691,35,191.30,FUEL,22/04/14,
800037286,ALLSTAR BUSINESS SOLUTIONS LTD,P2002668691,36,171.08,FUEL,22/04/14,
800037286,ALLSTAR BUSINESS SOLUTIONS LTD,P2002668691,37,168.76,FUEL,22/04/14,
800037286,ALLSTAR BUSINESS SOLUTIONS LTD,P2002668691,38,167.21,FUEL,22/04/14,
800037286,ALLSTAR BUSINESS SOLUTIONS LTD,P2002668691,39,160.13,FUEL,22/04/14,
800037286,ALLSTAR BUSINESS SOLUTIONS LTD,P2002668691,40,152.17,FUEL,22/04/14,
800037286,ALLSTAR BUSINESS SOLUTIONS LTD,P2002668691,41,150.90,FUEL,22/04/14,
800037286,ALLSTAR BUSINESS SOLUTIONS LTD,P2002668691,42,149.55,FUEL,22/04/14,
800037286,ALLSTAR BUSINESS SOLUTIONS LTD,P2002668691,43,148.55,FUEL,22/04/14,
800037286,ALLSTAR BUSINESS SOLUTIONS LTD,P2002668691,44,147.51,FUEL,22/04/14,
800037286,ALLSTAR BUSINESS SOLUTIONS LTD,P2002668691,45,145.89,FUEL,22/04/14,
800037286,ALLSTAR BUSINESS SOLUTIONS LTD,P2002668691,46,142.44,FUEL,22/04/14,
800037286,ALLSTAR BUSINESS SOLUTIONS LTD,P2002668691,47,140.98,FUEL,22/04/14,
800037286,ALLSTAR BUSINESS SOLUTIONS LTD,P2002668691,48,140.43,FUEL,22/04/14,
800037286,ALLSTAR BUSINESS SOLUTIONS LTD,P2002668691,49,139.23,FUEL,22/04/14,
800037286,ALLSTAR BUSINESS SOLUTIONS LTD,P2002668691,50,137.03,FUEL,22/04/14,
800037286,ALLSTAR BUSINESS SOLUTIONS LTD,P2002668691,51,136.23,FUEL,22/04/14,
800037286,ALLSTAR BUSINESS SOLUTIONS LTD,P2002668691,52,135.71,FUEL,22/04/14,
800037286,ALLSTAR BUSINESS SOLUTIONS LTD,P2002668691,53,133.19,FUEL,22/04/14,
800037286,ALLSTAR BUSINESS SOLUTIONS LTD,P2002668691,54,132.53,FUEL,22/04/14,
800037286,ALLSTAR BUSINESS SOLUTIONS LTD,P2002668691,55,132.03,FUEL,22/04/14,
800037286,ALLSTAR BUSINESS SOLUTIONS LTD,P2002668691,56,131.24,FUEL,22/04/14,
800037286,ALLSTAR BUSINESS SOLUTIONS LTD,P2002668691,57,130.41,FUEL,22/04/14,
800037286,ALLSTAR BUSINESS SOLUTIONS LTD,P2002668691,58,129.20,FUEL,22/04/14,
800037286,ALLSTAR BUSINESS SOLUTIONS LTD,P2002668691,59,128.37,FUEL,22/04/14,
800037286,ALLSTAR BUSINESS SOLUTIONS LTD,P2002668691,60,124.59,FUEL,22/04/14,
800037286,ALLSTAR BUSINESS SOLUTIONS LTD,P2002668691,61,123.87,FUEL,22/04/14,
800037286,ALLSTAR BUSINESS SOLUTIONS LTD,P2002668691,62,123.36,FUEL,22/04/14,
800037286,ALLSTAR BUSINESS SOLUTIONS LTD,P2002668691,63,121.88,FUEL,22/04/14,
800037286,ALLSTAR BUSINESS SOLUTIONS LTD,P2002668691,64,121.39,FUEL,22/04/14,
800037286,ALLSTAR BUSINESS SOLUTIONS LTD,P2002668691,65,121.27,FUEL,22/04/14,
800037286,ALLSTAR BUSINESS SOLUTIONS LTD,P2002668691,66,120.87,FUEL,22/04/14,
800037286,ALLSTAR BUSINESS SOLUTIONS LTD,P2002668691,67,117.60,FUEL,22/04/14,
800037286,ALLSTAR BUSINESS SOLUTIONS LTD,P2002668691,68,116.60,FUEL,22/04/14,
800037286,ALLSTAR BUSINESS SOLUTIONS LTD,P2002668691,69,109.15,FUEL,22/04/14,
800037286,ALLSTAR BUSINESS SOLUTIONS LTD,P2002668691,70,107.34,FUEL,22/04/14,
800037286,ALLSTAR BUSINESS SOLUTIONS LTD,P2002668691,71,106.77,FUEL,22/04/14,
800037286,ALLSTAR BUSINESS SOLUTIONS LTD,P2002668691,72,105.17,FUEL,22/04/14,
800037286,ALLSTAR BUSINESS SOLUTIONS LTD,P2002668691,73,102.53,FUEL,22/04/14,
800037286,ALLSTAR BUSINESS SOLUTIONS LTD,P2002668691,74,102.53,FUEL,22/04/14,
800037286,ALLSTAR BUSINESS SOLUTIONS LTD,P2002668691,75,98.53,FUEL,22/04/14,
800037286,ALLSTAR BUSINESS SOLUTIONS LTD,P2002668691,76,98.04,FUEL,22/04/14,
800037286,ALLSTAR BUSINESS SOLUTIONS LTD,P2002668691,77,96.32,FUEL,22/04/14,
800037286,ALLSTAR BUSINESS SOLUTIONS LTD,P2002668691,78,95.89,FUEL,22/04/14,
800037286,ALLSTAR BUSINESS SOLUTIONS LTD,P2002668691,79,94.46,FUEL,22/04/14,
800037286,ALLSTAR BUSINESS SOLUTIONS LTD,P2002668691,80,93.12,FUEL,22/04/14,
800037286,ALLSTAR BUSINESS SOLUTIONS LTD,P2002668691,81,92.24,FUEL,22/04/14,
800037286,ALLSTAR BUSINESS SOLUTIONS LTD,P2002668691,82,90.23,FUEL,22/04/14,
800037286,ALLSTAR BUSINESS SOLUTIONS LTD,P2002668691,83,88.06,FUEL,22/04/14,
800037286,ALLSTAR BUSINESS SOLUTIONS LTD,P2002668691,84,86.46,FUEL,22/04/14,
800037286,ALLSTAR BUSINESS SOLUTIONS LTD,P2002668691,85,85.09,FUEL,22/04/14,
800037286,ALLSTAR BUSINESS SOLUTIONS LTD,P2002668691,86,82.33,FUEL,22/04/14,
800037286,ALLSTAR BUSINESS SOLUTIONS LTD,P2002668691,87,81.94,FUEL,22/04/14,
800037286,ALLSTAR BUSINESS SOLUTIONS LTD,P2002668691,88,80.17,FUEL,22/04/14,
800037286,ALLSTAR BUSINESS SOLUTIONS LTD,P2002668691,89,78.23,FUEL,22/04/14,
800037286,ALLSTAR BUSINESS SOLUTIONS LTD,P2002668691,90,77.58,FUEL,22/04/14,
800037286,ALLSTAR BUSINESS SOLUTIONS LTD,P2002668691,91,71.14,FUEL,22/04/14,
800037286,ALLSTAR BUSINESS SOLUTIONS LTD,P2002668691,92,65.85,FUEL,22/04/14,
800037286,ALLSTAR BUSINESS SOLUTIONS LTD,P2002668691,93,52.47,FUEL,22/04/14,
800037286,ALLSTAR BUSINESS SOLUTIONS LTD,P2002668691,94,48.34,FUEL,22/04/14,
800037286,ALLSTAR BUSINESS SOLUTIONS LTD,P2002668691,95,46.08,FUEL,22/04/14,
800037286,ALLSTAR BUSINESS SOLUTIONS LTD,P2002668691,96,44.01,FUEL,22/04/14,
800037286,ALLSTAR BUSINESS SOLUTIONS LTD,P2002668691,97,43.35,FUEL,22/04/14,
800037286,ALLSTAR BUSINESS SOLUTIONS LTD,P2002668691,98,35.83,FUEL,22/04/14,
800037286,ALLSTAR BUSINESS SOLUTIONS LTD,P2002668691,99,25.01,FUEL,22/04/14,
800037286,ALLSTAR BUSINESS SOLUTIONS LTD,P2002668691,100,23.33,FUEL,22/04/14,
800037286,ALLSTAR BUSINESS SOLUTIONS LTD,P2002668691,101,13.03,FUEL,22/04/14,
800037286,ALLSTAR BUSINESS SOLUTIONS LTD,P2002668691,102,11.18,FUEL,22/04/14,
800037286,ALLSTAR BUSINESS SOLUTIONS LTD,P2002668691,103,5.98,FUEL,22/04/14,
070414C,LEXISNEXIS VISUALFILES,PA1020448,1,460.00,SUBSCRIPTIONS,22/04/14,460.00
140635,ARVAL UK LTD,R10001027289,1,962.74,LEASE CAR CHARGES,22/04/14,"4,183.32"
140635,ARVAL UK LTD,R10001027289,2,"3,220.58",LEASE CAR CHARGES,22/04/14,
140635,ARVAL UK LTD,R10001027289,3,-353.59,VAT CAR LEASING,22/04/14,
140635,ARVAL UK LTD,R10001027289,4,353.59,LEASE CAR CHARGES,22/04/14,
140637,ARVAL UK LTD,RI0000954340,1,"2,359.77",LEASE CAR CHARGES,22/04/14,"6,108.62"
140637,ARVAL UK LTD,RI0000954340,2,"3,748.85",LEASE CAR CHARGES,22/04/14,
140637,ARVAL UK LTD,RI0000954340,3,-523.17,VAT CAR LEASING,22/04/14,
140637,ARVAL UK LTD,RI0000954340,4,523.17,LEASE CAR CHARGES,22/04/14,
140637,ARVAL UK LTD,RI0000969769,1,"1,203.03",LEASE CAR CHARGES,22/04/14,"3,991.87"
140637,ARVAL UK LTD,RI0000969769,2,"2,788.84",LEASE CAR CHARGES,22/04/14,
140637,ARVAL UK LTD,RI0000969769,3,-347.84,VAT CAR LEASING,22/04/14,
140637,ARVAL UK LTD,RI0000969769,4,347.84,LEASE CAR CHARGES,22/04/14,
140637,ARVAL UK LTD,RI0000969772,1,"1,262.64",LEASE CAR CHARGES,22/04/14,"4,151.91"
140637,ARVAL UK LTD,RI0000969772,2,"2,889.27",LEASE CAR CHARGES,22/04/14,
140637,ARVAL UK LTD,RI0000992980,1,"1,465.42",LEASE CAR CHARGES,22/04/14,"4,907.14"
140637,ARVAL UK LTD,RI0000992980,2,"3,441.72",LEASE CAR CHARGES,22/04/14,
140637,ARVAL UK LTD,RI0000992980,3,-424.33,VAT CAR LEASING,22/04/14,
140637,ARVAL UK LTD,RI0000992980,4,424.33,LEASE CAR CHARGES,22/04/14,
140635,ARVAL UK LTD,RI0001008389,1,"1,039.15",LEASE CAR CHARGES,22/04/14,"4,741.10"
140635,ARVAL UK LTD,RI0001008389,2,"3,701.95",LEASE CAR CHARGES,22/04/14,
140635,ARVAL UK LTD,RI0001008389,3,-421.75,VAT CAR LEASING,22/04/14,
140635,ARVAL UK LTD,RI0001008389,4,421.75,LEASE CAR CHARGES,22/04/14,
140636,ARVAL UK LTD,RI0001086102,1,182.09,LEASE CAR CHARGES,22/04/14,"2,889.61"
140636,ARVAL UK LTD,RI0001086102,2,"2,707.52",LEASE CAR CHARGES,22/04/14,
140636,ARVAL UK LTD,RI0001086102,3,-235.66,VAT CAR LEASING,22/04/14,
140636,ARVAL UK LTD,RI0001086102,4,235.66,LEASE CAR CHARGES,22/04/14,
140636,ARVAL UK LTD,RI0001086103,1,369.43,LEASE CAR CHARGES,22/04/14,"4,994.20"
140636,ARVAL UK LTD,RI0001086103,2,"4,624.77",LEASE CAR CHARGES,22/04/14,
140636,ARVAL UK LTD,RI0001086103,3,-413.08,VAT CAR LEASING,22/04/14,
140636,ARVAL UK LTD,RI0001086103,4,413.08,LEASE CAR CHARGES,22/04/14,
140636,ARVAL UK LTD,RI0001086104,1,347.32,LEASE CAR CHARGES,22/04/14,"4,875.81"
140636,ARVAL UK LTD,RI0001086104,2,"4,528.49",LEASE CAR CHARGES,22/04/14,
140636,ARVAL UK LTD,RI0001086104,3,-424.80,VAT CAR LEASING,22/04/14,
140636,ARVAL UK LTD,RI0001086104,4,424.80,LEASE CAR CHARGES,22/04/14,
140636,ARVAL UK LTD,RI0001086105,1,152.33,LEASE CAR CHARGES,22/04/14,"3,088.95"
140636,ARVAL UK LTD,RI0001086105,2,"2,936.62",LEASE CAR CHARGES,22/04/14,
140636,ARVAL UK LTD,RI0001086105,3,-261.16,VAT CAR LEASING,22/04/14,
140636,ARVAL UK LTD,RI0001086105,4,261.16,LEASE CAR CHARGES,22/04/14,
140636,ARVAL UK LTD,RI000969766,1,"1,289.69",LEASE CAR CHARGES,22/04/14,"4,358.67"
140636,ARVAL UK LTD,RI000969766,2,"3,068.98",LEASE CAR CHARGES,22/04/14,
140636,ARVAL UK LTD,RI000969766,3,-356.21,VAT CAR LEASING,22/04/14,
140636,ARVAL UK LTD,RI000969766,4,356.21,LEASE CAR CHARGES,22/04/14,
160414C,HUNTER LODGE==================,S-015338,1,"19,365.00",ADVERTISING,22/04/14,"19,365.00"
150414E,SECURITAS SECURITY SERVICES LT,S-SIN0220434,1,"142,855.61",GENERAL,22/04/14,"142,855.61"
150414E,SECURITAS SECURITY SERVICES LT,S-SIN0220437,1,"1,086.13",REPAIR & MAINTENANCE,22/04/14,"1,086.13"
160414C,HUNTER LODGE==================,SI-05474A,1,"12,000.00",ADVERTISING,22/04/14,"12,000.00"
160414C,HUNTER LODGE==================,SI-05474D,1,"15,000.00",ADVERTISING,22/04/14,"15,000.00"
800036053,*THOMAS KNEALE & CO LTD,TK106566,1,429.80,COMMUNITY RELATIONS,22/04/14,"3,945.07"
800036053,*THOMAS KNEALE & CO LTD,TK106566,2,334.95,COMMUNITY RELATIONS,22/04/14,
800036053,*THOMAS KNEALE & CO LTD,TK106566,3,267.96,COMMUNITY RELATIONS,22/04/14,
800036053,*THOMAS KNEALE & CO LTD,TK106566,4,257.88,COMMUNITY RELATIONS,22/04/14,
800036053,*THOMAS KNEALE & CO LTD,TK106566,5,669.90,COMMUNITY RELATIONS,22/04/14,
800036053,*THOMAS KNEALE & CO LTD,TK106566,6,429.80,COMMUNITY RELATIONS,22/04/14,
800036053,*THOMAS KNEALE & CO LTD,TK106566,7,10.89,CLOTHING,22/04/14,
800036053,*THOMAS KNEALE & CO LTD,TK106566,8,3.47,CLOTHING,22/04/14,
800036053,*THOMAS KNEALE & CO LTD,TK106566,9,10.89,CLOTHING,22/04/14,
800036053,*THOMAS KNEALE & CO LTD,TK106566,10,3.47,CLOTHING,22/04/14,
800036053,*THOMAS KNEALE & CO LTD,TK106566,11,10.89,CLOTHING,22/04/14,
800036053,*THOMAS KNEALE & CO LTD,TK106566,12,3.47,CLOTHING,22/04/14,
800036053,*THOMAS KNEALE & CO LTD,TK106566,13,6.94,CLOTHING,22/04/14,
800036053,*THOMAS KNEALE & CO LTD,TK106566,14,10.89,CLOTHING,22/04/14,
800036053,*THOMAS KNEALE & CO LTD,TK106566,15,3.47,CLOTHING,22/04/14,
800036053,*THOMAS KNEALE & CO LTD,TK106566,16,1.48,CLOTHING,22/04/14,
800036053,*THOMAS KNEALE & CO LTD,TK106566,17,3.47,CLOTHING,22/04/14,
800036053,*THOMAS KNEALE & CO LTD,TK106566,18,1.48,CLOTHING,22/04/14,
800036053,*THOMAS KNEALE & CO LTD,TK106566,19,10.89,CLOTHING,22/04/14,
800036053,*THOMAS KNEALE & CO LTD,TK106566,20,10.89,CLOTHING,22/04/14,
800036053,*THOMAS KNEALE & CO LTD,TK106566,21,4.44,CLOTHING,22/04/14,
800036053,*THOMAS KNEALE & CO LTD,TK106566,22,32.67,CLOTHING,22/04/14,
800036053,*THOMAS KNEALE & CO LTD,TK106566,23,14.94,OFFICE FURNITURE,22/04/14,
800036053,*THOMAS KNEALE & CO LTD,TK106566,24,135.90,OFFICE FURNITURE,22/04/14,
800036053,*THOMAS KNEALE & CO LTD,TK106566,25,135.90,OFFICE FURNITURE,22/04/14,
800036053,*THOMAS KNEALE & CO LTD,TK106566,26,135.90,OFFICE FURNITURE,22/04/14,
800036053,*THOMAS KNEALE & CO LTD,TK106566,27,3.47,CLOTHING,22/04/14,
800036053,*THOMAS KNEALE & CO LTD,TK106566,28,2.96,CLOTHING,22/04/14,
800036053,*THOMAS KNEALE & CO LTD,TK106566,29,10.89,CLOTHING,22/04/14,
800036053,*THOMAS KNEALE & CO LTD,TK106566,30,1.48,CLOTHING,22/04/14,
800036053,*THOMAS KNEALE & CO LTD,TK106566,31,3.47,CLOTHING,22/04/14,
800036053,*THOMAS KNEALE & CO LTD,TK106566,32,10.89,CLOTHING,22/04/14,
800036053,*THOMAS KNEALE & CO LTD,TK106566,33,3.47,CLOTHING,22/04/14,
800036053,*THOMAS KNEALE & CO LTD,TK106566,34,1.48,CLOTHING,22/04/14,
800036053,*THOMAS KNEALE & CO LTD,TK106566,35,10.89,CLOTHING,22/04/14,
800036053,*THOMAS KNEALE & CO LTD,TK106566,36,10.89,CLOTHING,22/04/14,
800036053,*THOMAS KNEALE & CO LTD,TK106566,37,3.47,CLOTHING,22/04/14,
800036053,*THOMAS KNEALE & CO LTD,TK106566,38,1.48,CLOTHING,22/04/14,
800036053,*THOMAS KNEALE & CO LTD,TK106566,39,0.99,CLOTHING,22/04/14,
800036053,*THOMAS KNEALE & CO LTD,TK106566,40,10.89,CLOTHING,22/04/14,
800036053,*THOMAS KNEALE & CO LTD,TK106566,41,3.47,CLOTHING,22/04/14,
800036053,*THOMAS KNEALE & CO LTD,TK106566,42,1.48,CLOTHING,22/04/14,
800036053,*THOMAS KNEALE & CO LTD,TK106566,43,161.94,OFFICE FURNITURE,22/04/14,
800036053,*THOMAS KNEALE & CO LTD,TK106566,44,161.94,OFFICE FURNITURE,22/04/14,
800036053,*THOMAS KNEALE & CO LTD,TK106566,45,2.84,OFFICE FURNITURE,22/04/14,
800036053,*THOMAS KNEALE & CO LTD,TK106566,46,10.89,CLOTHING,22/04/14,
800036053,*THOMAS KNEALE & CO LTD,TK106566,47,0.99,CLOTHING,22/04/14,
800036053,*THOMAS KNEALE & CO LTD,TK106566,48,3.47,CLOTHING,22/04/14,
800036053,*THOMAS KNEALE & CO LTD,TK106566,49,1.48,CLOTHING,22/04/14,
800036053,*THOMAS KNEALE & CO LTD,TK106566,50,1.48,CLOTHING,22/04/14,
800036053,*THOMAS KNEALE & CO LTD,TK106566,51,10.89,CLOTHING,22/04/14,
800036053,*THOMAS KNEALE & CO LTD,TK106566,52,3.47,CLOTHING,22/04/14,
800036053,*THOMAS KNEALE & CO LTD,TK106566,53,1.48,CLOTHING,22/04/14,
800036053,*THOMAS KNEALE & CO LTD,TK106566,54,10.89,CLOTHING,22/04/14,
800036053,*THOMAS KNEALE & CO LTD,TK106566,55,10.89,CLOTHING,22/04/14,
800036053,*THOMAS KNEALE & CO LTD,TK106566,56,3.47,CLOTHING,22/04/14,
800036053,*THOMAS KNEALE & CO LTD,TK106566,57,1.48,CLOTHING,22/04/14,
800036053,*THOMAS KNEALE & CO LTD,TK106566,58,2.97,CLOTHING,22/04/14,
800036053,*THOMAS KNEALE & CO LTD,TK106566,59,32.67,CLOTHING,22/04/14,
800036053,*THOMAS KNEALE & CO LTD,TK106566,60,4.44,CLOTHING,22/04/14,
800036053,*THOMAS KNEALE & CO LTD,TK106566,61,10.41,CLOTHING,22/04/14,
800036053,*THOMAS KNEALE & CO LTD,TK106566,62,3.47,CLOTHING,22/04/14,
800036053,*THOMAS KNEALE & CO LTD,TK106566,63,10.89,CLOTHING,22/04/14,
800036053,*THOMAS KNEALE & CO LTD,TK106566,64,0.99,CLOTHING,22/04/14,
800036053,*THOMAS KNEALE & CO LTD,TK106566,65,3.47,CLOTHING,22/04/14,
800036053,*THOMAS KNEALE & CO LTD,TK106566,66,1.48,CLOTHING,22/04/14,
800036053,*THOMAS KNEALE & CO LTD,TK106566,67,2.96,CLOTHING,22/04/14,
800036053,*THOMAS KNEALE & CO LTD,TK106566,68,3.47,CLOTHING,22/04/14,
800036053,*THOMAS KNEALE & CO LTD,TK106566,69,10.89,CLOTHING,22/04/14,
800036053,*THOMAS KNEALE & CO LTD,TK106566,70,3.47,CLOTHING,22/04/14,
800036053,*THOMAS KNEALE & CO LTD,TK106566,71,1.48,CLOTHING,22/04/14,
800036053,*THOMAS KNEALE & CO LTD,TK106566,72,3.47,CLOTHING,22/04/14,
800036053,*THOMAS KNEALE & CO LTD,TK106566,73,1.48,CLOTHING,22/04/14,
800036053,*THOMAS KNEALE & CO LTD,TK106566,74,10.89,CLOTHING,22/04/14,
800036053,*THOMAS KNEALE & CO LTD,TK106566,75,6.94,CLOTHING,22/04/14,
800036053,*THOMAS KNEALE & CO LTD,TK106566,76,3.47,CLOTHING,22/04/14,
800036053,*THOMAS KNEALE & CO LTD,TK106566,77,1.48,CLOTHING,22/04/14,
800036053,*THOMAS KNEALE & CO LTD,TK106566,78,3.47,CLOTHING,22/04/14,
800036053,*THOMAS KNEALE & CO LTD,TK106566,79,1.48,CLOTHING,22/04/14,
800036053,*THOMAS KNEALE & CO LTD,TK106566,80,10.89,CLOTHING,22/04/14,
800036053,*THOMAS KNEALE & CO LTD,TK106566,81,10.89,CLOTHING,22/04/14,
800036053,*THOMAS KNEALE & CO LTD,TK106566,82,3.47,CLOTHING,22/04/14,
800036053,*THOMAS KNEALE & CO LTD,TK106566,83,1.48,CLOTHING,22/04/14,
800036053,*THOMAS KNEALE & CO LTD,TK106566,84,10.89,CLOTHING,22/04/14,
800036053,*THOMAS KNEALE & CO LTD,TK106566,85,0.99,CLOTHING,22/04/14,
800036053,*THOMAS KNEALE & CO LTD,TK106566,86,10.89,CLOTHING,22/04/14,
800036053,*THOMAS KNEALE & CO LTD,TK106566,87,5.18,OFFICE FURNITURE,22/04/14,
800036053,*THOMAS KNEALE & CO LTD,TK106566,88,14.20,OFFICE FURNITURE,22/04/14,
800036053,*THOMAS KNEALE & CO LTD,TK106566,89,3.47,CLOTHING,22/04/14,
800036053,*THOMAS KNEALE & CO LTD,TK106566,90,1.48,CLOTHING,22/04/14,
800036053,*THOMAS KNEALE & CO LTD,TK106566,91,10.89,CLOTHING,22/04/14,
800036053,*THOMAS KNEALE & CO LTD,TK106566,92,3.47,CLOTHING,22/04/14,
800036053,*THOMAS KNEALE & CO LTD,TK106566,93,10.89,CLOTHING,22/04/14,
800036053,*THOMAS KNEALE & CO LTD,TK106566,94,10.89,CLOTHING,22/04/14,
800036053,*THOMAS KNEALE & CO LTD,TK106566,95,3.47,CLOTHING,22/04/14,
800036053,*THOMAS KNEALE & CO LTD,TK106566,96,1.48,CLOTHING,22/04/14,
800036053,*THOMAS KNEALE & CO LTD,TK106566,97,2.96,CLOTHING,22/04/14,
800036053,*THOMAS KNEALE & CO LTD,TK106566,98,2.96,CLOTHING,22/04/14,
800036053,*THOMAS KNEALE & CO LTD,TK106566,99,6.94,CLOTHING,22/04/14,
800036053,*THOMAS KNEALE & CO LTD,TK106566,100,3.47,CLOTHING,22/04/14,
800036053,*THOMAS KNEALE & CO LTD,TK106566,101,3.47,CLOTHING,22/04/14,
800036053,*THOMAS KNEALE & CO LTD,TK106566,102,3.47,CLOTHING,22/04/14,
800036053,*THOMAS KNEALE & CO LTD,TK106566,103,10.89,CLOTHING,22/04/14,
800036053,*THOMAS KNEALE & CO LTD,TK106566,104,3.47,CLOTHING,22/04/14,
800036053,*THOMAS KNEALE & CO LTD,TK106566,105,1.48,CLOTHING,22/04/14,
800036053,*THOMAS KNEALE & CO LTD,TK106566,106,3.47,CLOTHING,22/04/14,
800036053,*THOMAS KNEALE & CO LTD,TK106566,107,1.48,CLOTHING,22/04/14,
800036053,*THOMAS KNEALE & CO LTD,TK106566,108,10.89,CLOTHING,22/04/14,
800036053,*THOMAS KNEALE & CO LTD,TK106566,109,0.99,CLOTHING,22/04/14,
800036053,*THOMAS KNEALE & CO LTD,TK106566,110,11.36,OFFICE FURNITURE,22/04/14,
800036053,*THOMAS KNEALE & CO LTD,TK106566,111,3.47,CLOTHING,22/04/14,
800036053,*THOMAS KNEALE & CO LTD,TK106566,112,10.89,CLOTHING,22/04/14,
800036053,*THOMAS KNEALE & CO LTD,TK106566,113,6.94,CLOTHING,22/04/14,
800036053,*THOMAS KNEALE & CO LTD,TK106566,114,10.89,CLOTHING,22/04/14,
800036053,*THOMAS KNEALE & CO LTD,TK106566,115,10.89,CLOTHING,22/04/14,
800036053,*THOMAS KNEALE & CO LTD,TK106566,116,1.48,CLOTHING,22/04/14,
800036053,*THOMAS KNEALE & CO LTD,TK106566,117,3.47,CLOTHING,22/04/14,
800036053,*THOMAS KNEALE & CO LTD,TK106566,118,21.78,CLOTHING,22/04/14,
800036053,*THOMAS KNEALE & CO LTD,TK106566,119,6.94,CLOTHING,22/04/14,
800036053,*THOMAS KNEALE & CO LTD,TK106566,120,5.35,CLOTHING,22/04/14,
800036053,*THOMAS KNEALE & CO LTD,TK106566,121,10.89,CLOTHING,22/04/14,
800036053,*THOMAS KNEALE & CO LTD,TK106566,122,0.99,CLOTHING,22/04/14,
800036053,*THOMAS KNEALE & CO LTD,TK106566,123,10.89,CLOTHING,22/04/14,
800036053,*THOMAS KNEALE & CO LTD,TK106566,124,6.94,CLOTHING,22/04/14,
800036053,*THOMAS KNEALE & CO LTD,TK106566,125,10.89,CLOTHING,22/04/14,
800036053,*THOMAS KNEALE & CO LTD,TK106566,126,67.95,OFFICE FURNITURE,22/04/14,
800036053,*THOMAS KNEALE & CO LTD,TK106566,127,3.47,CLOTHING,22/04/14,
